{"text_format":"1","workbook":"xlsx","n_sheets":11,"sheets":["CDR","RAAF","RCI","2307","2306","DV Buseco","DV","Sheet4","FundingSource","OrganizationFile","Sheet1"],"not_rendered":{"charts":0,"images":3,"macros":1,"external_links":0,"defined_names":7,"comments":0,"pivot_tables":0},"unopened":[],"bounds":{"document_bytes":16777216,"sheet_cells":100000,"rows_first":2000,"rows_last":500,"rows_between":2000,"halvings":0,"cell_chars":16384,"cell_head_chars":4096},"cells_cut":0,"cells_raw":0,"read":"whole","date_system":"1900"}

{"sheet":"CDR","index":0,"n_rows":53,"n_cols":7,"rows_kept":53,"cut":false,"hidden":false,"merged":[[3,0,3,6],[4,0,4,6],[5,0,5,6],[6,0,6,6],[7,0,7,6],[49,4,49,6],[50,4,50,6],[8,0,8,2],[8,5,8,6],[46,4,46,6],[46,0,46,3],[9,0,9,2],[9,5,9,6],[45,0,45,6]]}
[" ",null,null,null,null,null,"SHEET NO. 01"]
[null,null,null,null,null,null,"Appendix 36"]
["DBP ACCT. # ____________________"]
["CHECK DISBURSEMENT RECORD"]
[" Department of Education"]
["Division of Malaybalay City"]
["(Name of School)]"]
["(Period)"]
["(Name of School Head/Disbursing Officer)",null,null,null,null,"(Name of School)"]
[" Accountable Officer",null,null,null,null," Station"]
["DATE","CHECK NO.","NAME OF PAYEE","NATURE OF PAYMENT","CASH RECEIVED","AMOUNT OF CHECK ISSUED","BALANCE"]
[null,null,"Beginning Balance",null,null,null,{"$f":"E12","v":0}]
[null,null,null,null,null,null,{"$f":"+G12+E13-F13","v":0}]
[null,null,null,null,null,null,{"$f":"+G13+E14-F14","v":0}]
[null,null,null,null,null,null,0]
[null,null,null,null,null,null,0]
[null,null,null,null,null,null,0]
[null,null,null,null,null,null,0]
[null,null,null,null,null,null,0]
[null,null,null,null,null,null,0]
[null,null,null,null,null,null,0]
[null,null,null,null,null,null,0]
[null,null,null,null,null,null,0]
[null,null,null,null,null,null,0]
[null,null,null,null,null,null,0]
[null,null,null,null,null,null,0]
[null,null,null,null,null,null,0]
[null,null,null,null,null,null,0]
[null,null,null,null,null,null,0]
[null,null,null,null,null,null,0]
[null,null,null,null,null,null,0]
[null,null,null,null,null,null,0]
[null,null,null,null,null,null,0]
[null,null,null,null,null,null,0]
[null,null,null,null,null,null,0]
[null,null,null,null,null,null,0]
[null,null,null,null,null,null,0]
[null,null,null,null,null,null,0]
[null,null,null,null,null,null,0]
[null,null,null,null,null,null,0]
[null,null,null,null,null,null,0]
[null,null,null,null,null,null,0]
[null,null,null,null,null,null,0]
[]
[null,null,"ENDING BALANCE"," ",{"$f":"SUM(E12:E44)","v":0},{"$f":"SUM(F12:F44)","v":0},{"$f":"+G12+E45-F45","v":0}]
["          I hereby certify on my official oath that all cash and depository transactions had by me in my  capacity as (Position) of (Name of School), at the time of  examination, showing a balance of"]
[{"$f":"+CONCATENATE(PROPER(IF(IF(IF(IF((INT(TEXT(G45,\"###,##0.00\"))-MOD(INT(TEXT(G45,\"###,##0.00\")),1000000))/1000000=0,\"\",CONCATENATE(VLOOKUP((INT(TEXT(G45,\"###,##0.00\"))-MOD(INT(TEXT(G45,\"###,##0.00\")),1000000))/1000000,word[],2,0),\" Million\"))=\"\",IF((MOD(INT(TEXT(G45,\"###,##0.00\")),1000000)-MOD(MOD(INT(TEXT(G45,\"###,##0.00\")),1000000),1000))/1000=0,\"\",CONCATENATE(VLOOKUP((MOD(INT(TEXT(G45,\"###,##0.00\")),1000000)-MOD(MOD(INT(TEXT(G45,\"###,##0.00\")),1000000),1000))/1000,word[],2,0),\" Thousand\")),CONCATENATE(IF((INT(TEXT(G45,\"###,##0.00\"))-MOD(INT(TEXT(G45,\"###,##0.00\")),1000000))/1000000=0,\"\",CONCATENATE(VLOOKUP((INT(TEXT(G45,\"###,##0.00\"))-MOD(INT(TEXT(G45,\"###,##0.00\")),1000000))/1000000,word[],2,0),\" Million\")),\" \",IF((MOD(INT(TEXT(G45,\"###,##0.00\")),1000000)-MOD(MOD(INT(TEXT(G45,\"###,##0.00\")),1000000),1000))/1000=0,\"\",CONCATENATE(VLOOKUP((MOD(INT(TEXT(G45,\"###,##0.00\")),1000000)-MOD(MOD(INT(TEXT(G45,\"###,##0.00\")),1000000),1000))/1000,word[],2,0),\" Thousand\"))))=\"\",IF(MOD(MOD(INT(TEXT(G45,\"###,##0.00\")),1000000),1000)=0,\"\",VLOOKUP(MOD(MOD(INT(TEXT(G45,\"###,##0.00\")),1000000),1000),word[],2,0)),CONCATENATE(IF(IF((INT(TEXT(G45,\"###,##0.00\"))-MOD(INT(TEXT(G45,\"###,##0.00\")),1000000))/1000000=0,\"\",CONCATENATE(VLOOKUP((INT(TEXT(G45,\"###,##0.00\"))-MOD(INT(TEXT(G45,\"###,##0.00\")),1000000))/1000000,word[],2,0),\" Million\"))=\"\",IF((MOD(INT(TEXT(G45,\"###,##0.00\")),1000000)-MOD(MOD(INT(TEXT(G45,\"###,##0.00\")),1000000),1000))/1000=0,\"\",CONCATENATE(VLOOKUP((MOD(INT(TEXT(G45,\"###,##0.00\")),1000000)-MOD(MOD(INT(TEXT(G45,\"###,##0.00\")),1000000),1000))/1000,word[],2,0),\" Thousand\")),CONCATENATE(IF((INT(TEXT(G45,\"###,##0.00\"))-MOD(INT(TEXT(G45,\"###,##0.00\")),1000000))/1000000=0,\"\",CONCATENATE(VLOOKUP((INT(TEXT(G45,\"###,##0.00\"))-MOD(INT(TEXT(G45,\"###,##0.00\")),1000000))/1000000,word[],2,0),\" Million\")),\" \",IF((MOD(INT(TEXT(G45,\"###,##0.00\")),1000000)-MOD(MOD(INT(TEXT(G45,\"###,##0.00\")),1000000),1000))/1000=0,\"\",CONCATENATE(VLOOKUP((MOD(INT(TEXT(G45,\"###,##0.00\")),1000000)-MOD(MOD(INT(TEXT(G45,\"###,##0.00\")),1000000),1000))/1000,word[],2,0),\" Thousand\")))),,\" \",IF(MOD(MOD(INT(TEXT(G45,\"###,##0.00\")),1000000),1000)=0,\"\",VLOOKUP(MOD(MOD(INT(TEXT(G45,\"###,##0.00\")),1000000),1000),word[],2,0))))=\"\",IF(ROUND(TRUNC(100*(TEXT(G45,\"###,##0.00\")-INT(TEXT(G45,\"###,##0.00\"))),2),1)=0,\"00/100 Pesos Only\",CONCATENATE(ROUND(TRUNC(100*(TEXT(G45,\"###,##0.00\")-INT(TEXT(G45,\"###,##0.00\"))),2),1),\"/100 Pesos Only\")),CONCATENATE(IF(IF(IF((INT(TEXT(G45,\"###,##0.00\"))-MOD(INT(TEXT(G45,\"###,##0.00\")),1000000))/1000000=0,\"\",CONCATENATE(VLOOKUP((INT(TEXT(G45,\"###,##0.00\"))-MOD(INT(TEXT(G45,\"###,##0.00\")),1000000))/1000000,word[],2,0),\" Million\"))=\"\",IF((MOD(INT(TEXT(G45,\"###,##0.00\")),1000000)-MOD(MOD(INT(TEXT(G45,\"###,##0.00\")),1000000),1000))/1000=0,\"\",CONCATENATE(VLOOKUP((MOD(INT(TEXT(G45,\"###,##0.00\")),1000000)-MOD(MOD(INT(TEXT(G45,\"###,##0.00\")),1000000),1000))/1000,word[],2,0),\" Thousand\")),CONCATENATE(IF((INT(TEXT(G45,\"###,##0.00\"))-MOD(INT(TEXT(G45,\"###,##0.00\")),1000000))/1000000=0,\"\",CONCATENATE(VLOOKUP((INT(TEXT(G45,\"###,##0.00\"))-MOD(INT(TEXT(G45,\"###,##0.00\")),1000000))/1000000,word[],2,0),\" Million\")),\" \",IF((MOD(INT(TEXT(G45,\"###,##0.00\")),1000000)-MOD(MOD(INT(TEXT(G45,\"###,##0.00\")),1000000),1000))/1000=0,\"\",CONCATENATE(VLOOKUP((MOD(INT(TEXT(G45,\"###,##0.00\")),1000000)-MOD(MOD(INT(TEXT(G45,\"###,##0.00\")),1000000),1000))/1000,word[],2,0),\" Thousand\"))))=\"\",IF(MOD(MOD(INT(TEXT(G45,\"###,##0.00\")),1000000),1000)=0,\"\",VLOOKUP(MOD(MOD(INT(TEXT(G45,\"###,##0.00\")),1000000),1000),word[],2,0)),CONCATENATE(IF(IF((INT(TEXT(G45,\"###,##0.00\"))-MOD(INT(TEXT(G45,\"###,##0.00\")),1000000))/1000000=0,\"\",CONCATENATE(VLOOKUP((INT(TEXT(G45,\"###,##0.00\"))-MOD(INT(TEXT(G45,\"###,##0.00\")),1000000))/1000000,word[],2,0),\" Million\"))=\"\",IF((MOD(INT(TEXT(G45,\"###,##0.00\")),1000000)-MOD(MOD(INT(TEXT(G45,\"###,##0.00\")),1000000),1000))/1000=0,\"\",CONCATENATE(VLOOKUP((MOD(INT(TEXT(G45,\"###,##0.00\")),1000000)-MOD(MOD(INT(TEXT(G45,\"###,##0.00\")),1000000),1000))/1000,word[],2,0),\" Thousand\")),CONCATENATE(IF((INT(TEXT(G45,\"###,##0.00\"))-MOD(INT(TEXT(G45,\"###,##0.00\")),1000000))/1000000=0,\"\",CONCATENATE(VLOOKUP((INT(TEXT(G45,\"###,##0.00\"))-MOD(INT(TEXT(G45,\"###,##0.00\")),1000000))/1000000,word[],2,0),\" Million\")),\" \",IF((MOD(INT(TEXT(G45,\"###,##0.00\")),1000000)-MOD(MOD(INT(TEXT(G45,\"###,##0.00\")),1000000),1000))/1000=0,\"\",CONCATENATE(VLOOKUP((MOD(INT(TEXT(G45,\"###,##0.00\")),1000000)-MOD(MOD(INT(TEXT(G45,\"###,##0.00\")),1000000),1000))/1000,word[],2,0),\" Thousand\")))),,\" \",IF(MOD(MOD(INT(TEXT(G45,\"###,##0.00\")),1000000),1000)=0,\"\",VLOOKUP(MOD(MOD(INT(TEXT(G45,\"###,##0.00\")),1000000),1000),word[],2,0)))),\" & \",IF(ROUND(TRUNC(100*(TEXT(G45,\"###,##0.00\")-INT(TEXT(G45,\"###,##0.00\"))),2),1)=0,\"00/100 Pesos Only\",CONCATENATE(ROUND(TRUNC(100*(TEXT(G45,\"###,##0.00\")-INT(TEXT(G45,\"###,##0.00\"))),2),1),\"/100 Pesos Only\"))))),\" (Php\",TEXT(G45,\" #,##0.00)\"))","v":"00/100 Pesos Only (Php 0.00)"},null,null,null,"have been correctly and completely recorded in this cashbook."]
[]
[]
[null,null,null,null,{"$f":"+A9","v":"(Name of School Head/Disbursing Officer)"}]
[null,null,null,null,{"$f":"+A10","v":" Accountable Officer"}]
[]
["  For Accountable Officers' Use"]

{"sheet":"RAAF","index":1,"n_rows":26,"n_cols":13,"rows_kept":26,"cut":false,"hidden":false,"merged":[[20,0,20,12],[23,0,23,12],[24,0,24,12],[0,0,0,12],[1,0,1,12],[3,0,3,12],[4,0,4,12],[6,0,8,0],[6,1,6,3],[6,4,6,6],[6,7,6,9],[6,10,6,12],[7,2,7,3],[2,0,2,12],[7,5,7,6],[7,8,7,9],[7,11,7,12]]}
["REPORT OF ACCOUNTABILITY FOR ACCOUNTABLE FORMS"]
["Department of Education"]
["Division of Malaybalay City"]
["(Name of School)"]
["(Period)]"]
["School MOOE"]
["Name of Form & No.","Beginning Balance",null,null,"Receipt",null,null,"Issued",null,null,"Ending Balance"]
[null,null,"Inclusive Serial Nos.",null,null,"Inclusive Serial Nos.",null,null,"Inclusive Serial Nos.",null,null,"Inclusive Serial Nos."]
[null,"QTY","From","To","QTY","From","To","QTY","From","To","QTY","From","To"]
[]
[]
[]
[]
[" "]
[" "]
[]
["GRAND TOTAL"]
[]
[]
["CERTIFICATION:"]
["I hereby certify that the foregoing report of collections an accountability for accountable forms is true and correct."]
[]
[]
[{"$f":"+CDR!E50","v":"(Name of School Head/Disbursing Officer)"}]
[{"$f":"+CDR!E51","v":" Accountable Officer"}]
["  For Accountable Officers' Use"]

{"sheet":"RCI","index":2,"n_rows":37,"n_cols":5,"rows_kept":37,"cut":false,"hidden":false,"merged":[[36,0,36,2],[0,0,0,4],[1,0,1,4],[2,0,2,4],[4,0,4,4],[33,0,33,4],[35,0,35,2],[5,0,5,2]]}
["Department of Education"]
["Division of Malaybalay City"]
["(Name of School)"]
[]
["REPORT OF CHECKS ISSUED"]
["(Account No.)"]
["Bank : Development of Bank of the Philippines",null,null,null,"(Period)"]
["DATE","CHECK No.","DV No.","PAYEE","AMOUNT"]
[]
[]
[]
[]
[]
[]
[]
[]
[]
[]
[]
[]
[]
[]
[]
[]
[]
[]
[]
[]
[]
[]
[]
[]
[null,null,null,"TOTAL",{"$f":"SUM(E9:E32)","v":0}]
["     I hereby certify that this Report of Checks issued in sheet is a full true and correct statement of all checks released by me in payments for obligations for the period stated and shown in the attached disbursement vouchers."]
[]
[{"$f":"+RAAF!A24","v":"(Name of School Head/Disbursing Officer)"},null,null,null,"(Date)"]
[{"$f":"+RAAF!A25","v":" Accountable Officer"}]

{"sheet":"2307","index":3,"n_rows":82,"n_cols":53,"rows_kept":82,"cut":false,"hidden":false,"merged":[[9,9,9,21],[11,9,11,41],[13,9,13,33],[31,36,31,43],[35,0,37,11],[35,12,35,15],[35,31,35,35],[35,36,35,43],[28,21,28,25],[28,26,28,30],[28,31,28,35],[28,36,28,43],[29,16,29,20],[29,21,29,25],[29,26,29,30],[29,36,29,43],[41,31,41,35],[41,36,41,43],[49,36,49,43],[7,3,7,43],[12,8,12,43],[17,3,17,43],[22,8,22,43],[26,3,26,43],[27,0,27,11],[27,12,28,15],[27,16,27,35],[28,0,28,11],[28,16,28,20],[31,0,33,11],[31,12,31,15],[31,31,31,35],[50,0,50,11],[51,0,51,11],[57,12,57,15],[57,31,57,35],[57,36,57,43],[53,12,53,15],[53,31,53,35],[53,36,53,43],[53,0,55,11],[68,36,68,43],[71,1,71,18],[71,20,71,30],[71,32,71,42],[79,1,79,18],[81,20,81,30],[81,32,81,42],[72,20,72,30],[72,32,72,42],[75,20,75,30],[75,32,75,42],[78,20,78,27],[78,29,78,35],[78,37,78,42]]}
[null,null,null,null,null,null,null,null,null,null,null,null,null,null,null,null,null,null,null,null,null,null,null,null,null,null,null,null,null,null," "]
[]
[]
[]
[]
["1","For the Period",null,null,null,null,null,null,null,null,null,null,null,null,null,null,null,null,null,null,null,null,null,null,null,null,null,null,null,null,null,null,null,null,null,null,null,null,null,null,null,null,null,null,null,null,null,null,null,null,null,"Income payments made by the government to its local/resident suppliers of goods","WI640"]
[null,"     From",null,null,null,null,null,null,null,null,null,null,null,"  (MM/DD/YY)",null,null,null,null,null,null,"To",null,null,null,null,null,null,null,null,null,"  (MM/DD/YY)",null,null,null,null,null,null,null,null,null,null,null,null,null,null,null,null,null,null,null,null,"Payments made by government offices on their purchases of services from local/resident suppliers ","WI157"]
["Part I",null,null,"Payee   Information",null,null,null,null,null,null,null,null,null,null,null,null,null,null,null,null,null,null,null,null,null,null,null,null,null,null,null,null,null,null,null,null,null,null,null,null,null,null,null,null,null,null,null,null,null,null,null,"Person exempt from VAT under Sec. 109 (v) (Government withholding agent)","WB 080"]
["2","Taxpayer"]
[null,"Identification Number",null,null,null,null,null,null,null,{"$f":"+DV!R12","v":0}]
[]
["3","Payee's Name",null,null,null,null,null,null,null,{"$f":"+DV!D11","v":0}]
[null,null,null,null,null,null,null,null,"(Last Name, First Name, Middle Name for Individuals) (Registered Name for Non-Individuals)"]
["4","Registered Address",null,null,null,null,null,null,null,{"$f":"+DV!D14","v":0},null,null,null,null,null,null,null,null,null,null,null,null,null,null,null,null,null,null,null,null,null,null,null,null,null,"4A","Zip Code"]
[]
["5","Foreign Address",null,null,null,null,null,null,null,null,null,null,null,null,null,null,null,null,null,null,null,null,null,null,null,null,null,null,null,null,null,null,null,null,null,"5A","Zip Code"]
[]
[null,null,null,"Payor   Information"]
["6","Taxpayer"]
[null,"Identification Number"]
[]
["7","Payor's Name"]
[null,null,null,null,null,null,null,null,"(Last Name, First Name, Middle Name for Individuals) (Registered Name for Non-Individuals)"]
["8","Registered Address",null,null,null,null,null,null,null,null,null,null,null,null,null,null,null,null,null,null,null,null,null,null,null,null,null,null,null,null,null,null,null,null,null,"8A","Zip Code"]
[]
[]
["PART II",null,null,"Details of Monthly Income Payments and Tax Withheld for the Quarter"]
["Income Payments Subject to  ",null,null,null,null,null,null,null,null,null,null,null,"ATC",null,null,null,"AMOUNT OF INCOME PAYMENTS"]
["Expanded Withholding Tax",null,null,null,null,null,null,null,null,null,null,null,null,null,null,null,"1st Month of ",null,null,null,null,"2nd Month of",null,null,null,null,"3rd Month of",null,null,null,null,"Total",null,null,null,null,"Tax Withheld"]
[null,null,null,null,null,null,null,null,null,null,null,null,null,null,null,null,"the Quarter",null,null,null,null,"the Quarter",null,null,null,null,"the Quarter",null,null,null,null,null,null,null,null,null,"For the Quarter"]
[]
["Income payments made by the government to its local/resident suppliers of goods",null,null,null,null,null,null,null,null,null,null,null,"WI640",null,null,null,null,null,null,null,null,null,null,null,null,null,null,null,null,null,null,null,null,null,null,null,null,null,null,null,null,null,null,null,null,null,null,null,null,null,null,"Goods"]
[]
[]
[]
["Payments made by government offices on their purchases of services from local/resident suppliers ",null,null,null,null,null,null,null,null,null,null,null,"WB 080",null,null,null,null,null,null,null,null,null,null,null,null,null,null,null,null,null,null,null,null,null,null,null,null,null,null,null,null,null,null,null,null,null,null,null,null,null,null,"Services"]
[]
[]
[]
[]
[]
[]
[]
[]
[]
[]
[]
[]
[]
["Total"]
["Money Payments Subject to Withholding"]
["of Business Tax (Government & Private)"]
[]
["Person exempt from VAT under Sec. 109 (v) (Government withholding agent)",null,null,null,null,null,null,null,null,null,null,null,"WB 080"]
[]
[]
[]
[]
[]
[]
[]
[]
[]
[]
[]
[]
[]
[]
["Total",null,null,null,null,null,null,null,null,null,null,null,null,null,null,null,null,null,null,null,null,null,null,null,null,null,null,null,null,null,null,null,null,null,null,null,{"$f":"SUM(AK53:AR68)","v":0}]
["     We declare, under the penalties of perjury, that this certificate has been made in good faith, verified by me, and to the best of my knowledge and belief, is true and correct,"]
["pursuant to the provisions of the National Internal Revenue Code, as amended, and the regulations issued under authority thereof."]
[null,"RHYSA CYLE C. ROSALEJOS, CPA",null,null,null,null,null,null,null,null,null,null,null,null,null,null,null,null,null,null,"945-902-757",null,null,null,null,null,null,null,null,null,null,null,"Accountant III"]
[null,"Payor/Payor's  Authorized Representative/Accredited Tax Agent",null,null,null,null,null,null,null,null,null,null,null,null,null,null,null,null,null,null,"TIN of Signatory",null,null,null,null,null,null,null,null,null,null,null,"Title/Position of Signatory"]
[null,null,null,null,null,"(Signature Over Printed Name)"]
[]
[null,"Tax Agent Accreditation No./Attorney's Roll No. (if applicable)",null,null,null,null,null,null,null,null,null,null,null,null,null,null,null,null,null,null,"Date of Issuance",null,null,null,null,null,null,null,null,null,null,null,"Date of Expiry"]
["Conforme:"]
[]
[null,"Payee/Payee's Authorized Representative/Accredited Tax Agent",null,null,null,null,null,null,null,null,null,null,null,null,null,null,null,null,null,null,"TIN of Signatory",null,null,null,null,null,null,null,null,"Title/Position of Signatory",null,null,null,null,null,null,null,"Date Signed"]
[null,"(Signature Over Printed Name)"]
[]
[null,"Tax Agent Accreditation No./Attorney's Roll No. (if applicable)",null,null,null,null,null,null,null,null,null,null,null,null,null,null,null,null,null,null,"Date of Issuance",null,null,null,null,null,null,null,null,null,null,null,"Date of Expiry"]

{"sheet":"2306","index":4,"n_rows":86,"n_cols":31,"rows_kept":86,"cut":false,"hidden":false,"merged":[[9,2,10,12],[13,1,13,18],[29,28,29,33],[29,16,29,20],[29,0,30,15],[29,21,29,26],[19,1,19,18],[55,28,55,33],[27,0,27,15],[27,16,27,20],[27,21,27,26],[27,27,27,34],[34,16,34,20],[32,0,33,15],[32,16,32,20],[32,21,32,26],[32,28,32,33],[66,1,66,15],[66,18,66,22],[66,30,66,33],[58,1,58,15],[58,18,58,22],[58,24,58,28],[58,30,58,33],[59,1,59,15],[59,18,59,22],[59,30,59,33],[60,1,60,15],[62,1,62,15],[62,18,62,22],[62,24,62,28],[62,30,62,33],[80,29,80,34],[67,1,67,15],[69,1,69,15],[69,18,69,22],[69,24,69,28],[69,30,69,33],[70,0,70,33],[76,1,76,14],[77,1,77,14],[80,1,80,6],[80,8,80,14],[80,17,80,27],[81,17,81,27],[83,1,83,14],[83,17,83,27],[83,29,83,34],[85,1,85,6],[85,8,85,14],[85,17,85,27],[85,29,85,34]]}
[]
[]
[null,null,null,null,null,null,null,null,null,null,null," "]
[]
[]
[1,"For the Period"]
[null,null,null,"From",null,null,null,null,null,null,null,null,"(MM/DD/YY)",null,null,null,null,null,null,null,null,null,"To",null,null,null,null,null,null,"(MM/DD/YY)"]
["Part I",null,null,"Income Recipient/Payee Information",null,null,null,null,null,null,null,null,null,null,null,null,null,null,null,null,"Withholding Agent/Payor Information"]
[]
[2,"TIN",{"$f":"+DV!R12","v":0},null,null,null,null,null,null,null,null,null,null,null,null,null,null,null,null,null,3,"TIN"]
[]
[]
[4,"Payee's Name (For Non-Individuals )",null,null,null,null,null,null,null,null,null,null,null,null,null,null,null,null,null,null,5,"Payor's Name (For Non- Individuals)"]
[null,{"$f":"+DV!D11","v":0}]
[]
[6,"Payee's Name  (Last Name, First Name,  Middle Name) For Individuals",null,null,null,null,null,null,null,null,null,null,null,null,null,null,null,null,null,null,7,"Payor's Name  (Last Name, First Name,  Middle Name) For Individuals"]
[]
[]
[8,"Registered Address",null,null,null,null,null,null,null,null,null,null,null,null,null,null,null,null,null,null,9,"Registered Address"]
[null,{"$f":"+DV!D14","v":0}]
[]
[null,null,null,null,null,null,null,null,null,null,null,null,null,"8A  Zip",null,null,null,null,null,null,null,null,null,null,null,null,null,null,null,null," 9A Zip "]
[null,null,null,null,null,null,null,null,null,null,null,null,null,null,"Code",null,null,null,null,null,null,null,null,null,null,null,null,null,null,null,"     Code"]
[10,"Foreign Address",null,null,null,null,null,null,null,null,null,null,null,null,null,"10A","  Zip  Code",null,null,null,"10B    ICR No.   (For Alien  Income Recipient Only)"]
[]
[]
["Part II",null,null,"Details of Income Payment and Tax Withheld"]
["Nature of Income Payment",null,null,null,null,null,null,null,null,null,null,null,null,null,null,null,"A T C",null,null,null,null,"Amount of Payment",null,null,null,null,null,"Tax Withheld"]
[" "]
["VAT Withholding on Purchase of Goods -  Govt. Withholding Agent",null,null,null,null,null,null,null,null,null,null,null,null,null,null,null,"WV 010"]
[]
[]
["VAT Withholding on Purchase of Services -  Govt. Withholding Agent",null,null,null,null,null,null,null,null,null,null,null,null,null,null,null,"WV 020"]
[]
[]
[]
[]
[]
[]
[]
[]
[]
[]
[]
[]
[]
[]
[]
[]
[]
[]
[]
[]
[]
[]
["Total",null,null,null,null,null,null,null,null,null,null,null,null,null,null,null,null,null,null,null,null,null,null,null,null,null,null,null,{"$f":"+AC30","v":0}]
[null,null,"We declare, under the penalties of perjury, that this certificate has been made in good faith, verified by us, and to the best of our knowledge and belief, is true and "]
[null," correct pursuant to the provisions of the National Internal Revenue Code, as amended, and the regulations issued under authority thereof."]
[null,"RHYSA CYLE C. ROSALEJOS, CPA",null,null,null,null,null,null,null,null,null,null,null,null,null,null,null,null,"945-902-757",null,null,null,null,null,"Accountant III"]
[null,"Payor/Payor's Authorized Representative",null,null,null,null,null,null,null,null,null,null,null,null,null,null,null,null,"TIN of Signatory",null,null,null,null,null,"Title/Position of Signatory",null,null,null,null,null,"Date Signed"]
[null,"Signature Over Printed Name"]
[]
[null,"Tax Agent Accreditation No./Attorney's Roll No. (If applicable)",null,null,null,null,null,null,null,null,null,null,null,null,null,null,null,null,"Date of Issuance",null,null,null,null,null,"Date of Expiry"]
[]
[null,"CONFORME:"]
[]
[null,"Payor/Payor's Authorized Representative",null,null,null,null,null,null,null,null,null,null,null,null,null,null,null,null,"TIN of Signatory",null,null,null,null,null,"Title/Position of Signatory",null,null,null,null,null,"Date Signed"]
[null,"Signature Over Printed Name"]
[]
[null,"Tax Agent Accreditation No./Attorney's Roll No. (If applicable)",null,null,null,null,null,null,null,null,null,null,null,null,null,null,null,null,"Date of Issuance",null,null,null,null,null,"Date of Expiry"]
["To be accomplished for Value-Added Tax/Percentage Tax Withholding (substituted filing)"]
[null,"I declare, under the penalties of perjury,  that the information ",null,null,null,null,null,null,null,null,null,null,null,null,null,null,null,null,"I declare under the penalties of perjury that I am qualified under substituted filing of Percentage "]
["herein stated are reported under BIR Form No. 1600  which",null,null,null,null,null,null,null,null,null,null,null,null,null,null,null,null,"Tax/Value Added Tax Returns (BIR Form 2551M/2550M/Q), since I have only one payor from "]
["have been filed with the Bureau of Internal Revenue.",null,null,null,null,null,null,null,null,null,null,null,null,null,null,null,null,"whom I earn my income; that, in accordance with RR 14-2003, I have availed of the Optional "]
[null,null,null,null,null,null,null,null,null,null,null,null,null,null,null,null,null,"Registration under the 3% Final Percentage Tax Wthholding/10% Final VAT Withholding in lieu "]
[null,null,null,null,null,null,null,null,null,null,null,null,null,null,null,null,null,"of the 3% Percentage Tax/10% VAT in order to be entitled to the privileges accorded  by the"]
[null,"Payor/Payor's Authorized Representative",null,null,null,null,null,null,null,null,null,null,null,null,null,null,null,"Substituted Percentage Tax Return/Substituted VAT Return System prescribed in the aforesaid "]
[null,"Signature Over Printed Name",null,null,null,null,null,null,null,null,null,null,null,null,null,null,null,"Regulations; that, this Declaration is sufficient authority of the withholding agent to withhold 3% "]
[null,null,null,null,null,null,null,null,null,null,null,null,null,null,null,null,null,"Final Percentage Tax/10% Final VAT from my sale of goods and/or services."]
[]
[null,"TIN of Signatory",null,null,null,null,null,null,"Title/Position of Signatory",null,null,null,null,null,null,null,null,"Payee/Payee's Authorized Representative",null,null,null,null,null,null,null,null,null,null,null,"Title/Position of Signatory"]
[null,null,null,null,null,null,null,null,null,null,null,null,null,null,null,null,null,"Signature Over Printed Name"]
[]
[null,"Tax Agent Accreditation No./Attorney's Roll No. (If applicable)",null,null,null,null,null,null,null,null,null,null,null,null,null,null,null,"Tax Agent Accreditation No./Attorney's Roll No. (If applicable)",null,null,null,null,null,null,null,null,null,null,null,"TIN of Signatory"]
[]
[null,"Date of Issuance",null,null,null,null,null,null,"Date of Expiry",null,null,null,null,null,null,null,null,"Date of Issuance",null,null,null,null,null,null,null,null,null,null,null,"Date of Expiry"]

{"sheet":"DV Buseco","index":5,"n_rows":292,"n_cols":38,"rows_kept":292,"cut":false,"hidden":false,"merged":[[5,0,6,25],[5,26,5,31],[6,26,6,31],[0,0,0,31],[1,0,1,31],[2,0,2,31],[3,0,3,31],[4,0,4,31],[7,0,9,2],[7,3,7,31],[8,3,9,6],[8,12,9,12],[8,19,9,19],[8,29,8,31],[9,8,9,11],[9,13,9,18],[9,20,9,31],[10,0,12,2],[10,3,12,16],[10,17,10,25],[11,17,12,25],[11,26,12,31],[22,18,22,24],[23,11,23,16],[24,18,24,24],[31,18,31,28],[14,26,14,31],[15,17,15,25],[15,26,15,31],[16,0,16,25],[16,26,16,31],[17,0,21,25],[20,26,21,31],[13,0,15,2],[13,3,15,16],[13,17,13,25],[13,26,13,31],[14,17,14,25],[32,17,38,31],[34,0,34,5],[36,0,36,16],[39,0,39,2],[39,3,39,16],[39,17,39,21],[39,22,39,31],[43,22,43,31],[44,1,44,25],[44,26,44,31],[40,0,41,2],[40,3,41,16],[40,17,41,21],[40,22,41,31],[42,0,42,2],[42,3,42,16],[42,17,42,21],[42,22,42,31],[47,26,48,31],[48,0,48,25],[23,18,23,24],[45,0,45,2],[45,3,45,11],[45,12,45,16],[45,17,45,25],[45,26,45,31],[46,0,47,2],[46,3,47,11],[46,12,47,16],[46,17,47,25],[46,26,46,31],[43,0,43,2],[43,3,43,16],[43,17,43,21]]}
["Republic of the Philippines"]
["Department of Education",null,null,null,null,null,null,null,null,null,null,null,null,null,null,null,null,null,null,null,null,null,null,null,null,null,null,null,null,null,null,null,null,"Click the yellow cell and choose from the drop down list"]
["Division of Malaybalay City",null,null,null,null,null,null,null,null,null,null,null,null,null,null,null,null,null,null,null,null,null,null,null,null,null,null,null,null,null,null,null,null,"MFO/PAP","Elementary"]
["(NAME OF SCHOOL)",null,null,null,null,null,null,null,null,null,null,null,null,null,null,null,null,null,null,null,null,null,null,null,null,null,null,null,null,null,null,null,null,"Fill in the needed data:"]
["Organization Code: 07-001-08-10010                                                                       Location Code 10-13-12-000",null,null,null,null,null,null,null,null,null,null,null,null,null,null,null,null,null,null,null,null,null,null,null,null,null,null,null,null,null,null,null,null,"Gross Amount"]
["DISBURSEMENT  VOUCHER",null,null,null,null,null,null,null,null,null,null,null,null,null,null,null,null,null,null,null,null,null,null,null,null,null,"No.",null,null,null,null,null,null,"Tota VAT (refer to the BILL)"]
[]
["Mode of Payment"]
[null,null,null,null,null,null,null,null,"MDS Check",null,null,null,null,null,"Commercial Check",null,null,null,null,null,null,null,null,"ADA",null,null,null,"Others"]
[]
["Payee",null,null,"BUSECO",null,null,null,null,null,null,null,null,null,null,null,null,null,"TIN/Employee No.",null,null,null,null,null,null,null,null,"OR/BUR No. "]
[null,null,null,null,null,null,null,null,null,null,null,null,null,null,null,null,null,"000-620-433-000 VAT",null,null,null,null,null,null,null,null,"N/A"]
[]
["Address",null,null,"Casisang, Malaybalay City, Bukidnon",null,null,null,null,null,null,null,null,null,null,null,null,null,"Fund Source:",null,null,null,null,null,null,null,null,"1 01 101"]
[null,null,null,null,null,null,null,null,null,null,null,null,null,null,null,null,null,"MFO/PAP:",null,null,null,null,null,null,null,null,"OBJECT CODE:"]
[null,null,null,null,null,null,null,null,null,null,null,null,null,null,null,null,null,{"$f":"+IF($AI$3=\"\",\"\",VLOOKUP($AI$3,$AK$289:$AL$293,2,0))","v":302050002},null,null,null,null,null,null,null,null,5020402000]
["EXPLANATION",null,null,null,null,null,null,null,null,null,null,null,null,null,null,null,null,null,null,null,null,null,null,null,null,null,"AMOUNT"]
[]
[]
[]
[null,null,null,null,null,null,null,null,null,null,null,null,null,null,null,null,null,null,null,null,null,null,null,null,null,null,{"$f":"+S25","v":0}]
[]
[null,null,"Gross Amount",null,null,null,null,null,null,null,null,null,null,null,null,null,null,null,{"$f":"+AI5","v":0},null,null,null,null,null,null,null,null,null,null,null,null,null,null,"Please fill up and print:"]
[null,null,"Less:",null,"WHT on VAT",null,null,null,null,null,null,null,null,null,null,null,null,null,{"$f":"ROUND(+AI6*0.416666666666667,2)","v":0},null,null,null,null,null,null,null,null,null,null,null,null,null,null,"BIR Form 2306","WV 020"]
[null,null,"Net Amount",null,null,null,null,null,null,null,null,null,null,null,null,null,null,null,{"$f":"+S23-S24","v":0}]
[]
[]
[]
[]
[]
[]
["A.","Certified ",null,null,null,null,null,null,null,null,null,null,null,null,null,null,null,"B. Approved for Payment ","Approved for Payment"]
[null,null,null,null,null,null,null,null,null,null,null,null,null,null,null,null,null,{"$f":"+CONCATENATE(PROPER(IF(IF(IF(IF((INT(TEXT(AA21,\"###,##0.00\"))-MOD(INT(TEXT(AA21,\"###,##0.00\")),1000000))/1000000=0,\"\",CONCATENATE(VLOOKUP((INT(TEXT(AA21,\"###,##0.00\"))-MOD(INT(TEXT(AA21,\"###,##0.00\")),1000000))/1000000,word[],2,0),\" Million\"))=\"\",IF((MOD(INT(TEXT(AA21,\"###,##0.00\")),1000000)-MOD(MOD(INT(TEXT(AA21,\"###,##0.00\")),1000000),1000))/1000=0,\"\",CONCATENATE(VLOOKUP((MOD(INT(TEXT(AA21,\"###,##0.00\")),1000000)-MOD(MOD(INT(TEXT(AA21,\"###,##0.00\")),1000000),1000))/1000,word[],2,0),\" Thousand\")),CONCATENATE(IF((INT(TEXT(AA21,\"###,##0.00\"))-MOD(INT(TEXT(AA21,\"###,##0.00\")),1000000))/1000000=0,\"\",CONCATENATE(VLOOKUP((INT(TEXT(AA21,\"###,##0.00\"))-MOD(INT(TEXT(AA21,\"###,##0.00\")),1000000))/1000000,word[],2,0),\" Million\")),\" \",IF((MOD(INT(TEXT(AA21,\"###,##0.00\")),1000000)-MOD(MOD(INT(TEXT(AA21,\"###,##0.00\")),1000000),1000))/1000=0,\"\",CONCATENATE(VLOOKUP((MOD(INT(TEXT(AA21,\"###,##0.00\")),1000000)-MOD(MOD(INT(TEXT(AA21,\"###,##0.00\")),1000000),1000))/1000,word[],2,0),\" Thousand\"))))=\"\",IF(MOD(MOD(INT(TEXT(AA21,\"###,##0.00\")),1000000),1000)=0,\"\",VLOOKUP(MOD(MOD(INT(TEXT(AA21,\"###,##0.00\")),1000000),1000),word[],2,0)),CONCATENATE(IF(IF((INT(TEXT(AA21,\"###,##0.00\"))-MOD(INT(TEXT(AA21,\"###,##0.00\")),1000000))/1000000=0,\"\",CONCATENATE(VLOOKUP((INT(TEXT(AA21,\"###,##0.00\"))-MOD(INT(TEXT(AA21,\"###,##0.00\")),1000000))/1000000,word[],2,0),\" Million\"))=\"\",IF((MOD(INT(TEXT(AA21,\"###,##0.00\")),1000000)-MOD(MOD(INT(TEXT(AA21,\"###,##0.00\")),1000000),1000))/1000=0,\"\",CONCATENATE(VLOOKUP((MOD(INT(TEXT(AA21,\"###,##0.00\")),1000000)-MOD(MOD(INT(TEXT(AA21,\"###,##0.00\")),1000000),1000))/1000,word[],2,0),\" Thousand\")),CONCATENATE(IF((INT(TEXT(AA21,\"###,##0.00\"))-MOD(INT(TEXT(AA21,\"###,##0.00\")),1000000))/1000000=0,\"\",CONCATENATE(VLOOKUP((INT(TEXT(AA21,\"###,##0.00\"))-MOD(INT(TEXT(AA21,\"###,##0.00\")),1000000))/1000000,word[],2,0),\" Million\")),\" \",IF((MOD(INT(TEXT(AA21,\"###,##0.00\")),1000000)-MOD(MOD(INT(TEXT(AA21,\"###,##0.00\")),1000000),1000))/1000=0,\"\",CONCATENATE(VLOOKUP((MOD(INT(TEXT(AA21,\"###,##0.00\")),1000000)-MOD(MOD(INT(TEXT(AA21,\"###,##0.00\")),1000000),1000))/1000,word[],2,0),\" Thousand\")))),,\" \",IF(MOD(MOD(INT(TEXT(AA21,\"###,##0.00\")),1000000),1000)=0,\"\",VLOOKUP(MOD(MOD(INT(TEXT(AA21,\"###,##0.00\")),1000000),1000),word[],2,0))))=\"\",IF(ROUND(TRUNC(100*(TEXT(AA21,\"###,##0.00\")-INT(TEXT(AA21,\"###,##0.00\"))),2),1)=0,\"00/100 Pesos Only\",CONCATENATE(ROUND(TRUNC(100*(TEXT(AA21,\"###,##0.00\")-INT(TEXT(AA21,\"###,##0.00\"))),2),1),\"/100 Pesos Only\")),CONCATENATE(IF(IF(IF((INT(TEXT(AA21,\"###,##0.00\"))-MOD(INT(TEXT(AA21,\"###,##0.00\")),1000000))/1000000=0,\"\",CONCATENATE(VLOOKUP((INT(TEXT(AA21,\"###,##0.00\"))-MOD(INT(TEXT(AA21,\"###,##0.00\")),1000000))/1000000,word[],2,0),\" Million\"))=\"\",IF((MOD(INT(TEXT(AA21,\"###,##0.00\")),1000000)-MOD(MOD(INT(TEXT(AA21,\"###,##0.00\")),1000000),1000))/1000=0,\"\",CONCATENATE(VLOOKUP((MOD(INT(TEXT(AA21,\"###,##0.00\")),1000000)-MOD(MOD(INT(TEXT(AA21,\"###,##0.00\")),1000000),1000))/1000,word[],2,0),\" Thousand\")),CONCATENATE(IF((INT(TEXT(AA21,\"###,##0.00\"))-MOD(INT(TEXT(AA21,\"###,##0.00\")),1000000))/1000000=0,\"\",CONCATENATE(VLOOKUP((INT(TEXT(AA21,\"###,##0.00\"))-MOD(INT(TEXT(AA21,\"###,##0.00\")),1000000))/1000000,word[],2,0),\" Million\")),\" \",IF((MOD(INT(TEXT(AA21,\"###,##0.00\")),1000000)-MOD(MOD(INT(TEXT(AA21,\"###,##0.00\")),1000000),1000))/1000=0,\"\",CONCATENATE(VLOOKUP((MOD(INT(TEXT(AA21,\"###,##0.00\")),1000000)-MOD(MOD(INT(TEXT(AA21,\"###,##0.00\")),1000000),1000))/1000,word[],2,0),\" Thousand\"))))=\"\",IF(MOD(MOD(INT(TEXT(AA21,\"###,##0.00\")),1000000),1000)=0,\"\",VLOOKUP(MOD(MOD(INT(TEXT(AA21,\"###,##0.00\")),1000000),1000),word[],2,0)),CONCATENATE(IF(IF((INT(TEXT(AA21,\"###,##0.00\"))-MOD(INT(TEXT(AA21,\"###,##0.00\")),1000000))/1000000=0,\"\",CONCATENATE(VLOOKUP((INT(TEXT(AA21,\"###,##0.00\"))-MOD(INT(TEXT(AA21,\"###,##0.00\")),1000000))/1000000,word[],2,0),\" Million\"))=\"\",IF((MOD(INT(TEXT(AA21,\"###,##0.00\")),1000000)-MOD(MOD(INT(TEXT(AA21,\"###,##0.00\")),1000000),1000))/1000=0,\"\",CONCATENATE(VLOOKUP((MOD(INT(TEXT(AA21,\"###,##0.00\")),1000000)-MOD(MOD(INT(TEXT(AA21,\"###,##0.00\")),1000000),1000))/1000,word[],2,0),\" Thousand\")),CONCATENATE(IF((INT(TEXT(AA21,\"###,##0.00\"))-MOD(INT(TEXT(AA21,\"###,##0.00\")),1000000))/1000000=0,\"\",CONCATENATE(VLOOKUP((INT(TEXT(AA21,\"###,##0.00\"))-MOD(INT(TEXT(AA21,\"###,##0.00\")),1000000))/1000000,word[],2,0),\" Million\")),\" \",IF((MOD(INT(TEXT(AA21,\"###,##0.00\")),1000000)-MOD(MOD(INT(TEXT(AA21,\"###,##0.00\")),1000000),1000))/1000=0,\"\",CONCATENATE(VLOOKUP((MOD(INT(TEXT(AA21,\"###,##0.00\")),1000000)-MOD(MOD(INT(TEXT(AA21,\"###,##0.00\")),1000000),1000))/1000,word[],2,0),\" Thousand\")))),,\" \",IF(MOD(MOD(INT(TEXT(AA21,\"###,##0.00\")),1000000),1000)=0,\"\",VLOOKUP(MOD(MOD(INT(TEXT(AA21,\"###,##0.00\")),1000000),1000),word[],2,0)))),\" & \",IF(ROUND(TRUNC(100*(TEXT(AA21,\"###,##0.00\")-INT(TEXT(AA21,\"###,##0.00\"))),2),1)=0,\"00/100 Pesos Only\",CONCATENATE(ROUND(TRUNC(100*(TEXT(AA21,\"###,##0.00\")-INT(TEXT(AA21,\"###,##0.00\"))),2),1),\"/100 Pesos Only\"))))),\" (Php\",TEXT(AA21,\" #,##0.00)\"))","v":"00/100 Pesos Only (Php 0.00)"}]
[null,null," Cash available"]
[]
[null,null," Subject to Authority to Debit Account (when applicable)"]
[]
[null,null," Supporting documents complete"]
[]
["Signature",null,null,null,null,null,null,null,null,null,null,null,null,null,null,null,null,"Signature"]
["Printed Name",null,null,"(Teacher/Bookkeeper)",null,null,null,null,null,null,null,null,null,null,null,null,null,"Printed Name",null,null,null,null,"(School Head)"]
[]
["Position",null,null,null,null,null,null,null,null,null,null,null,null,null,null,null,null,"Position"]
["Date",null,null,null,null,null,null,null,null,null,null,null,null,null,null,null,null,"Date"]
["C. Receipt of Payment "," Received Payment",null,null,null,null,null,null,null,null,null,null,null,null,null,null,null,null,null,null,null,null,null,null,null,null,"JEV  No."]
["Check/ADA No.",null,null,null,null,null,null,null,null,null,null,null,"Date",null,null,null,null,"Bank Name"]
["Signature",null,null,null,null,null,null,null,null,null,null,null,"Date",null,null,null,null,"Printed Name: ",null,null,null,null,null,null,null,null,"Date"]
[]
["Official Receipt/Other Documents"]
[]
[]
[]
[]
[]
[]
[]
[]
[]
[]
[]
[]
[]
[]
[]
[]
[]
[]
[]
[]
[]
[]
[]
[]
[]
[]
[]
[]
[]
[]
[]
[]
[]
[]
[]
[]
[]
[]
[]
[]
[]
[]
[]
[]
[]
[]
[]
[]
[]
[]
[]
[]
[]
[]
[]
[]
[]
[]
[]
[]
[]
[]
[]
[]
[]
[]
[]
[]
[]
[]
[]
[]
[]
[]
[]
[]
[]
[]
[]
[]
[]
[]
[]
[]
[]
[]
[]
[]
[]
[]
[]
[]
[]
[]
[]
[]
[]
[]
[]
[]
[]
[]
[]
[]
[]
[]
[]
[]
[]
[]
[]
[]
[]
[]
[]
[]
[]
[]
[]
[]
[]
[]
[]
[]
[]
[]
[]
[]
[]
[]
[]
[]
[]
[]
[]
[]
[]
[]
[]
[]
[]
[]
[]
[]
[]
[]
[]
[]
[]
[]
[]
[]
[]
[]
[]
[]
[]
[]
[]
[]
[]
[]
[]
[]
[]
[]
[]
[]
[]
[]
[]
[]
[]
[]
[]
[]
[]
[]
[]
[]
[]
[]
[]
[]
[]
[]
[]
[]
[]
[]
[]
[]
[]
[]
[]
[]
[]
[]
[]
[]
[]
[]
[]
[]
[]
[]
[]
[]
[]
[]
[]
[]
[]
[]
[]
[]
[]
[]
[]
[]
[]
[]
[]
[]
[]
[]
[]
[]
[]
[]
[]
[]
[]
[]
[]
[]
[]
[]
[]
[]
[]
[null,null,null,null,null,null,null,null,null,null,null,null,null,null,null,null,null,null,null,null,null,null,null,null,null,null,null,null,null,null,null,null,null,null,null,null,"Elementary",302050002]
[null,null,null,null,null,null,null,null,null,null,null,null,null,null,null,null,null,null,null,null,null,null,null,null,null,null,null,null,null,null,null,null,null,null,null,null,"Secondary",302050003]

{"sheet":"DV","index":6,"n_rows":303,"n_cols":45,"rows_kept":303,"cut":false,"hidden":false,"merged":[[0,0,0,31],[1,0,1,31],[2,0,2,31],[4,0,4,31],[5,0,6,25],[5,26,5,31],[6,26,6,31],[3,0,3,31],[10,0,12,2],[10,3,12,16],[10,17,10,25],[7,3,7,31],[8,3,9,6],[8,12,9,12],[8,19,9,19],[8,29,8,31],[9,8,9,11],[9,13,9,18],[9,20,9,31],[7,0,9,2],[11,17,12,25],[11,26,12,31],[13,3,15,16],[13,0,15,2],[14,17,14,25],[14,26,14,31],[13,17,13,25],[13,26,13,31],[15,17,15,25],[15,26,15,31],[37,0,37,16],[16,0,16,25],[24,11,24,16],[24,18,24,24],[25,18,25,24],[32,18,32,28],[33,17,39,31],[16,26,16,31],[17,0,21,25],[20,26,21,31],[22,18,22,24],[23,11,23,16],[35,0,35,5],[40,0,40,2],[40,3,40,16],[40,17,40,21],[40,22,40,31],[41,0,42,2],[41,17,42,21],[41,22,42,31],[41,3,42,16],[43,0,43,2],[43,3,43,16],[43,17,43,21],[43,22,43,31],[44,0,44,2],[44,3,44,16],[44,17,44,21],[44,22,44,31],[45,1,45,25],[45,26,45,31],[46,0,46,2],[46,3,46,11],[46,12,46,16],[46,17,46,25],[46,26,46,31],[47,0,48,2],[47,3,48,11],[47,12,48,16],[47,17,48,25],[47,26,47,31],[48,26,51,31],[49,0,49,8],[50,1,50,4],[50,5,50,8],[50,11,50,14],[50,15,50,18]]}
["Republic of the Philippines",null,null,null,null,null,null,null,null,null,null,null,null,null,null,null,null,null,null,null,null,null,null,null,null,null,null,null,null,null,null,null,null,"Click the yellow cell and choose from the drop down list"]
["Department of Education"]
["Division of Malaybalay City",null,null,null,null,null,null,null,null,null,null,null,null,null,null,null,null,null,null,null,null,null,null,null,null,null,null,null,null,null,null,null,null,"MFO/PAP","Elementary"]
["(NAME OF SCHOOL)",null,null,null,null,null,null,null,null,null,null,null,null,null,null,null,null,null,null,null,null,null,null,null,null,null,null,null,null,null,null,null,null,"Object Code"]
["Organization Code: 07-001-08-10010                                                                       Location Code 10-13-12-000",null,null,null,null,null,null,null,null,null,null,null,null,null,null,null,null,null,null,null,null,null,null,null,null,null,null,null,null,null,null,null,null,"Supplier","Services-VAT"]
["DISBURSEMENT  VOUCHER",null,null,null,null,null,null,null,null,null,null,null,null,null,null,null,null,null,null,null,null,null,null,null,null,null,"No.",null,null,null,null,null,null,"Fill in the needed data:"]
[null,null,null,null,null,null,null,null,null,null,null,null,null,null,null,null,null,null,null,null,null,null,null,null,null,null,null,null,null,null,null,null,null,"Gross Amount",0]
["Mode of Payment"]
[null,null,null,null,null,null,null,null,"MDS Check",null,null,null,null,null,"Commercial Check",null,null,null,null,null,null,null,null,"ADA",null,null,null,"Others"]
[]
["Payee",null,null,null,null,null,null,null,null,null,null,null,null,null,null,null,null,"TIN/Employee No.",null,null,null,null,null,null,null,null,"OR/BUR No. "]
[null,null,null,null,null,null,null,null,null,null,null,null,null,null,null,null,null,null,null,null,null,null,null,null,null,null,"N/A"]
[]
["Address",null,null,null,null,null,null,null,null,null,null,null,null,null,null,null,null,"Fund Source:",null,null,null,null,null,null,null,null,"1 01 101"]
[null,null,null,null,null,null,null,null,null,null,null,null,null,null,null,null,null,"MFO/PAP:",null,null,null,null,null,null,null,null,"OBJECT CODE:"]
[null,null,null,null,null,null,null,null,null,null,null,null,null,null,null,null,null,{"$f":"+IF($AI$3=\"\",\"\",VLOOKUP($AI$3,$AK$292:$AL$296,2,0))","v":302050002},null,null,null,null,null,null,null,null,{"$f":"+IF($AI$4=\"\",\"\",VLOOKUP($AI$4,$AK$53:$AL$286,2,0))","v":""}]
["EXPLANATION",null,null,null,null,null,null,null,null,null,null,null,null,null,null,null,null,null,null,null,null,null,null,null,null,null,"AMOUNT"]
[]
[]
[]
[null,null,null,null,null,null,null,null,null,null,null,null,null,null,null,null,null,null,null,null,null,null,null,null,null,null,{"$f":"+S26","v":0}]
[]
[null,null,"Gross Amount",null,null,null,null,null,null,null,null,null,null,null,null,null,null,null,{"$f":"+AI7","v":0},null,null,null,null,null,null,null,null,null,null,null,null,null,null,"Please fill up and print:"]
[null,null,"Less:",null,"WHT on Income Tax",null,null,null,null,null,null,{"$f":"+IF($AI$5=\"\",\"\",VLOOKUP($AI$5,$AK$299:$AO$303,3,0))","v":0},null,null,null,null,null,null,null,null,null,null,null,null,null,null,null,null,null,null,null,null,null,{"$f":"+IF($AI$5=\"\",\"\",VLOOKUP($AI$5,$AK$299:$AQ$303,6,0))","v":"BIR Form 2307"},{"$f":"+IF($AI$5=\"\",\"\",VLOOKUP($AI$5,$AK$299:$AS$303,8,0))","v":"WI157"}]
[null,null,null,null,"WHT on Business Tax",null,null,null,null,null,null,{"$f":"+IF($AI$5=\"\",\"\",VLOOKUP($AI$5,$AK$299:$AO$303,4,0))","v":0},null,null,null,null,null,null,{"$f":"+L25+L24","v":0},null,null,null,null,null,null,null,null,null,null,null,null,null,null,{"$f":"+IF($AI$5=\"\",\"\",VLOOKUP($AI$5,$AK$299:$AQ$303,7,0))","v":"BIR Form 2306"},{"$f":"+IF($AI$5=\"\",\"\",VLOOKUP($AI$5,$AK$299:$AS$303,9,0))","v":"WV020"}]
[null,null,"Net Amount",null,null,null,null,null,null,null,null,null,null,null,null,null,null,null,{"$f":"+S23-S25","v":0}]
[]
[]
[]
[]
[]
[]
["A.","Certified ",null,null,null,null,null,null,null,null,null,null,null,null,null,null,null,"B. Approved for Payment ","Approved for Payment"]
[null,null,null,null,null,null,null,null,null,null,null,null,null,null,null,null,null,{"$f":"+CONCATENATE(PROPER(IF(IF(IF(IF((INT(TEXT(AA21,\"###,##0.00\"))-MOD(INT(TEXT(AA21,\"###,##0.00\")),1000000))/1000000=0,\"\",CONCATENATE(VLOOKUP((INT(TEXT(AA21,\"###,##0.00\"))-MOD(INT(TEXT(AA21,\"###,##0.00\")),1000000))/1000000,word[],2,0),\" Million\"))=\"\",IF((MOD(INT(TEXT(AA21,\"###,##0.00\")),1000000)-MOD(MOD(INT(TEXT(AA21,\"###,##0.00\")),1000000),1000))/1000=0,\"\",CONCATENATE(VLOOKUP((MOD(INT(TEXT(AA21,\"###,##0.00\")),1000000)-MOD(MOD(INT(TEXT(AA21,\"###,##0.00\")),1000000),1000))/1000,word[],2,0),\" Thousand\")),CONCATENATE(IF((INT(TEXT(AA21,\"###,##0.00\"))-MOD(INT(TEXT(AA21,\"###,##0.00\")),1000000))/1000000=0,\"\",CONCATENATE(VLOOKUP((INT(TEXT(AA21,\"###,##0.00\"))-MOD(INT(TEXT(AA21,\"###,##0.00\")),1000000))/1000000,word[],2,0),\" Million\")),\" \",IF((MOD(INT(TEXT(AA21,\"###,##0.00\")),1000000)-MOD(MOD(INT(TEXT(AA21,\"###,##0.00\")),1000000),1000))/1000=0,\"\",CONCATENATE(VLOOKUP((MOD(INT(TEXT(AA21,\"###,##0.00\")),1000000)-MOD(MOD(INT(TEXT(AA21,\"###,##0.00\")),1000000),1000))/1000,word[],2,0),\" Thousand\"))))=\"\",IF(MOD(MOD(INT(TEXT(AA21,\"###,##0.00\")),1000000),1000)=0,\"\",VLOOKUP(MOD(MOD(INT(TEXT(AA21,\"###,##0.00\")),1000000),1000),word[],2,0)),CONCATENATE(IF(IF((INT(TEXT(AA21,\"###,##0.00\"))-MOD(INT(TEXT(AA21,\"###,##0.00\")),1000000))/1000000=0,\"\",CONCATENATE(VLOOKUP((INT(TEXT(AA21,\"###,##0.00\"))-MOD(INT(TEXT(AA21,\"###,##0.00\")),1000000))/1000000,word[],2,0),\" Million\"))=\"\",IF((MOD(INT(TEXT(AA21,\"###,##0.00\")),1000000)-MOD(MOD(INT(TEXT(AA21,\"###,##0.00\")),1000000),1000))/1000=0,\"\",CONCATENATE(VLOOKUP((MOD(INT(TEXT(AA21,\"###,##0.00\")),1000000)-MOD(MOD(INT(TEXT(AA21,\"###,##0.00\")),1000000),1000))/1000,word[],2,0),\" Thousand\")),CONCATENATE(IF((INT(TEXT(AA21,\"###,##0.00\"))-MOD(INT(TEXT(AA21,\"###,##0.00\")),1000000))/1000000=0,\"\",CONCATENATE(VLOOKUP((INT(TEXT(AA21,\"###,##0.00\"))-MOD(INT(TEXT(AA21,\"###,##0.00\")),1000000))/1000000,word[],2,0),\" Million\")),\" \",IF((MOD(INT(TEXT(AA21,\"###,##0.00\")),1000000)-MOD(MOD(INT(TEXT(AA21,\"###,##0.00\")),1000000),1000))/1000=0,\"\",CONCATENATE(VLOOKUP((MOD(INT(TEXT(AA21,\"###,##0.00\")),1000000)-MOD(MOD(INT(TEXT(AA21,\"###,##0.00\")),1000000),1000))/1000,word[],2,0),\" Thousand\")))),,\" \",IF(MOD(MOD(INT(TEXT(AA21,\"###,##0.00\")),1000000),1000)=0,\"\",VLOOKUP(MOD(MOD(INT(TEXT(AA21,\"###,##0.00\")),1000000),1000),word[],2,0))))=\"\",IF(ROUND(TRUNC(100*(TEXT(AA21,\"###,##0.00\")-INT(TEXT(AA21,\"###,##0.00\"))),2),1)=0,\"00/100 Pesos Only\",CONCATENATE(ROUND(TRUNC(100*(TEXT(AA21,\"###,##0.00\")-INT(TEXT(AA21,\"###,##0.00\"))),2),1),\"/100 Pesos Only\")),CONCATENATE(IF(IF(IF((INT(TEXT(AA21,\"###,##0.00\"))-MOD(INT(TEXT(AA21,\"###,##0.00\")),1000000))/1000000=0,\"\",CONCATENATE(VLOOKUP((INT(TEXT(AA21,\"###,##0.00\"))-MOD(INT(TEXT(AA21,\"###,##0.00\")),1000000))/1000000,word[],2,0),\" Million\"))=\"\",IF((MOD(INT(TEXT(AA21,\"###,##0.00\")),1000000)-MOD(MOD(INT(TEXT(AA21,\"###,##0.00\")),1000000),1000))/1000=0,\"\",CONCATENATE(VLOOKUP((MOD(INT(TEXT(AA21,\"###,##0.00\")),1000000)-MOD(MOD(INT(TEXT(AA21,\"###,##0.00\")),1000000),1000))/1000,word[],2,0),\" Thousand\")),CONCATENATE(IF((INT(TEXT(AA21,\"###,##0.00\"))-MOD(INT(TEXT(AA21,\"###,##0.00\")),1000000))/1000000=0,\"\",CONCATENATE(VLOOKUP((INT(TEXT(AA21,\"###,##0.00\"))-MOD(INT(TEXT(AA21,\"###,##0.00\")),1000000))/1000000,word[],2,0),\" Million\")),\" \",IF((MOD(INT(TEXT(AA21,\"###,##0.00\")),1000000)-MOD(MOD(INT(TEXT(AA21,\"###,##0.00\")),1000000),1000))/1000=0,\"\",CONCATENATE(VLOOKUP((MOD(INT(TEXT(AA21,\"###,##0.00\")),1000000)-MOD(MOD(INT(TEXT(AA21,\"###,##0.00\")),1000000),1000))/1000,word[],2,0),\" Thousand\"))))=\"\",IF(MOD(MOD(INT(TEXT(AA21,\"###,##0.00\")),1000000),1000)=0,\"\",VLOOKUP(MOD(MOD(INT(TEXT(AA21,\"###,##0.00\")),1000000),1000),word[],2,0)),CONCATENATE(IF(IF((INT(TEXT(AA21,\"###,##0.00\"))-MOD(INT(TEXT(AA21,\"###,##0.00\")),1000000))/1000000=0,\"\",CONCATENATE(VLOOKUP((INT(TEXT(AA21,\"###,##0.00\"))-MOD(INT(TEXT(AA21,\"###,##0.00\")),1000000))/1000000,word[],2,0),\" Million\"))=\"\",IF((MOD(INT(TEXT(AA21,\"###,##0.00\")),1000000)-MOD(MOD(INT(TEXT(AA21,\"###,##0.00\")),1000000),1000))/1000=0,\"\",CONCATENATE(VLOOKUP((MOD(INT(TEXT(AA21,\"###,##0.00\")),1000000)-MOD(MOD(INT(TEXT(AA21,\"###,##0.00\")),1000000),1000))/1000,word[],2,0),\" Thousand\")),CONCATENATE(IF((INT(TEXT(AA21,\"###,##0.00\"))-MOD(INT(TEXT(AA21,\"###,##0.00\")),1000000))/1000000=0,\"\",CONCATENATE(VLOOKUP((INT(TEXT(AA21,\"###,##0.00\"))-MOD(INT(TEXT(AA21,\"###,##0.00\")),1000000))/1000000,word[],2,0),\" Million\")),\" \",IF((MOD(INT(TEXT(AA21,\"###,##0.00\")),1000000)-MOD(MOD(INT(TEXT(AA21,\"###,##0.00\")),1000000),1000))/1000=0,\"\",CONCATENATE(VLOOKUP((MOD(INT(TEXT(AA21,\"###,##0.00\")),1000000)-MOD(MOD(INT(TEXT(AA21,\"###,##0.00\")),1000000),1000))/1000,word[],2,0),\" Thousand\")))),,\" \",IF(MOD(MOD(INT(TEXT(AA21,\"###,##0.00\")),1000000),1000)=0,\"\",VLOOKUP(MOD(MOD(INT(TEXT(AA21,\"###,##0.00\")),1000000),1000),word[],2,0)))),\" & \",IF(ROUND(TRUNC(100*(TEXT(AA21,\"###,##0.00\")-INT(TEXT(AA21,\"###,##0.00\"))),2),1)=0,\"00/100 Pesos Only\",CONCATENATE(ROUND(TRUNC(100*(TEXT(AA21,\"###,##0.00\")-INT(TEXT(AA21,\"###,##0.00\"))),2),1),\"/100 Pesos Only\"))))),\" (Php\",TEXT(AA21,\" #,##0.00)\"))","v":"00/100 Pesos Only (Php 0.00)"}]
[null,null," Cash available"]
[]
[null,null," Subject to Authority to Debit Account (when applicable)"]
[]
[null,null," Supporting documents complete"]
[]
["Signature",null,null,null,null,null,null,null,null,null,null,null,null,null,null,null,null,"Signature"]
["Printed Name",null,null,"(Teacher/Bookkeeper)",null,null,null,null,null,null,null,null,null,null,null,null,null,"Printed Name",null,null,null,null,"(School Head)"]
[]
["Position",null,null,null,null,null,null,null,null,null,null,null,null,null,null,null,null,"Position"]
["Date",null,null,null,null,null,null,null,null,null,null,null,null,null,null,null,null,"Date"]
["C. Receipt of Payment "," Received Payment",null,null,null,null,null,null,null,null,null,null,null,null,null,null,null,null,null,null,null,null,null,null,null,null,"JEV  No."]
["Check/ADA No.",null,null,null,null,null,null,null,null,null,null,null,"Date",null,null,null,null,"Bank Name"]
["Signature",null,null,null,null,null,null,null,null,null,null,null,"Date",null,null,null,null,"Printed Name: ",null,null,null,null,null,null,null,null,"Date"]
[]
["Official Receipt/Other Documents"]
[]
[]
[null,null,null,null,null,null,null,null,null,null,null,null,null,null,null,null,null,null,null,null,null,null,null,null,null,null,null,null,null,null,null,null,null,null,null,"MOOE","Traveling Expenses - Local","5020101000"]
[null,null,null,null,null,null,null,null,null,null,null,null,null,null,null,null,null,null,null,null,null,null,null,null,null,null,null,null,null,null,null,null,null,null,null,"MOOE","Traveling Expenses - Foreign","5020102000"]
[null,null,null,null,null,null,null,null,null,null,null,null,null,null,null,null,null,null,null,null,null,null,null,null,null,null,null,null,null,null,null,null,null,null,null,"MOOE","Training Expenses","5020201000"]
[null,null,null,null,null,null,null,null,null,null,null,null,null,null,null,null,null,null,null,null,null,null,null,null,null,null,null,null,null,null,null,null,null,null,null,"MOOE","Scholarship Grants/Expenses","5020202000"]
[null,null,null,null,null,null,null,null,null,null,null,null,null,null,null,null,null,null,null,null,null,null,null,null,null,null,null,null,null,null,null,null,null,null,null,"MOOE","Office Supplies Expenses","5020301000"]
[null,null,null,null,null,null,null,null,null,null,null,null,null,null,null,null,null,null,null,null,null,null,null,null,null,null,null,null,null,null,null,null,null,null,null,"MOOE","Accountable Forms Expenses","5020302000"]
[null,null,null,null,null,null,null,null,null,null,null,null,null,null,null,null,null,null,null,null,null,null,null,null,null,null,null,null,null,null,null,null,null,null,null,"MOOE","Non-Accountable Forms Expenses","5020303000"]
[null,null,null,null,null,null,null,null,null,null,null,null,null,null,null,null,null,null,null,null,null,null,null,null,null,null,null,null,null,null,null,null,null,null,null,"MOOE","Animal/Zoological Supplies Expenses","5020304000"]
[null,null,null,null,null,null,null,null,null,null,null,null,null,null,null,null,null,null,null,null,null,null,null,null,null,null,null,null,null,null,null,null,null,null,null,"MOOE","Food Supplies Expenses","5020305000"]
[null,null,null,null,null,null,null,null,null,null,null,null,null,null,null,null,null,null,null,null,null,null,null,null,null,null,null,null,null,null,null,null,null,null,null,"MOOE","Welfare Goods Expenses","5020306000"]
[null,null,null,null,null,null,null,null,null,null,null,null,null,null,null,null,null,null,null,null,null,null,null,null,null,null,null,null,null,null,null,null,null,null,null,"MOOE","Drugs and Medicines Expenses","5020307000"]
[null,null,null,null,null,null,null,null,null,null,null,null,null,null,null,null,null,null,null,null,null,null,null,null,null,null,null,null,null,null,null,null,null,null,null,"MOOE","Medical, Dental and Laboratory Supplies Expenses","5020308000"]
[null,null,null,null,null,null,null,null,null,null,null,null,null,null,null,null,null,null,null,null,null,null,null,null,null,null,null,null,null,null,null,null,null,null,null,"MOOE","Fuel, Oil and Lubricants Expenses","5020309000"]
[null,null,null,null,null,null,null,null,null,null,null,null,null,null,null,null,null,null,null,null,null,null,null,null,null,null,null,null,null,null,null,null,null,null,null,"MOOE","Agricultural and Marine Supplies Expenses","5020310000"]
[null,null,null,null,null,null,null,null,null,null,null,null,null,null,null,null,null,null,null,null,null,null,null,null,null,null,null,null,null,null,null,null,null,null,null,"MOOE","Textbooks and Instructional Materials Expenses.","5020311001"]
[null,null,null,null,null,null,null,null,null,null,null,null,null,null,null,null,null,null,null,null,null,null,null,null,null,null,null,null,null,null,null,null,null,null,null,"MOOE","Chalk Allowance","5020311002"]
[null,null,null,null,null,null,null,null,null,null,null,null,null,null,null,null,null,null,null,null,null,null,null,null,null,null,null,null,null,null,null,null,null,null,null,"MOOE","Military, Police and Traffic Supplies Expenses","5020312000"]
[null,null,null,null,null,null,null,null,null,null,null,null,null,null,null,null,null,null,null,null,null,null,null,null,null,null,null,null,null,null,null,null,null,null,null,"MOOE","Chemical and Filtering Supplies Expenses","5020313000"]
[null,null,null,null,null,null,null,null,null,null,null,null,null,null,null,null,null,null,null,null,null,null,null,null,null,null,null,null,null,null,null,null,null,null,null,"MOOE","Other Supplies and Materials Expenses","5020399000"]
[null,null,null,null,null,null,null,null,null,null,null,null,null,null,null,null,null,null,null,null,null,null,null,null,null,null,null,null,null,null,null,null,null,null,null,"MOOE","Water Expenses","5020401000"]
[null,null,null,null,null,null,null,null,null,null,null,null,null,null,null,null,null,null,null,null,null,null,null,null,null,null,null,null,null,null,null,null,null,null,null,"MOOE","Electricity Expenses","5020402000"]
[null,null,null,null,null,null,null,null,null,null,null,null,null,null,null,null,null,null,null,null,null,null,null,null,null,null,null,null,null,null,null,null,null,null,null,"MOOE","Postage and Courier Services","5020501000"]
[null,null,null,null,null,null,null,null,null,null,null,null,null,null,null,null,null,null,null,null,null,null,null,null,null,null,null,null,null,null,null,null,null,null,null,"MOOE","Telephone Expenses - Mobile","5020502001"]
[null,null,null,null,null,null,null,null,null,null,null,null,null,null,null,null,null,null,null,null,null,null,null,null,null,null,null,null,null,null,null,null,null,null,null,"MOOE","Telephone Expenses - Landline","5020502002"]
[null,null,null,null,null,null,null,null,null,null,null,null,null,null,null,null,null,null,null,null,null,null,null,null,null,null,null,null,null,null,null,null,null,null,null,"MOOE","Internet Subscription Expenses","5020503000"]
[null,null,null,null,null,null,null,null,null,null,null,null,null,null,null,null,null,null,null,null,null,null,null,null,null,null,null,null,null,null,null,null,null,null,null,"MOOE","Cable, Satellite, Telegraph and Radio Expenses","5020504000"]
[null,null,null,null,null,null,null,null,null,null,null,null,null,null,null,null,null,null,null,null,null,null,null,null,null,null,null,null,null,null,null,null,null,null,null,"MOOE","Awards/Rewards Expenses.","5020601001"]
[null,null,null,null,null,null,null,null,null,null,null,null,null,null,null,null,null,null,null,null,null,null,null,null,null,null,null,null,null,null,null,null,null,null,null,"MOOE","Rewards and Incentives","5020601002"]
[null,null,null,null,null,null,null,null,null,null,null,null,null,null,null,null,null,null,null,null,null,null,null,null,null,null,null,null,null,null,null,null,null,null,null,"MOOE","Prizes","5020602000"]
[null,null,null,null,null,null,null,null,null,null,null,null,null,null,null,null,null,null,null,null,null,null,null,null,null,null,null,null,null,null,null,null,null,null,null,"MOOE","Survey Expenses","5020701000"]
[null,null,null,null,null,null,null,null,null,null,null,null,null,null,null,null,null,null,null,null,null,null,null,null,null,null,null,null,null,null,null,null,null,null,null,"MOOE","Research, Exploration and Development Expenses","5020702000"]
[null,null,null,null,null,null,null,null,null,null,null,null,null,null,null,null,null,null,null,null,null,null,null,null,null,null,null,null,null,null,null,null,null,null,null,"MOOE","Demolition and Relocation Expenses","5020801000"]
[null,null,null,null,null,null,null,null,null,null,null,null,null,null,null,null,null,null,null,null,null,null,null,null,null,null,null,null,null,null,null,null,null,null,null,"MOOE","Desilting and Dredging Expenses","5020802000"]
[null,null,null,null,null,null,null,null,null,null,null,null,null,null,null,null,null,null,null,null,null,null,null,null,null,null,null,null,null,null,null,null,null,null,null,"MOOE","Generation, Transmission and Distribution Expenses","5020901000"]
[null,null,null,null,null,null,null,null,null,null,null,null,null,null,null,null,null,null,null,null,null,null,null,null,null,null,null,null,null,null,null,null,null,null,null,"MOOE","Confidential Expenses","5021001000"]
[null,null,null,null,null,null,null,null,null,null,null,null,null,null,null,null,null,null,null,null,null,null,null,null,null,null,null,null,null,null,null,null,null,null,null,"MOOE","Intelligence Expenses","5021002000"]
[null,null,null,null,null,null,null,null,null,null,null,null,null,null,null,null,null,null,null,null,null,null,null,null,null,null,null,null,null,null,null,null,null,null,null,"MOOE","Extraordinary and Miscellaneous Expenses","5021003000"]
[null,null,null,null,null,null,null,null,null,null,null,null,null,null,null,null,null,null,null,null,null,null,null,null,null,null,null,null,null,null,null,null,null,null,null,"MOOE","Legal Services","5021101000"]
[null,null,null,null,null,null,null,null,null,null,null,null,null,null,null,null,null,null,null,null,null,null,null,null,null,null,null,null,null,null,null,null,null,null,null,"MOOE","Auditing Services","5021102000"]
[null,null,null,null,null,null,null,null,null,null,null,null,null,null,null,null,null,null,null,null,null,null,null,null,null,null,null,null,null,null,null,null,null,null,null,"MOOE","Consultancy Services","5021103000"]
[null,null,null,null,null,null,null,null,null,null,null,null,null,null,null,null,null,null,null,null,null,null,null,null,null,null,null,null,null,null,null,null,null,null,null,"MOOE","Other Professional Services","5021199000"]
[null,null,null,null,null,null,null,null,null,null,null,null,null,null,null,null,null,null,null,null,null,null,null,null,null,null,null,null,null,null,null,null,null,null,null,"MOOE","Environment/Sanitary Services","5021201000"]
[null,null,null,null,null,null,null,null,null,null,null,null,null,null,null,null,null,null,null,null,null,null,null,null,null,null,null,null,null,null,null,null,null,null,null,"MOOE","Janitorial Services","5021202000"]
[null,null,null,null,null,null,null,null,null,null,null,null,null,null,null,null,null,null,null,null,null,null,null,null,null,null,null,null,null,null,null,null,null,null,null,"MOOE","Security Services","5021203000"]
[null,null,null,null,null,null,null,null,null,null,null,null,null,null,null,null,null,null,null,null,null,null,null,null,null,null,null,null,null,null,null,null,null,null,null,"MOOE","Other General Services","5021299000"]
[null,null,null,null,null,null,null,null,null,null,null,null,null,null,null,null,null,null,null,null,null,null,null,null,null,null,null,null,null,null,null,null,null,null,null,"MOOE","Repairs and Maintenance - Investment Property","5021301000"]
[null,null,null,null,null,null,null,null,null,null,null,null,null,null,null,null,null,null,null,null,null,null,null,null,null,null,null,null,null,null,null,null,null,null,null,"MOOE","Repairs and Maintenance - Aquaculture Structures","5021302001"]
[null,null,null,null,null,null,null,null,null,null,null,null,null,null,null,null,null,null,null,null,null,null,null,null,null,null,null,null,null,null,null,null,null,null,null,"MOOE","Repairs and Maintenance - Reforestation Projects","5021302002"]
[null,null,null,null,null,null,null,null,null,null,null,null,null,null,null,null,null,null,null,null,null,null,null,null,null,null,null,null,null,null,null,null,null,null,null,"MOOE","Repairs and Maintenance - Other Land Improvements","5021302099"]
[null,null,null,null,null,null,null,null,null,null,null,null,null,null,null,null,null,null,null,null,null,null,null,null,null,null,null,null,null,null,null,null,null,null,null,"MOOE","Repairs and Maintenance - Road Networks","5021303001"]
[null,null,null,null,null,null,null,null,null,null,null,null,null,null,null,null,null,null,null,null,null,null,null,null,null,null,null,null,null,null,null,null,null,null,null,"MOOE","Repairs and Maintenance - Flood Control Systems","5021303002"]
[null,null,null,null,null,null,null,null,null,null,null,null,null,null,null,null,null,null,null,null,null,null,null,null,null,null,null,null,null,null,null,null,null,null,null,"MOOE","Repairs and Maintenance - Sewer Systems","5021303003"]
[null,null,null,null,null,null,null,null,null,null,null,null,null,null,null,null,null,null,null,null,null,null,null,null,null,null,null,null,null,null,null,null,null,null,null,"MOOE","Repairs and Maintenance - Water Supply Systems","5021303004"]
[null,null,null,null,null,null,null,null,null,null,null,null,null,null,null,null,null,null,null,null,null,null,null,null,null,null,null,null,null,null,null,null,null,null,null,"MOOE","Repairs and Maintenance - Power Supply Systems","5021303005"]
[null,null,null,null,null,null,null,null,null,null,null,null,null,null,null,null,null,null,null,null,null,null,null,null,null,null,null,null,null,null,null,null,null,null,null,"MOOE","Repairs and Maintenance - Communication Networks","5021303006"]
[null,null,null,null,null,null,null,null,null,null,null,null,null,null,null,null,null,null,null,null,null,null,null,null,null,null,null,null,null,null,null,null,null,null,null,"MOOE","Repairs and Maintenance - Seaport Systems","5021303007"]
[null,null,null,null,null,null,null,null,null,null,null,null,null,null,null,null,null,null,null,null,null,null,null,null,null,null,null,null,null,null,null,null,null,null,null,"MOOE","Repairs and Maintenance - Airport Systems","5021303008"]
[null,null,null,null,null,null,null,null,null,null,null,null,null,null,null,null,null,null,null,null,null,null,null,null,null,null,null,null,null,null,null,null,null,null,null,"MOOE","Repairs and Maintenance - Parks, Plazas and Monuments","5021303009"]
[null,null,null,null,null,null,null,null,null,null,null,null,null,null,null,null,null,null,null,null,null,null,null,null,null,null,null,null,null,null,null,null,null,null,null,"MOOE","Repairs and Maintenance - Other Infrastructure Assets","5021303099"]
[null,null,null,null,null,null,null,null,null,null,null,null,null,null,null,null,null,null,null,null,null,null,null,null,null,null,null,null,null,null,null,null,null,null,null,"MOOE","Repairs and Maintenance - Buildings","5021304001"]
[null,null,null,null,null,null,null,null,null,null,null,null,null,null,null,null,null,null,null,null,null,null,null,null,null,null,null,null,null,null,null,null,null,null,null,"MOOE","Repairs and Maintenance - School Buildings","5021304002"]
[null,null,null,null,null,null,null,null,null,null,null,null,null,null,null,null,null,null,null,null,null,null,null,null,null,null,null,null,null,null,null,null,null,null,null,"MOOE","Repairs and Maintenance - Hospitals and Health Centers","5021304003"]
[null,null,null,null,null,null,null,null,null,null,null,null,null,null,null,null,null,null,null,null,null,null,null,null,null,null,null,null,null,null,null,null,null,null,null,"MOOE","Repairs and Maintenance - Markets","5021304004"]
[null,null,null,null,null,null,null,null,null,null,null,null,null,null,null,null,null,null,null,null,null,null,null,null,null,null,null,null,null,null,null,null,null,null,null,"MOOE","Repairs and Maintenance - Slaughterhouses","5021304005"]
[null,null,null,null,null,null,null,null,null,null,null,null,null,null,null,null,null,null,null,null,null,null,null,null,null,null,null,null,null,null,null,null,null,null,null,"MOOE","Repairs and Maintenance - Hostels and Dormitories","5021304006"]
[null,null,null,null,null,null,null,null,null,null,null,null,null,null,null,null,null,null,null,null,null,null,null,null,null,null,null,null,null,null,null,null,null,null,null,"MOOE","Repairs and Maintenance - Other Structures","5021304099"]
[null,null,null,null,null,null,null,null,null,null,null,null,null,null,null,null,null,null,null,null,null,null,null,null,null,null,null,null,null,null,null,null,null,null,null,"MOOE","Repairs and Maintenance - Machinery","5021305001"]
[null,null,null,null,null,null,null,null,null,null,null,null,null,null,null,null,null,null,null,null,null,null,null,null,null,null,null,null,null,null,null,null,null,null,null,"MOOE","Repairs and Maintenance - Office Equipment","5021305002"]
[null,null,null,null,null,null,null,null,null,null,null,null,null,null,null,null,null,null,null,null,null,null,null,null,null,null,null,null,null,null,null,null,null,null,null,"MOOE","Repairs and Maintenance - ICT Equipment","5021305003"]
[null,null,null,null,null,null,null,null,null,null,null,null,null,null,null,null,null,null,null,null,null,null,null,null,null,null,null,null,null,null,null,null,null,null,null,"MOOE","Repairs and Maintenance - Agricultural and Forestry Equipment","5021305004"]
[null,null,null,null,null,null,null,null,null,null,null,null,null,null,null,null,null,null,null,null,null,null,null,null,null,null,null,null,null,null,null,null,null,null,null,"MOOE","Repairs and Maintenance - Marine and Fishery Equipment","5021305005"]
[null,null,null,null,null,null,null,null,null,null,null,null,null,null,null,null,null,null,null,null,null,null,null,null,null,null,null,null,null,null,null,null,null,null,null,"MOOE","Repairs and Maintenance - Airport Equipment","5021305006"]
[null,null,null,null,null,null,null,null,null,null,null,null,null,null,null,null,null,null,null,null,null,null,null,null,null,null,null,null,null,null,null,null,null,null,null,"MOOE","Repairs and Maintenance - Communication Equipment","5021305007"]
[null,null,null,null,null,null,null,null,null,null,null,null,null,null,null,null,null,null,null,null,null,null,null,null,null,null,null,null,null,null,null,null,null,null,null,"MOOE","Repairs and Maintenance - Construction and Heavy Equipment","5021305008"]
[null,null,null,null,null,null,null,null,null,null,null,null,null,null,null,null,null,null,null,null,null,null,null,null,null,null,null,null,null,null,null,null,null,null,null,"MOOE","Repairs and Maintenance - Disaster Response and Rescue Equipment","5021305009"]
[null,null,null,null,null,null,null,null,null,null,null,null,null,null,null,null,null,null,null,null,null,null,null,null,null,null,null,null,null,null,null,null,null,null,null,"MOOE","Repairs and Maintenance - Military, Police and Security Equipment","5021305010"]
[null,null,null,null,null,null,null,null,null,null,null,null,null,null,null,null,null,null,null,null,null,null,null,null,null,null,null,null,null,null,null,null,null,null,null,"MOOE","Repairs and Maintenance - Medical Equipment","5021305011"]
[null,null,null,null,null,null,null,null,null,null,null,null,null,null,null,null,null,null,null,null,null,null,null,null,null,null,null,null,null,null,null,null,null,null,null,"MOOE","Repairs and Maintenance - Printing Equipment","5021305012"]
[null,null,null,null,null,null,null,null,null,null,null,null,null,null,null,null,null,null,null,null,null,null,null,null,null,null,null,null,null,null,null,null,null,null,null,"MOOE","Repairs and Maintenance - Sports Equipment","5021305013"]
[null,null,null,null,null,null,null,null,null,null,null,null,null,null,null,null,null,null,null,null,null,null,null,null,null,null,null,null,null,null,null,null,null,null,null,"MOOE","Repairs and Maintenance - Technical and Scientific Equipment","5021305014"]
[null,null,null,null,null,null,null,null,null,null,null,null,null,null,null,null,null,null,null,null,null,null,null,null,null,null,null,null,null,null,null,null,null,null,null,"MOOE","Repairs and Maintenance - Other Machinery and Equipment","5021305099"]
[null,null,null,null,null,null,null,null,null,null,null,null,null,null,null,null,null,null,null,null,null,null,null,null,null,null,null,null,null,null,null,null,null,null,null,"MOOE","Repairs and Maintenance - Motor Vehicles","5021306001"]
[null,null,null,null,null,null,null,null,null,null,null,null,null,null,null,null,null,null,null,null,null,null,null,null,null,null,null,null,null,null,null,null,null,null,null,"MOOE","Repairs and Maintenance - Trains","5021306002"]
[null,null,null,null,null,null,null,null,null,null,null,null,null,null,null,null,null,null,null,null,null,null,null,null,null,null,null,null,null,null,null,null,null,null,null,"MOOE","Repairs and Maintenance - Aircrafts and Aircrafts Ground Equipment","5021306003"]
[null,null,null,null,null,null,null,null,null,null,null,null,null,null,null,null,null,null,null,null,null,null,null,null,null,null,null,null,null,null,null,null,null,null,null,"MOOE","Repairs and Maintenance - Watercrafts","5021306004"]
[null,null,null,null,null,null,null,null,null,null,null,null,null,null,null,null,null,null,null,null,null,null,null,null,null,null,null,null,null,null,null,null,null,null,null,"MOOE","Repairs and Maintenance - Other Transportation Equipment","5021306099"]
[null,null,null,null,null,null,null,null,null,null,null,null,null,null,null,null,null,null,null,null,null,null,null,null,null,null,null,null,null,null,null,null,null,null,null,"MOOE","Repairs and Maintenance - Furniture and Fixtures","5021307000"]
[null,null,null,null,null,null,null,null,null,null,null,null,null,null,null,null,null,null,null,null,null,null,null,null,null,null,null,null,null,null,null,null,null,null,null,"MOOE","Repairs and Maintenance - Leased Assets - Buildings and Other Structures","5021308001"]
[null,null,null,null,null,null,null,null,null,null,null,null,null,null,null,null,null,null,null,null,null,null,null,null,null,null,null,null,null,null,null,null,null,null,null,"MOOE","Repairs and Maintenance - Leased Assets - Machinery and Equipment","5021308002"]
[null,null,null,null,null,null,null,null,null,null,null,null,null,null,null,null,null,null,null,null,null,null,null,null,null,null,null,null,null,null,null,null,null,null,null,"MOOE","Repairs and Maintenance - Leased Assets - Transportation Equipment","5021308003"]
[null,null,null,null,null,null,null,null,null,null,null,null,null,null,null,null,null,null,null,null,null,null,null,null,null,null,null,null,null,null,null,null,null,null,null,"MOOE","Repairs and Maintenance - Other Leased Assets","5021308099"]
[null,null,null,null,null,null,null,null,null,null,null,null,null,null,null,null,null,null,null,null,null,null,null,null,null,null,null,null,null,null,null,null,null,null,null,"MOOE","Repairs and Maintenance - Leased Assets Improvements - Land","5021309001"]
[null,null,null,null,null,null,null,null,null,null,null,null,null,null,null,null,null,null,null,null,null,null,null,null,null,null,null,null,null,null,null,null,null,null,null,"MOOE","Repairs and Maintenance - Leased Assets Improvements - Building","5021309002"]
[null,null,null,null,null,null,null,null,null,null,null,null,null,null,null,null,null,null,null,null,null,null,null,null,null,null,null,null,null,null,null,null,null,null,null,"MOOE","Repairs and Maintenance - Other Leased Assets Improvements","5021309099"]
[null,null,null,null,null,null,null,null,null,null,null,null,null,null,null,null,null,null,null,null,null,null,null,null,null,null,null,null,null,null,null,null,null,null,null,"MOOE","Restoration and Maintenance - Historical Buildings","5021310001"]
[null,null,null,null,null,null,null,null,null,null,null,null,null,null,null,null,null,null,null,null,null,null,null,null,null,null,null,null,null,null,null,null,null,null,null,"MOOE","Restoration and Maintenance - Works of Arts and Archeological Specimens","5021310002"]
[null,null,null,null,null,null,null,null,null,null,null,null,null,null,null,null,null,null,null,null,null,null,null,null,null,null,null,null,null,null,null,null,null,null,null,"MOOE","Repairs and Maintenance - Other Property, Plant and Equipment","5021399000"]
[null,null,null,null,null,null,null,null,null,null,null,null,null,null,null,null,null,null,null,null,null,null,null,null,null,null,null,null,null,null,null,null,null,null,null,"MOOE","Repairs and Maintenance - Other PPE - Work/Zoo Animals","5021399001"]
[null,null,null,null,null,null,null,null,null,null,null,null,null,null,null,null,null,null,null,null,null,null,null,null,null,null,null,null,null,null,null,null,null,null,null,"MOOE","Repairs and Maintenance - Other Property, Plant and Equipment.","5021399099"]
[null,null,null,null,null,null,null,null,null,null,null,null,null,null,null,null,null,null,null,null,null,null,null,null,null,null,null,null,null,null,null,null,null,null,null,"MOOE","Subsidy to National Government Agencies","5021401000"]
[null,null,null,null,null,null,null,null,null,null,null,null,null,null,null,null,null,null,null,null,null,null,null,null,null,null,null,null,null,null,null,null,null,null,null,"MOOE","Financial Assistance to NGAs","5021402000"]
[null,null,null,null,null,null,null,null,null,null,null,null,null,null,null,null,null,null,null,null,null,null,null,null,null,null,null,null,null,null,null,null,null,null,null,"MOOE","Tobacco Excise Tax (Virginia) per R.A. 7171","5021403001"]
[null,null,null,null,null,null,null,null,null,null,null,null,null,null,null,null,null,null,null,null,null,null,null,null,null,null,null,null,null,null,null,null,null,null,null,"MOOE","Tobacco Excise Tax (Burley and Native) per R.A. 8240","5021403002"]
[null,null,null,null,null,null,null,null,null,null,null,null,null,null,null,null,null,null,null,null,null,null,null,null,null,null,null,null,null,null,null,null,null,null,null,"MOOE","Mining Taxes per R.A. 7160","5021403003"]
[null,null,null,null,null,null,null,null,null,null,null,null,null,null,null,null,null,null,null,null,null,null,null,null,null,null,null,null,null,null,null,null,null,null,null,"MOOE","Royalties per R.A. 7160","5021403004"]
[null,null,null,null,null,null,null,null,null,null,null,null,null,null,null,null,null,null,null,null,null,null,null,null,null,null,null,null,null,null,null,null,null,null,null,"MOOE","Forestry Charges per R.A. 7160","5021403005"]
[null,null,null,null,null,null,null,null,null,null,null,null,null,null,null,null,null,null,null,null,null,null,null,null,null,null,null,null,null,null,null,null,null,null,null,"MOOE","Fishery Charges per R.A. 7160","5021403006"]
[null,null,null,null,null,null,null,null,null,null,null,null,null,null,null,null,null,null,null,null,null,null,null,null,null,null,null,null,null,null,null,null,null,null,null,"MOOE","Renewable Energy Charges per R.A. 9513","5021403007"]
[null,null,null,null,null,null,null,null,null,null,null,null,null,null,null,null,null,null,null,null,null,null,null,null,null,null,null,null,null,null,null,null,null,null,null,"MOOE","Income Tax Collections in ECO ZONES pe R.A. 7922 and R.A. 8748","5021403008"]
[null,null,null,null,null,null,null,null,null,null,null,null,null,null,null,null,null,null,null,null,null,null,null,null,null,null,null,null,null,null,null,null,null,null,null,"MOOE","Value Added Tax per R.A. 7643","5021403009"]
[null,null,null,null,null,null,null,null,null,null,null,null,null,null,null,null,null,null,null,null,null,null,null,null,null,null,null,null,null,null,null,null,null,null,null,"MOOE","Value Added Tax in lieu of Franchise Tax pe R.A. 7953 and R.A. 8407","5021403010"]
[null,null,null,null,null,null,null,null,null,null,null,null,null,null,null,null,null,null,null,null,null,null,null,null,null,null,null,null,null,null,null,null,null,null,null,"MOOE","Subsidy Support to Operations of GOCCs","5021404001"]
[null,null,null,null,null,null,null,null,null,null,null,null,null,null,null,null,null,null,null,null,null,null,null,null,null,null,null,null,null,null,null,null,null,null,null,"MOOE","Budgetary Support to GOCCs - Road Networks","5021404002"]
[null,null,null,null,null,null,null,null,null,null,null,null,null,null,null,null,null,null,null,null,null,null,null,null,null,null,null,null,null,null,null,null,null,null,null,"MOOE","Budgetary Support to GOCCs - Flood Control Systems","5021404003"]
[null,null,null,null,null,null,null,null,null,null,null,null,null,null,null,null,null,null,null,null,null,null,null,null,null,null,null,null,null,null,null,null,null,null,null,"MOOE","Budgetary Support to GOCCs - Sewer Systems","5021404004"]
[null,null,null,null,null,null,null,null,null,null,null,null,null,null,null,null,null,null,null,null,null,null,null,null,null,null,null,null,null,null,null,null,null,null,null,"MOOE","Budgetary Support to GOCCs - Water Supply Systems","5021404005"]
[null,null,null,null,null,null,null,null,null,null,null,null,null,null,null,null,null,null,null,null,null,null,null,null,null,null,null,null,null,null,null,null,null,null,null,"MOOE","Budgetary Support to GOCCs - Power Supply Systems","5021404006"]
[null,null,null,null,null,null,null,null,null,null,null,null,null,null,null,null,null,null,null,null,null,null,null,null,null,null,null,null,null,null,null,null,null,null,null,"MOOE","Budgetary Support to GOCCs - Communication Networks","5021404007"]
[null,null,null,null,null,null,null,null,null,null,null,null,null,null,null,null,null,null,null,null,null,null,null,null,null,null,null,null,null,null,null,null,null,null,null,"MOOE","Budgetary Support to GOCCs - Seaport Systems","5021404008"]
[null,null,null,null,null,null,null,null,null,null,null,null,null,null,null,null,null,null,null,null,null,null,null,null,null,null,null,null,null,null,null,null,null,null,null,"MOOE","Budgetary Support to GOCCs - Airport Systems","5021404009"]
[null,null,null,null,null,null,null,null,null,null,null,null,null,null,null,null,null,null,null,null,null,null,null,null,null,null,null,null,null,null,null,null,null,null,null,"MOOE","Budgetary Support to GOCCs - Parks, Plazas and Monuments","5021404010"]
[null,null,null,null,null,null,null,null,null,null,null,null,null,null,null,null,null,null,null,null,null,null,null,null,null,null,null,null,null,null,null,null,null,null,null,"MOOE","Budgetary Support to GOCCs - Other Infrastructure Assets","5021404099"]
[null,null,null,null,null,null,null,null,null,null,null,null,null,null,null,null,null,null,null,null,null,null,null,null,null,null,null,null,null,null,null,null,null,null,null,"MOOE","Financial Assistance to NGOs/POs","5021405000"]
[null,null,null,null,null,null,null,null,null,null,null,null,null,null,null,null,null,null,null,null,null,null,null,null,null,null,null,null,null,null,null,null,null,null,null,"MOOE","Internal Revenue Allotment","5021406000"]
[null,null,null,null,null,null,null,null,null,null,null,null,null,null,null,null,null,null,null,null,null,null,null,null,null,null,null,null,null,null,null,null,null,null,null,"MOOE","Subsidies - Others","5021499000"]
[null,null,null,null,null,null,null,null,null,null,null,null,null,null,null,null,null,null,null,null,null,null,null,null,null,null,null,null,null,null,null,null,null,null,null,"MOOE","Taxes, Duties and Licenses.","5021501001"]
[null,null,null,null,null,null,null,null,null,null,null,null,null,null,null,null,null,null,null,null,null,null,null,null,null,null,null,null,null,null,null,null,null,null,null,"MOOE","Tax Refund Expense","5021501002"]
[null,null,null,null,null,null,null,null,null,null,null,null,null,null,null,null,null,null,null,null,null,null,null,null,null,null,null,null,null,null,null,null,null,null,null,"MOOE","Fidelity Bond Premiums","5021502000"]
[null,null,null,null,null,null,null,null,null,null,null,null,null,null,null,null,null,null,null,null,null,null,null,null,null,null,null,null,null,null,null,null,null,null,null,"MOOE","Insurance Expenses","5021503000"]
[null,null,null,null,null,null,null,null,null,null,null,null,null,null,null,null,null,null,null,null,null,null,null,null,null,null,null,null,null,null,null,null,null,null,null,"MOOE","Labor and Wages","5021601000"]
[null,null,null,null,null,null,null,null,null,null,null,null,null,null,null,null,null,null,null,null,null,null,null,null,null,null,null,null,null,null,null,null,null,null,null,"MOOE","Advertising Expenses","5029901000"]
[null,null,null,null,null,null,null,null,null,null,null,null,null,null,null,null,null,null,null,null,null,null,null,null,null,null,null,null,null,null,null,null,null,null,null,"MOOE","Printing and Publication Expenses","5029902000"]
[null,null,null,null,null,null,null,null,null,null,null,null,null,null,null,null,null,null,null,null,null,null,null,null,null,null,null,null,null,null,null,null,null,null,null,"MOOE","Representation Expenses","5029903000"]
[null,null,null,null,null,null,null,null,null,null,null,null,null,null,null,null,null,null,null,null,null,null,null,null,null,null,null,null,null,null,null,null,null,null,null,"MOOE","Transportation and Delivery Expenses","5029904000"]
[null,null,null,null,null,null,null,null,null,null,null,null,null,null,null,null,null,null,null,null,null,null,null,null,null,null,null,null,null,null,null,null,null,null,null,"MOOE","Rents - Buildings and Structures","5029905001"]
[null,null,null,null,null,null,null,null,null,null,null,null,null,null,null,null,null,null,null,null,null,null,null,null,null,null,null,null,null,null,null,null,null,null,null,"MOOE","Rents - Land","5029905002"]
[null,null,null,null,null,null,null,null,null,null,null,null,null,null,null,null,null,null,null,null,null,null,null,null,null,null,null,null,null,null,null,null,null,null,null,"MOOE","Rents - Motor Vehicles","5029905003"]
[null,null,null,null,null,null,null,null,null,null,null,null,null,null,null,null,null,null,null,null,null,null,null,null,null,null,null,null,null,null,null,null,null,null,null,"MOOE","Rents - Equipment","5029905004"]
[null,null,null,null,null,null,null,null,null,null,null,null,null,null,null,null,null,null,null,null,null,null,null,null,null,null,null,null,null,null,null,null,null,null,null,"MOOE","Rents - Living Quarters","5029905005"]
[null,null,null,null,null,null,null,null,null,null,null,null,null,null,null,null,null,null,null,null,null,null,null,null,null,null,null,null,null,null,null,null,null,null,null,"MOOE","Operating Lease","5029905006"]
[null,null,null,null,null,null,null,null,null,null,null,null,null,null,null,null,null,null,null,null,null,null,null,null,null,null,null,null,null,null,null,null,null,null,null,"MOOE","Financial Lease","5029905007"]
[null,null,null,null,null,null,null,null,null,null,null,null,null,null,null,null,null,null,null,null,null,null,null,null,null,null,null,null,null,null,null,null,null,null,null,"MOOE","Membership Dues and Contributions to Organizations","5029906000"]
[null,null,null,null,null,null,null,null,null,null,null,null,null,null,null,null,null,null,null,null,null,null,null,null,null,null,null,null,null,null,null,null,null,null,null,"MOOE","Subscriptions Expenses","5029907000"]
[null,null,null,null,null,null,null,null,null,null,null,null,null,null,null,null,null,null,null,null,null,null,null,null,null,null,null,null,null,null,null,null,null,null,null,"MOOE","Donations","5029908000"]
[null,null,null,null,null,null,null,null,null,null,null,null,null,null,null,null,null,null,null,null,null,null,null,null,null,null,null,null,null,null,null,null,null,null,null,"MOOE","Litigation/Acquired Assets Expenses","5029909000"]
[null,null,null,null,null,null,null,null,null,null,null,null,null,null,null,null,null,null,null,null,null,null,null,null,null,null,null,null,null,null,null,null,null,null,null,"MOOE","Website Maintenance","5029999001"]
[null,null,null,null,null,null,null,null,null,null,null,null,null,null,null,null,null,null,null,null,null,null,null,null,null,null,null,null,null,null,null,null,null,null,null,"MOOE","Other Maintenance and Operating Expenses.","5029999099"]
[null,null,null,null,null,null,null,null,null,null,null,null,null,null,null,null,null,null,null,null,null,null,null,null,null,null,null,null,null,null,null,null,null,null,null,"MOOE","Management Supervision/Trusteeship Fees","5030101000"]
[null,null,null,null,null,null,null,null,null,null,null,null,null,null,null,null,null,null,null,null,null,null,null,null,null,null,null,null,null,null,null,null,null,null,null,"MOOE","Interest Paid to Non-Residents","5030102001"]
[null,null,null,null,null,null,null,null,null,null,null,null,null,null,null,null,null,null,null,null,null,null,null,null,null,null,null,null,null,null,null,null,null,null,null,"MOOE","Interest Paid to Residents Other than General Government","5030102002"]
[null,null,null,null,null,null,null,null,null,null,null,null,null,null,null,null,null,null,null,null,null,null,null,null,null,null,null,null,null,null,null,null,null,null,null,"MOOE","Interest Paid to Other General Government Units","5030102003"]
[null,null,null,null,null,null,null,null,null,null,null,null,null,null,null,null,null,null,null,null,null,null,null,null,null,null,null,null,null,null,null,null,null,null,null,"MOOE","Guarantee Fees","5030103000"]
[null,null,null,null,null,null,null,null,null,null,null,null,null,null,null,null,null,null,null,null,null,null,null,null,null,null,null,null,null,null,null,null,null,null,null,"MOOE","Bank Charges","5030104000"]
[null,null,null,null,null,null,null,null,null,null,null,null,null,null,null,null,null,null,null,null,null,null,null,null,null,null,null,null,null,null,null,null,null,null,null,"MOOE","Commitment Fees","5030105000"]
[null,null,null,null,null,null,null,null,null,null,null,null,null,null,null,null,null,null,null,null,null,null,null,null,null,null,null,null,null,null,null,null,null,null,null,"MOOE","Other Financial Charges","5030199000"]
[null,null,null,null,null,null,null,null,null,null,null,null,null,null,null,null,null,null,null,null,null,null,null,null,null,null,null,null,null,null,null,null,null,null,null,"CO","Investment in Associates","5060102000"]
[null,null,null,null,null,null,null,null,null,null,null,null,null,null,null,null,null,null,null,null,null,null,null,null,null,null,null,null,null,null,null,null,null,null,null,"CO","Investment in Government-Owned and/or Controlled Corporations (GOCCs).","5060101001"]
[null,null,null,null,null,null,null,null,null,null,null,null,null,null,null,null,null,null,null,null,null,null,null,null,null,null,null,null,null,null,null,null,null,null,null,"CO","Investment in GOCCs - Road Network","5060101002"]
[null,null,null,null,null,null,null,null,null,null,null,null,null,null,null,null,null,null,null,null,null,null,null,null,null,null,null,null,null,null,null,null,null,null,null,"CO","Investment in GOCCs - Flood Control Systems","5060101003"]
[null,null,null,null,null,null,null,null,null,null,null,null,null,null,null,null,null,null,null,null,null,null,null,null,null,null,null,null,null,null,null,null,null,null,null,"CO","Investment in GOCCs - Sewer Systems","5060101004"]
[null,null,null,null,null,null,null,null,null,null,null,null,null,null,null,null,null,null,null,null,null,null,null,null,null,null,null,null,null,null,null,null,null,null,null,"CO","Investment in GOCCs - Water Supply Systems","5060101005"]
[null,null,null,null,null,null,null,null,null,null,null,null,null,null,null,null,null,null,null,null,null,null,null,null,null,null,null,null,null,null,null,null,null,null,null,"CO","Investment in GOCCs - Power Supply Systems","5060101006"]
[null,null,null,null,null,null,null,null,null,null,null,null,null,null,null,null,null,null,null,null,null,null,null,null,null,null,null,null,null,null,null,null,null,null,null,"CO","Investment in GOCCs - Comunication Networks","5060101007"]
[null,null,null,null,null,null,null,null,null,null,null,null,null,null,null,null,null,null,null,null,null,null,null,null,null,null,null,null,null,null,null,null,null,null,null,"CO","Investment in GOCCs - Seaport Systems","5060101008"]
[null,null,null,null,null,null,null,null,null,null,null,null,null,null,null,null,null,null,null,null,null,null,null,null,null,null,null,null,null,null,null,null,null,null,null,"CO","Investment in GOCCs - Airport Systems","5060101009"]
[null,null,null,null,null,null,null,null,null,null,null,null,null,null,null,null,null,null,null,null,null,null,null,null,null,null,null,null,null,null,null,null,null,null,null,"CO","Investment in GOCCs - Parks, Plazas and Monuments","5060101010"]
[null,null,null,null,null,null,null,null,null,null,null,null,null,null,null,null,null,null,null,null,null,null,null,null,null,null,null,null,null,null,null,null,null,null,null,"CO","Investment in GOCCs - Other Infrastructure Assets","5060101099"]
[null,null,null,null,null,null,null,null,null,null,null,null,null,null,null,null,null,null,null,null,null,null,null,null,null,null,null,null,null,null,null,null,null,null,null,"CO","Loans Outlay - GOCCs","5060201000"]
[null,null,null,null,null,null,null,null,null,null,null,null,null,null,null,null,null,null,null,null,null,null,null,null,null,null,null,null,null,null,null,null,null,null,null,"CO","Loans Outlay - LGUs","5060202000"]
[null,null,null,null,null,null,null,null,null,null,null,null,null,null,null,null,null,null,null,null,null,null,null,null,null,null,null,null,null,null,null,null,null,null,null,"CO","Loans Outlay - Others","5060209900"]
[null,null,null,null,null,null,null,null,null,null,null,null,null,null,null,null,null,null,null,null,null,null,null,null,null,null,null,null,null,null,null,null,null,null,null,"CO","Investment Property Outlay - Land","5060301001"]
[null,null,null,null,null,null,null,null,null,null,null,null,null,null,null,null,null,null,null,null,null,null,null,null,null,null,null,null,null,null,null,null,null,null,null,"CO","Investment Property Outlay - Buildings","5060301002"]
[null,null,null,null,null,null,null,null,null,null,null,null,null,null,null,null,null,null,null,null,null,null,null,null,null,null,null,null,null,null,null,null,null,null,null,"CO","Land Outlay - Land","5060401001"]
[null,null,null,null,null,null,null,null,null,null,null,null,null,null,null,null,null,null,null,null,null,null,null,null,null,null,null,null,null,null,null,null,null,null,null,"CO","Land Improvements Outlay, Aquaculture Structures","5060402001"]
[null,null,null,null,null,null,null,null,null,null,null,null,null,null,null,null,null,null,null,null,null,null,null,null,null,null,null,null,null,null,null,null,null,null,null,"CO","Land Improvements Outlay, Reforestation Projects","5060402002"]
[null,null,null,null,null,null,null,null,null,null,null,null,null,null,null,null,null,null,null,null,null,null,null,null,null,null,null,null,null,null,null,null,null,null,null,"CO","Other Land Improvements Outlay","5060402099"]
[null,null,null,null,null,null,null,null,null,null,null,null,null,null,null,null,null,null,null,null,null,null,null,null,null,null,null,null,null,null,null,null,null,null,null,"CO","Infrastructure Outlay - Road Networks","5060403001"]
[null,null,null,null,null,null,null,null,null,null,null,null,null,null,null,null,null,null,null,null,null,null,null,null,null,null,null,null,null,null,null,null,null,null,null,"CO","Infrastructure Outlay - Flood Control Systems","5060403002"]
[null,null,null,null,null,null,null,null,null,null,null,null,null,null,null,null,null,null,null,null,null,null,null,null,null,null,null,null,null,null,null,null,null,null,null,"CO","Infrastructure Outlay - Sewer Systems","5060403003"]
[null,null,null,null,null,null,null,null,null,null,null,null,null,null,null,null,null,null,null,null,null,null,null,null,null,null,null,null,null,null,null,null,null,null,null,"CO","Infrastructure Outlay - Water Supply Systems","5060403004"]
[null,null,null,null,null,null,null,null,null,null,null,null,null,null,null,null,null,null,null,null,null,null,null,null,null,null,null,null,null,null,null,null,null,null,null,"CO","Infrastructure Outlay - Power Supply Systems","5060403005"]
[null,null,null,null,null,null,null,null,null,null,null,null,null,null,null,null,null,null,null,null,null,null,null,null,null,null,null,null,null,null,null,null,null,null,null,"CO","Infrastructure Outlay - Communication Networks","5060403006"]
[null,null,null,null,null,null,null,null,null,null,null,null,null,null,null,null,null,null,null,null,null,null,null,null,null,null,null,null,null,null,null,null,null,null,null,"CO","Infrastructure Outlay - Seaport Systems","5060403007"]
[null,null,null,null,null,null,null,null,null,null,null,null,null,null,null,null,null,null,null,null,null,null,null,null,null,null,null,null,null,null,null,null,null,null,null,"CO","Infrastructure Outlay - Airport Systems","5060403008"]
[null,null,null,null,null,null,null,null,null,null,null,null,null,null,null,null,null,null,null,null,null,null,null,null,null,null,null,null,null,null,null,null,null,null,null,"CO","Infrastructure Outlay - Parks, Plazas and Monuments","5060403009"]
[null,null,null,null,null,null,null,null,null,null,null,null,null,null,null,null,null,null,null,null,null,null,null,null,null,null,null,null,null,null,null,null,null,null,null,"CO","Infrastructure Outlay - Other Infrastructure Assets","5060403099"]
[null,null,null,null,null,null,null,null,null,null,null,null,null,null,null,null,null,null,null,null,null,null,null,null,null,null,null,null,null,null,null,null,null,null,null,"CO","Buildings and Structures Outlay - Buildings","5060404001"]
[null,null,null,null,null,null,null,null,null,null,null,null,null,null,null,null,null,null,null,null,null,null,null,null,null,null,null,null,null,null,null,null,null,null,null,"CO","Buildings and Structures Outlay - School Buildings","5060404002"]
[null,null,null,null,null,null,null,null,null,null,null,null,null,null,null,null,null,null,null,null,null,null,null,null,null,null,null,null,null,null,null,null,null,null,null,"CO","Buildings and Structures Outlay - Hospitals and Health Centers","5060404003"]
[null,null,null,null,null,null,null,null,null,null,null,null,null,null,null,null,null,null,null,null,null,null,null,null,null,null,null,null,null,null,null,null,null,null,null,"CO","Buildings and Structures Outlay - Markets","5060404004"]
[null,null,null,null,null,null,null,null,null,null,null,null,null,null,null,null,null,null,null,null,null,null,null,null,null,null,null,null,null,null,null,null,null,null,null,"CO","Buildings and Structures Outlay - Slaughterhouses","5060404005"]
[null,null,null,null,null,null,null,null,null,null,null,null,null,null,null,null,null,null,null,null,null,null,null,null,null,null,null,null,null,null,null,null,null,null,null,"CO","Buildings and Structures Outlay - Hostels and Dormitories","5060404006"]
[null,null,null,null,null,null,null,null,null,null,null,null,null,null,null,null,null,null,null,null,null,null,null,null,null,null,null,null,null,null,null,null,null,null,null,"CO","Buildings and Structures Outlay - Ground Water Monitoring Stations","5060404007"]
[null,null,null,null,null,null,null,null,null,null,null,null,null,null,null,null,null,null,null,null,null,null,null,null,null,null,null,null,null,null,null,null,null,null,null,"CO","Buildings and Structures Outlay - Other Structures","5060404099"]
[null,null,null,null,null,null,null,null,null,null,null,null,null,null,null,null,null,null,null,null,null,null,null,null,null,null,null,null,null,null,null,null,null,null,null,"CO","Machinery and Equipment Outlay - Machinery","5060405001"]
[null,null,null,null,null,null,null,null,null,null,null,null,null,null,null,null,null,null,null,null,null,null,null,null,null,null,null,null,null,null,null,null,null,null,null,"CO","Machinery and Equipment Outlay - Office Equipment","5060405002"]
[null,null,null,null,null,null,null,null,null,null,null,null,null,null,null,null,null,null,null,null,null,null,null,null,null,null,null,null,null,null,null,null,null,null,null,"CO","Machinery and Equipment Outlay - Information and Communication Technology Equipment","5060405003"]
[null,null,null,null,null,null,null,null,null,null,null,null,null,null,null,null,null,null,null,null,null,null,null,null,null,null,null,null,null,null,null,null,null,null,null,"CO","Machinery and Equipment Outlay - Agricultural and Forestry Equipment","5060405004"]
[null,null,null,null,null,null,null,null,null,null,null,null,null,null,null,null,null,null,null,null,null,null,null,null,null,null,null,null,null,null,null,null,null,null,null,"CO","Machinery and Equipment Outlay - Marine and Fishery Equipment","5060405005"]
[null,null,null,null,null,null,null,null,null,null,null,null,null,null,null,null,null,null,null,null,null,null,null,null,null,null,null,null,null,null,null,null,null,null,null,"CO","Machinery and Equipment Outlay - Airport Equipment","5060405006"]
[null,null,null,null,null,null,null,null,null,null,null,null,null,null,null,null,null,null,null,null,null,null,null,null,null,null,null,null,null,null,null,null,null,null,null,"CO","Machinery and Equipment Outlay - Communication Equipment","5060405007"]
[null,null,null,null,null,null,null,null,null,null,null,null,null,null,null,null,null,null,null,null,null,null,null,null,null,null,null,null,null,null,null,null,null,null,null,"CO","Machinery and Equipment Outlay - Construction and Heavy Equipment","5060405008"]
[null,null,null,null,null,null,null,null,null,null,null,null,null,null,null,null,null,null,null,null,null,null,null,null,null,null,null,null,null,null,null,null,null,null,null,"CO","Machinery and Equipment Outlay - Disaster Response and Rescue Equipment","5060405009"]
[null,null,null,null,null,null,null,null,null,null,null,null,null,null,null,null,null,null,null,null,null,null,null,null,null,null,null,null,null,null,null,null,null,null,null,"CO","Machinery and Equipment Outlay - Military, Police and Security Equipment","5060405010"]
[null,null,null,null,null,null,null,null,null,null,null,null,null,null,null,null,null,null,null,null,null,null,null,null,null,null,null,null,null,null,null,null,null,null,null,"CO","Machinery and Equipment Outlay - Medical Equipment","5060405011"]
[null,null,null,null,null,null,null,null,null,null,null,null,null,null,null,null,null,null,null,null,null,null,null,null,null,null,null,null,null,null,null,null,null,null,null,"CO","Machinery and Equipment Outlay - Printing Equipment","5060405012"]
[null,null,null,null,null,null,null,null,null,null,null,null,null,null,null,null,null,null,null,null,null,null,null,null,null,null,null,null,null,null,null,null,null,null,null,"CO","Machinery and Equipment Outlay - Sports Equipment","5060405013"]
[null,null,null,null,null,null,null,null,null,null,null,null,null,null,null,null,null,null,null,null,null,null,null,null,null,null,null,null,null,null,null,null,null,null,null,"CO","Machinery and Equipment Outlay - Technical and Scientific Equipment","5060405014"]
[null,null,null,null,null,null,null,null,null,null,null,null,null,null,null,null,null,null,null,null,null,null,null,null,null,null,null,null,null,null,null,null,null,null,null,"CO","Transportation Equipment Outlay - Motor Vehicles","5060406001"]
[null,null,null,null,null,null,null,null,null,null,null,null,null,null,null,null,null,null,null,null,null,null,null,null,null,null,null,null,null,null,null,null,null,null,null,"CO","Transportation Equipment Outlay - Trains","5060406002"]
[null,null,null,null,null,null,null,null,null,null,null,null,null,null,null,null,null,null,null,null,null,null,null,null,null,null,null,null,null,null,null,null,null,null,null,"CO","Transportation Equipment Outlay - Aircraft and Aircraft Ground Equipment","5060406003"]
[null,null,null,null,null,null,null,null,null,null,null,null,null,null,null,null,null,null,null,null,null,null,null,null,null,null,null,null,null,null,null,null,null,null,null,"CO","Transportation Equipment Outlay - Watercrafts","5060406004"]
[null,null,null,null,null,null,null,null,null,null,null,null,null,null,null,null,null,null,null,null,null,null,null,null,null,null,null,null,null,null,null,null,null,null,null,"CO","Transportation Equipment Outlay - Other Transportation Equipment","5060406099"]
[null,null,null,null,null,null,null,null,null,null,null,null,null,null,null,null,null,null,null,null,null,null,null,null,null,null,null,null,null,null,null,null,null,null,null,"CO","Furniture, Fixtures and Books Outlay - Furniture and Fixtures","5060407001"]
[null,null,null,null,null,null,null,null,null,null,null,null,null,null,null,null,null,null,null,null,null,null,null,null,null,null,null,null,null,null,null,null,null,null,null,"CO","Furniture, Fixtures and Books Outlay - Books","5060407002"]
[null,null,null,null,null,null,null,null,null,null,null,null,null,null,null,null,null,null,null,null,null,null,null,null,null,null,null,null,null,null,null,null,null,null,null,"CO","Heritage Assets Outlay - Historical Buildings","5060408001"]
[null,null,null,null,null,null,null,null,null,null,null,null,null,null,null,null,null,null,null,null,null,null,null,null,null,null,null,null,null,null,null,null,null,null,null,"CO","Heritage Assets Outlay - Works of Arts and Archeological Specimens","5060408002"]
[null,null,null,null,null,null,null,null,null,null,null,null,null,null,null,null,null,null,null,null,null,null,null,null,null,null,null,null,null,null,null,null,null,null,null,"CO","Heritage Assets Outlay - Other Heritage Assets","5060408099"]
[null,null,null,null,null,null,null,null,null,null,null,null,null,null,null,null,null,null,null,null,null,null,null,null,null,null,null,null,null,null,null,null,null,null,null,"CO","Other Property, Plant and Equipment Outlay - Work/Zoo Animals","5060409001"]
[null,null,null,null,null,null,null,null,null,null,null,null,null,null,null,null,null,null,null,null,null,null,null,null,null,null,null,null,null,null,null,null,null,null,null,"CO","Other Property, Plant and Equipment Outlay - Other Property, Plant and Equipment","5060409099"]
[null,null,null,null,null,null,null,null,null,null,null,null,null,null,null,null,null,null,null,null,null,null,null,null,null,null,null,null,null,null,null,null,null,null,null,null,"Due from Officers and Employees","1-03-05-020-00"]
[null,null,null,null,null,null,null,null,null,null,null,null,null,null,null,null,null,null,null,null,null,null,null,null,null,null,null,null,null,null,null,null,null,null,null,null,"Advances for Special Disbursing Officers","1-99-01-030-00"]
[null,null,null,null,null,null,null,null,null,null,null,null,null,null,null,null,null,null,null,null,null,null,null,null,null,null,null,null,null,null,null,null,null,null,null,null,"Advances to Officers and Employees","1-99-01-040-00"]
[null,null,null,null,null,null,null,null,null,null,null,null,null,null,null,null,null,null,null,null,null,null,null,null,null,null,null,null,null,null,null,null,null,null,null,null,"Advances to Contractors","1-99-02-010-00"]
[null,null,null,null,null,null,null,null,null,null,null,null,null,null,null,null,null,null,null,null,null,null,null,null,null,null,null,null,null,null,null,null,null,null,null,null,"Accounts Payable","2-01-01-010-00"]
[null,null,null,null,null,null,null,null,null,null,null,null,null,null,null,null,null,null,null,null,null,null,null,null,null,null,null,null,null,null,null,null,null,null,null,null,"Due to Officers and Employees","2-01-01-020-00"]
[null,null,null,null,null,null,null,null,null,null,null,null,null,null,null,null,null,null,null,null,null,null,null,null,null,null,null,null,null,null,null,null,null,null,null,null,"Due to BIR","2-02-01-010-00"]
[null,null,null,null,null,null,null,null,null,null,null,null,null,null,null,null,null,null,null,null,null,null,null,null,null,null,null,null,null,null,null,null,null,null,null,null,"Due to NGAs","2-02-01-050-00"]
[null,null,null,null,null,null,null,null,null,null,null,null,null,null,null,null,null,null,null,null,null,null,null,null,null,null,null,null,null,null,null,null,null,null,null,null,"Due to LGUs","2-02-01-070-00"]
[null,null,null,null,null,null,null,null,null,null,null,null,null,null,null,null,null,null,null,null,null,null,null,null,null,null,null,null,null,null,null,null,null,null,null,null,"Due to Central Office","2-03-01-010-00"]
[null,null,null,null,null,null,null,null,null,null,null,null,null,null,null,null,null,null,null,null,null,null,null,null,null,null,null,null,null,null,null,null,null,null,null,null,"Due to Regional Offices","2-03-01-030-00"]
[null,null,null,null,null,null,null,null,null,null,null,null,null,null,null,null,null,null,null,null,null,null,null,null,null,null,null,null,null,null,null,null,null,null,null,null,"Guaranty Deposits Payable","2-04-01-040-00"]
[null,null,null,null,null,null,null,null,null,null,null,null,null,null,null,null,null,null,null,null,null,null,null,null,null,null,null,null,null,null,null,null,null,null,null,null,"Other Payables","2-99-99-990-00"]
[null,null,null,null,null,null,null,null,null,null,null,null,null,null,null,null,null,null,null,null,null,null,null,null,null,null,null,null,null,null,null,null,null,null,null,null,"Prior Year Expenses","3-01-01-010-00"]
[]
[]
[null,null,null,null,null,null,null,null,null,null,null,null,null,null,null,null,null,null,null,null,null,null,null,null,null,null,null,null,null,null,null,null,null,null,null,null,"General Fund","1 01 101"]
[]
[]
[]
[]
[null,null,null,null,null,null,null,null,null,null,null,null,null,null,null,null,null,null,null,null,null,null,null,null,null,null,null,null,null,null,null,null,null,null,null,null,"Elementary",302050002]
[null,null,null,null,null,null,null,null,null,null,null,null,null,null,null,null,null,null,null,null,null,null,null,null,null,null,null,null,null,null,null,null,null,null,null,null,"Secondary",302050003]
[]
[]
[null,null,null,null,null,null,null,null,null,null,null,null,null,null,null,null,null,null,null,null,null,null,null,null,null,null,null,null,null,null,null,null,null,null,null,null,null,"Gross","WHT on Income","WHT on Business","NET",null,null,"Income","Business"]
[null,null,null,null,null,null,null,null,null,null,null,null,null,null,null,null,null,null,null,null,null,null,null,null,null,null,null,null,null,null,null,null,null,null,null,null,"Goods-VAT",{"$f":"+$AI$7","v":0},{"$f":"ROUND(AL299/1.12*0.01,2)","v":0},{"$f":"ROUND(AL299/1.12*0.05,2)","v":0},{"$f":"+AL299-AM299-AN299","v":0},"BIR Form 2307","BIR Form 2306","WI640","WV010"]
[null,null,null,null,null,null,null,null,null,null,null,null,null,null,null,null,null,null,null,null,null,null,null,null,null,null,null,null,null,null,null,null,null,null,null,null,"Goods-non VAT",{"$f":"+$AI$7","v":0},{"$f":"ROUND(AL300*0.01,2)","v":0},{"$f":"ROUND(AL300*0.03,2)","v":0},{"$f":"+AL300-AM300-AN300","v":0},"BIR Form 2307","BIR Form 2307","WI640","WB080"]
[null,null,null,null,null,null,null,null,null,null,null,null,null,null,null,null,null,null,null,null,null,null,null,null,null,null,null,null,null,null,null,null,null,null,null,null,"Services-VAT",0,{"$f":"ROUND(AL301/1.12*0.02,2)","v":0},{"$f":"ROUND(AL301/1.12*0.05,2)","v":0},0,"BIR Form 2307","BIR Form 2306","WI157","WV020"]
[null,null,null,null,null,null,null,null,null,null,null,null,null,null,null,null,null,null,null,null,null,null,null,null,null,null,null,null,null,null,null,null,null,null,null,null,"Services-Non VAT",0,{"$f":"ROUND(AL302*0.02,2)","v":0},{"$f":"ROUND(AL302*0.03,2)","v":0},0,"BIR Form 2307","BIR Form 2307","WI157","WB080"]
[null,null,null,null,null,null,null,null,null,null,null,null,null,null,null,null,null,null,null,null,null,null,null,null,null,null,null,null,null,null,null,null,null,null,null,null,"Not applicable",0,null,null,0,"n/a","n/a","n/a","n/a"]

{"sheet":"Sheet4","index":7,"n_rows":1000,"n_cols":2,"rows_kept":1000,"cut":false,"hidden":true,"merged":[]}
["Digit","Word"]
[1,"One"]
[2,"Two"]
[3,"Three"]
[4,"Four"]
[5,"Five"]
[6,"Six"]
[7,"Seven"]
[8,"Eight"]
[9,"Nine"]
[10,"Ten"]
[11,"Eleven"]
[12,"Twelve"]
[13,"Thirteen"]
[14,"Fourteen"]
[15,"Fifteen"]
[16,"Sixteen"]
[17,"Seventeen"]
[18,"Eighteen"]
[19,"Nineteen"]
[20,"Twenty"]
[21,"Twenty One"]
[22,"Twenty Two"]
[23,"Twenty Three"]
[24,"Twenty Four"]
[25,"Twenty Five"]
[26,"Twenty Six"]
[27,"Twenty Seven"]
[28,"Twenty Eight"]
[29,"Twenty Nine"]
[30,"Thirty"]
[31,"Thirty One"]
[32,"Thirty Two"]
[33,"Thirty Three"]
[34,"Thirty Four"]
[35,"Thirty Five"]
[36,"Thirty Six"]
[37,"Thirty Seven"]
[38,"Thirty Eight"]
[39,"Thirty Nine"]
[40,"Forty"]
[41,"Forty One"]
[42,"Forty Two"]
[43,"Forty Three"]
[44,"Forty Four"]
[45,"Forty Five"]
[46,"Forty Six"]
[47,"Forty Seven"]
[48,"Forty Eight"]
[49,"Forty Nine"]
[50,"Fifty"]
[51,"Fifty One"]
[52,"Fifty Two"]
[53,"Fifty Three"]
[54,"Fifty Four"]
[55,"Fifty Five"]
[56,"Fifty Six"]
[57,"Fifty Seven"]
[58,"Fifty Eight"]
[59,"Fifty Nine"]
[60,"Sixty"]
[61,"Sixty One"]
[62,"Sixty Two"]
[63,"Sixty Three"]
[64,"Sixty Four"]
[65,"Sixty Five"]
[66,"Sixty Six"]
[67,"Sixty Seven"]
[68,"Sixty Eight"]
[69,"Sixty Nine"]
[70,"Seventy"]
[71,"Seventy One"]
[72,"Seventy Two"]
[73,"Seventy Three"]
[74,"Seventy Four"]
[75,"Seventy Five"]
[76,"Seventy Six"]
[77,"Seventy Seven"]
[78,"Seventy Eight"]
[79,"Seventy Nine"]
[80,"Eighty"]
[81,"Eighty One"]
[82,"Eighty Two"]
[83,"Eighty Three"]
[84,"Eighty Four"]
[85,"Eighty Five"]
[86,"Eighty Six"]
[87,"Eighty Seven"]
[88,"Eighty Eight"]
[89,"Eighty Nine"]
[90,"Ninety"]
[91,"Ninety One"]
[92,"Ninety Two"]
[93,"Ninety Three"]
[94,"Ninety Four"]
[95,"Ninety Five"]
[96,"Ninety Six"]
[97,"Ninety Seven"]
[98,"Ninety Eight"]
[99,"Ninety Nine"]
[100,"One Hundred"]
[101,"One Hundred One"]
[102,"One Hundred Two"]
[103,"One Hundred Three"]
[104,"One Hundred Four"]
[105,"One Hundred Five"]
[106,"One Hundred Six"]
[107,"One Hundred Seven"]
[108,"One Hundred Eight"]
[109,"One Hundred Nine"]
[110,"One Hundred Ten"]
[111,"One Hundred Eleven"]
[112,"One Hundred Twelve"]
[113,"One Hundred Thirteen"]
[114,"One Hundred Fourteen"]
[115,"One Hundred Fifteen"]
[116,"One Hundred Sixteen"]
[117,"One Hundred Seventeen"]
[118,"One Hundred Eighteen"]
[119,"One Hundred Nineteen"]
[120,"One Hundred Twenty"]
[121,"One Hundred Twenty One"]
[122,"One Hundred Twenty Two"]
[123,"One Hundred Twenty Three"]
[124,"One Hundred Twenty Four"]
[125,"One Hundred Twenty Five"]
[126,"One Hundred Twenty Six"]
[127,"One Hundred Twenty Seven"]
[128,"One Hundred Twenty Eight"]
[129,"One Hundred Twenty Nine"]
[130,"One Hundred Thirty"]
[131,"One Hundred Thirty One"]
[132,"One Hundred Thirty Two"]
[133,"One Hundred Thirty Three"]
[134,"One Hundred Thirty Four"]
[135,"One Hundred Thirty Five"]
[136,"One Hundred Thirty Six"]
[137,"One Hundred Thirty Seven"]
[138,"One Hundred Thirty Eight"]
[139,"One Hundred Thirty Nine"]
[140,"One Hundred Forty"]
[141,"One Hundred Forty One"]
[142,"One Hundred Forty Two"]
[143,"One Hundred Forty Three"]
[144,"One Hundred Forty Four"]
[145,"One Hundred Forty Five"]
[146,"One Hundred Forty Six"]
[147,"One Hundred Forty Seven"]
[148,"One Hundred Forty Eight"]
[149,"One Hundred Forty Nine"]
[150,"One Hundred Fifty"]
[151,"One Hundred Fifty One"]
[152,"One Hundred Fifty Two"]
[153,"One Hundred Fifty Three"]
[154,"One Hundred Fifty Four"]
[155,"One Hundred Fifty Five"]
[156,"One Hundred Fifty Six"]
[157,"One Hundred Fifty Seven"]
[158,"One Hundred Fifty Eight"]
[159,"One Hundred Fifty Nine"]
[160,"One Hundred Sixty"]
[161,"One Hundred Sixty One"]
[162,"One Hundred Sixty Two"]
[163,"One Hundred Sixty Three"]
[164,"One Hundred Sixty Four"]
[165,"One Hundred Sixty Five"]
[166,"One Hundred Sixty Six"]
[167,"One Hundred Sixty Seven"]
[168,"One Hundred Sixty Eight"]
[169,"One Hundred Sixty Nine"]
[170,"One Hundred Seventy"]
[171,"One Hundred Seventy One"]
[172,"One Hundred Seventy Two"]
[173,"One Hundred Seventy Three"]
[174,"One Hundred Seventy Four"]
[175,"One Hundred Seventy Five"]
[176,"One Hundred Seventy Six"]
[177,"One Hundred Seventy Seven"]
[178,"One Hundred Seventy Eight"]
[179,"One Hundred Seventy Nine"]
[180,"One Hundred Eighty"]
[181,"One Hundred Eighty One"]
[182,"One Hundred Eighty Two"]
[183,"One Hundred Eighty Three"]
[184,"One Hundred Eighty Four"]
[185,"One Hundred Eighty Five"]
[186,"One Hundred Eighty Six"]
[187,"One Hundred Eighty Seven"]
[188,"One Hundred Eighty Eight"]
[189,"One Hundred Eighty Nine"]
[190,"One Hundred Ninety"]
[191,"One Hundred Ninety One"]
[192,"One Hundred Ninety Two"]
[193,"One Hundred Ninety Three"]
[194,"One Hundred Ninety Four"]
[195,"One Hundred Ninety Five"]
[196,"One Hundred Ninety Six"]
[197,"One Hundred Ninety Seven"]
[198,"One Hundred Ninety Eight"]
[199,"One Hundred Ninety Nine"]
[200,"Two Hundred"]
[201,"Two Hundred One"]
[202,"Two Hundred Two"]
[203,"Two Hundred Three"]
[204,"Two Hundred Four"]
[205,"Two Hundred Five"]
[206,"Two Hundred Six"]
[207,"Two Hundred Seven"]
[208,"Two Hundred Eight"]
[209,"Two Hundred Nine"]
[210,"Two Hundred Ten"]
[211,"Two Hundred Eleven"]
[212,"Two Hundred Twelve"]
[213,"Two Hundred Thirteen"]
[214,"Two Hundred Fourteen"]
[215,"Two Hundred Fifteen"]
[216,"Two Hundred Sixteen"]
[217,"Two Hundred Seventeen"]
[218,"Two Hundred Eighteen"]
[219,"Two Hundred Nineteen"]
[220,"Two Hundred Twenty"]
[221,"Two Hundred Twenty One"]
[222,"Two Hundred Twenty Two"]
[223,"Two Hundred Twenty Three"]
[224,"Two Hundred Twenty Four"]
[225,"Two Hundred Twenty Five"]
[226,"Two Hundred Twenty Six"]
[227,"Two Hundred Twenty Seven"]
[228,"Two Hundred Twenty Eight"]
[229,"Two Hundred Twenty Nine"]
[230,"Two Hundred Thirty"]
[231,"Two Hundred Thirty One"]
[232,"Two Hundred Thirty Two"]
[233,"Two Hundred Thirty Three"]
[234,"Two Hundred Thirty Four"]
[235,"Two Hundred Thirty Five"]
[236,"Two Hundred Thirty Six"]
[237,"Two Hundred Thirty Seven"]
[238,"Two Hundred Thirty Eight"]
[239,"Two Hundred Thirty Nine"]
[240,"Two Hundred Forty"]
[241,"Two Hundred Forty One"]
[242,"Two Hundred Forty Two"]
[243,"Two Hundred Forty Three"]
[244,"Two Hundred Forty Four"]
[245,"Two Hundred Forty Five"]
[246,"Two Hundred Forty Six"]
[247,"Two Hundred Forty Seven"]
[248,"Two Hundred Forty Eight"]
[249,"Two Hundred Forty Nine"]
[250,"Two Hundred Fifty"]
[251,"Two Hundred Fifty One"]
[252,"Two Hundred Fifty Two"]
[253,"Two Hundred Fifty Three"]
[254,"Two Hundred Fifty Four"]
[255,"Two Hundred Fifty Five"]
[256,"Two Hundred Fifty Six"]
[257,"Two Hundred Fifty Seven"]
[258,"Two Hundred Fifty Eight"]
[259,"Two Hundred Fifty Nine"]
[260,"Two Hundred Sixty"]
[261,"Two Hundred Sixty One"]
[262,"Two Hundred Sixty Two"]
[263,"Two Hundred Sixty Three"]
[264,"Two Hundred Sixty Four"]
[265,"Two Hundred Sixty Five"]
[266,"Two Hundred Sixty Six"]
[267,"Two Hundred Sixty Seven"]
[268,"Two Hundred Sixty Eight"]
[269,"Two Hundred Sixty Nine"]
[270,"Two Hundred Seventy"]
[271,"Two Hundred Seventy One"]
[272,"Two Hundred Seventy Two"]
[273,"Two Hundred Seventy Three"]
[274,"Two Hundred Seventy Four"]
[275,"Two Hundred Seventy Five"]
[276,"Two Hundred Seventy Six"]
[277,"Two Hundred Seventy Seven"]
[278,"Two Hundred Seventy Eight"]
[279,"Two Hundred Seventy Nine"]
[280,"Two Hundred Eighty"]
[281,"Two Hundred Eighty One"]
[282,"Two Hundred Eighty Two"]
[283,"Two Hundred Eighty Three"]
[284,"Two Hundred Eighty Four"]
[285,"Two Hundred Eighty Five"]
[286,"Two Hundred Eighty Six"]
[287,"Two Hundred Eighty Seven"]
[288,"Two Hundred Eighty Eight"]
[289,"Two Hundred Eighty Nine"]
[290,"Two Hundred Ninety"]
[291,"Two Hundred Ninety One"]
[292,"Two Hundred Ninety Two"]
[293,"Two Hundred Ninety Three"]
[294,"Two Hundred Ninety Four"]
[295,"Two Hundred Ninety Five"]
[296,"Two Hundred Ninety Six"]
[297,"Two Hundred Ninety Seven"]
[298,"Two Hundred Ninety Eight"]
[299,"Two Hundred Ninety Nine"]
[300,"Three Hundred"]
[301,"Three Hundred One"]
[302,"Three Hundred Two"]
[303,"Three Hundred Three"]
[304,"Three Hundred Four"]
[305,"Three Hundred Five"]
[306,"Three Hundred Six"]
[307,"Three Hundred Seven"]
[308,"Three Hundred Eight"]
[309,"Three Hundred Nine"]
[310,"Three Hundred Ten"]
[311,"Three Hundred Eleven"]
[312,"Three Hundred Twelve"]
[313,"Three Hundred Thirteen"]
[314,"Three Hundred Fourteen"]
[315,"Three Hundred Fifteen"]
[316,"Three Hundred Sixteen"]
[317,"Three Hundred Seventeen"]
[318,"Three Hundred Eighteen"]
[319,"Three Hundred Nineteen"]
[320,"Three Hundred Twenty"]
[321,"Three Hundred Twenty One"]
[322,"Three Hundred Twenty Two"]
[323,"Three Hundred Twenty Three"]
[324,"Three Hundred Twenty Four"]
[325,"Three Hundred Twenty Five"]
[326,"Three Hundred Twenty Six"]
[327,"Three Hundred Twenty Seven"]
[328,"Three Hundred Twenty Eight"]
[329,"Three Hundred Twenty Nine"]
[330,"Three Hundred Thirty"]
[331,"Three Hundred Thirty One"]
[332,"Three Hundred Thirty Two"]
[333,"Three Hundred Thirty Three"]
[334,"Three Hundred Thirty Four"]
[335,"Three Hundred Thirty Five"]
[336,"Three Hundred Thirty Six"]
[337,"Three Hundred Thirty Seven"]
[338,"Three Hundred Thirty Eight"]
[339,"Three Hundred Thirty Nine"]
[340,"Three Hundred Forty"]
[341,"Three Hundred Forty One"]
[342,"Three Hundred Forty Two"]
[343,"Three Hundred Forty Three"]
[344,"Three Hundred Forty Four"]
[345,"Three Hundred Forty Five"]
[346,"Three Hundred Forty Six"]
[347,"Three Hundred Forty Seven"]
[348,"Three Hundred Forty Eight"]
[349,"Three Hundred Forty Nine"]
[350,"Three Hundred Fifty"]
[351,"Three Hundred Fifty One"]
[352,"Three Hundred Fifty Two"]
[353,"Three Hundred Fifty Three"]
[354,"Three Hundred Fifty Four"]
[355,"Three Hundred Fifty Five"]
[356,"Three Hundred Fifty Six"]
[357,"Three Hundred Fifty Seven"]
[358,"Three Hundred Fifty Eight"]
[359,"Three Hundred Fifty Nine"]
[360,"Three Hundred Sixty"]
[361,"Three Hundred Sixty One"]
[362,"Three Hundred Sixty Two"]
[363,"Three Hundred Sixty Three"]
[364,"Three Hundred Sixty Four"]
[365,"Three Hundred Sixty Five"]
[366,"Three Hundred Sixty Six"]
[367,"Three Hundred Sixty Seven"]
[368,"Three Hundred Sixty Eight"]
[369,"Three Hundred Sixty Nine"]
[370,"Three Hundred Seventy"]
[371,"Three Hundred Seventy One"]
[372,"Three Hundred Seventy Two"]
[373,"Three Hundred Seventy Three"]
[374,"Three Hundred Seventy Four"]
[375,"Three Hundred Seventy Five"]
[376,"Three Hundred Seventy Six"]
[377,"Three Hundred Seventy Seven"]
[378,"Three Hundred Seventy Eight"]
[379,"Three Hundred Seventy Nine"]
[380,"Three Hundred Eighty"]
[381,"Three Hundred Eighty One"]
[382,"Three Hundred Eighty Two"]
[383,"Three Hundred Eighty Three"]
[384,"Three Hundred Eighty Four"]
[385,"Three Hundred Eighty Five"]
[386,"Three Hundred Eighty Six"]
[387,"Three Hundred Eighty Seven"]
[388,"Three Hundred Eighty Eight"]
[389,"Three Hundred Eighty Nine"]
[390,"Three Hundred Ninety"]
[391,"Three Hundred Ninety One"]
[392,"Three Hundred Ninety Two"]
[393,"Three Hundred Ninety Three"]
[394,"Three Hundred Ninety Four"]
[395,"Three Hundred Ninety Five"]
[396,"Three Hundred Ninety Six"]
[397,"Three Hundred Ninety Seven"]
[398,"Three Hundred Ninety Eight"]
[399,"Three Hundred Ninety Nine"]
[400,"Four Hundred"]
[401,"Four Hundred One"]
[402,"Four Hundred Two"]
[403,"Four Hundred Three"]
[404,"Four Hundred Four"]
[405,"Four Hundred Five"]
[406,"Four Hundred Six"]
[407,"Four Hundred Seven"]
[408,"Four Hundred Eight"]
[409,"Four Hundred Nine"]
[410,"Four Hundred Ten"]
[411,"Four Hundred Eleven"]
[412,"Four Hundred Twelve"]
[413,"Four Hundred Thirteen"]
[414,"Four Hundred Fourteen"]
[415,"Four Hundred Fifteen"]
[416,"Four Hundred Sixteen"]
[417,"Four Hundred Seventeen"]
[418,"Four Hundred Eighteen"]
[419,"Four Hundred Nineteen"]
[420,"Four Hundred Twenty"]
[421,"Four Hundred Twenty One"]
[422,"Four Hundred Twenty Two"]
[423,"Four Hundred Twenty Three"]
[424,"Four Hundred Twenty Four"]
[425,"Four Hundred Twenty Five"]
[426,"Four Hundred Twenty Six"]
[427,"Four Hundred Twenty Seven"]
[428,"Four Hundred Twenty Eight"]
[429,"Four Hundred Twenty Nine"]
[430,"Four Hundred Thirty"]
[431,"Four Hundred Thirty One"]
[432,"Four Hundred Thirty Two"]
[433,"Four Hundred Thirty Three"]
[434,"Four Hundred Thirty Four"]
[435,"Four Hundred Thirty Five"]
[436,"Four Hundred Thirty Six"]
[437,"Four Hundred Thirty Seven"]
[438,"Four Hundred Thirty Eight"]
[439,"Four Hundred Thirty Nine"]
[440,"Four Hundred Forty"]
[441,"Four Hundred Forty One"]
[442,"Four Hundred Forty Two"]
[443,"Four Hundred Forty Three"]
[444,"Four Hundred Forty Four"]
[445,"Four Hundred Forty Five"]
[446,"Four Hundred Forty Six"]
[447,"Four Hundred Forty Seven"]
[448,"Four Hundred Forty Eight"]
[449,"Four Hundred Forty Nine"]
[450,"Four Hundred Fifty"]
[451,"Four Hundred Fifty One"]
[452,"Four Hundred Fifty Two"]
[453,"Four Hundred Fifty Three"]
[454,"Four Hundred Fifty Four"]
[455,"Four Hundred Fifty Five"]
[456,"Four Hundred Fifty Six"]
[457,"Four Hundred Fifty Seven"]
[458,"Four Hundred Fifty Eight"]
[459,"Four Hundred Fifty Nine"]
[460,"Four Hundred Sixty"]
[461,"Four Hundred Sixty One"]
[462,"Four Hundred Sixty Two"]
[463,"Four Hundred Sixty Three"]
[464,"Four Hundred Sixty Four"]
[465,"Four Hundred Sixty Five"]
[466,"Four Hundred Sixty Six"]
[467,"Four Hundred Sixty Seven"]
[468,"Four Hundred Sixty Eight"]
[469,"Four Hundred Sixty Nine"]
[470,"Four Hundred Seventy"]
[471,"Four Hundred Seventy One"]
[472,"Four Hundred Seventy Two"]
[473,"Four Hundred Seventy Three"]
[474,"Four Hundred Seventy Four"]
[475,"Four Hundred Seventy Five"]
[476,"Four Hundred Seventy Six"]
[477,"Four Hundred Seventy Seven"]
[478,"Four Hundred Seventy Eight"]
[479,"Four Hundred Seventy Nine"]
[480,"Four Hundred Eighty"]
[481,"Four Hundred Eighty One"]
[482,"Four Hundred Eighty Two"]
[483,"Four Hundred Eighty Three"]
[484,"Four Hundred Eighty Four"]
[485,"Four Hundred Eighty Five"]
[486,"Four Hundred Eighty Six"]
[487,"Four Hundred Eighty Seven"]
[488,"Four Hundred Eighty Eight"]
[489,"Four Hundred Eighty Nine"]
[490,"Four Hundred Ninety"]
[491,"Four Hundred Ninety One"]
[492,"Four Hundred Ninety Two"]
[493,"Four Hundred Ninety Three"]
[494,"Four Hundred Ninety Four"]
[495,"Four Hundred Ninety Five"]
[496,"Four Hundred Ninety Six"]
[497,"Four Hundred Ninety Seven"]
[498,"Four Hundred Ninety Eight"]
[499,"Four Hundred Ninety Nine"]
[500,"Five Hundred"]
[501,"Five Hundred One"]
[502,"Five Hundred Two"]
[503,"Five Hundred Three"]
[504,"Five Hundred Four"]
[505,"Five Hundred Five"]
[506,"Five Hundred Six"]
[507,"Five Hundred Seven"]
[508,"Five Hundred Eight"]
[509,"Five Hundred Nine"]
[510,"Five Hundred Ten"]
[511,"Five Hundred Eleven"]
[512,"Five Hundred Twelve"]
[513,"Five Hundred Thirteen"]
[514,"Five Hundred Fourteen"]
[515,"Five Hundred Fifteen"]
[516,"Five Hundred Sixteen"]
[517,"Five Hundred Seventeen"]
[518,"Five Hundred Eighteen"]
[519,"Five Hundred Nineteen"]
[520,"Five Hundred Twenty"]
[521,"Five Hundred Twenty One"]
[522,"Five Hundred Twenty Two"]
[523,"Five Hundred Twenty Three"]
[524,"Five Hundred Twenty Four"]
[525,"Five Hundred Twenty Five"]
[526,"Five Hundred Twenty Six"]
[527,"Five Hundred Twenty Seven"]
[528,"Five Hundred Twenty Eight"]
[529,"Five Hundred Twenty Nine"]
[530,"Five Hundred Thirty"]
[531,"Five Hundred Thirty One"]
[532,"Five Hundred Thirty Two"]
[533,"Five Hundred Thirty Three"]
[534,"Five Hundred Thirty Four"]
[535,"Five Hundred Thirty Five"]
[536,"Five Hundred Thirty Six"]
[537,"Five Hundred Thirty Seven"]
[538,"Five Hundred Thirty Eight"]
[539,"Five Hundred Thirty Nine"]
[540,"Five Hundred Forty"]
[541,"Five Hundred Forty One"]
[542,"Five Hundred Forty Two"]
[543,"Five Hundred Forty Three"]
[544,"Five Hundred Forty Four"]
[545,"Five Hundred Forty Five"]
[546,"Five Hundred Forty Six"]
[547,"Five Hundred Forty Seven"]
[548,"Five Hundred Forty Eight"]
[549,"Five Hundred Forty Nine"]
[550,"Five Hundred Fifty"]
[551,"Five Hundred Fifty One"]
[552,"Five Hundred Fifty Two"]
[553,"Five Hundred Fifty Three"]
[554,"Five Hundred Fifty Four"]
[555,"Five Hundred Fifty Five"]
[556,"Five Hundred Fifty Six"]
[557,"Five Hundred Fifty Seven"]
[558,"Five Hundred Fifty Eight"]
[559,"Five Hundred Fifty Nine"]
[560,"Five Hundred Sixty"]
[561,"Five Hundred Sixty One"]
[562,"Five Hundred Sixty Two"]
[563,"Five Hundred Sixty Three"]
[564,"Five Hundred Sixty Four"]
[565,"Five Hundred Sixty Five"]
[566,"Five Hundred Sixty Six"]
[567,"Five Hundred Sixty Seven"]
[568,"Five Hundred Sixty Eight"]
[569,"Five Hundred Sixty Nine"]
[570,"Five Hundred Seventy"]
[571,"Five Hundred Seventy One"]
[572,"Five Hundred Seventy Two"]
[573,"Five Hundred Seventy Three"]
[574,"Five Hundred Seventy Four"]
[575,"Five Hundred Seventy Five"]
[576,"Five Hundred Seventy Six"]
[577,"Five Hundred Seventy Seven"]
[578,"Five Hundred Seventy Eight"]
[579,"Five Hundred Seventy Nine"]
[580,"Five Hundred Eighty"]
[581,"Five Hundred Eighty One"]
[582,"Five Hundred Eighty Two"]
[583,"Five Hundred Eighty Three"]
[584,"Five Hundred Eighty Four"]
[585,"Five Hundred Eighty Five"]
[586,"Five Hundred Eighty Six"]
[587,"Five Hundred Eighty Seven"]
[588,"Five Hundred Eighty Eight"]
[589,"Five Hundred Eighty Nine"]
[590,"Five Hundred Ninety"]
[591,"Five Hundred Ninety One"]
[592,"Five Hundred Ninety Two"]
[593,"Five Hundred Ninety Three"]
[594,"Five Hundred Ninety Four"]
[595,"Five Hundred Ninety Five"]
[596,"Five Hundred Ninety Six"]
[597,"Five Hundred Ninety Seven"]
[598,"Five Hundred Ninety Eight"]
[599,"Five Hundred Ninety Nine"]
[600,"Six Hundred"]
[601,"Six Hundred One"]
[602,"Six Hundred Two"]
[603,"Six Hundred Three"]
[604,"Six Hundred Four"]
[605,"Six Hundred Five"]
[606,"Six Hundred Six"]
[607,"Six Hundred Seven"]
[608,"Six Hundred Eight"]
[609,"Six Hundred Nine"]
[610,"Six Hundred Ten"]
[611,"Six Hundred Eleven"]
[612,"Six Hundred Twelve"]
[613,"Six Hundred Thirteen"]
[614,"Six Hundred Fourteen"]
[615,"Six Hundred Fifteen"]
[616,"Six Hundred Sixteen"]
[617,"Six Hundred Seventeen"]
[618,"Six Hundred Eighteen"]
[619,"Six Hundred Nineteen"]
[620,"Six Hundred Twenty"]
[621,"Six Hundred Twenty One"]
[622,"Six Hundred Twenty Two"]
[623,"Six Hundred Twenty Three"]
[624,"Six Hundred Twenty Four"]
[625,"Six Hundred Twenty Five"]
[626,"Six Hundred Twenty Six"]
[627,"Six Hundred Twenty Seven"]
[628,"Six Hundred Twenty Eight"]
[629,"Six Hundred Twenty Nine"]
[630,"Six Hundred Thirty"]
[631,"Six Hundred Thirty One"]
[632,"Six Hundred Thirty Two"]
[633,"Six Hundred Thirty Three"]
[634,"Six Hundred Thirty Four"]
[635,"Six Hundred Thirty Five"]
[636,"Six Hundred Thirty Six"]
[637,"Six Hundred Thirty Seven"]
[638,"Six Hundred Thirty Eight"]
[639,"Six Hundred Thirty Nine"]
[640,"Six Hundred Forty"]
[641,"Six Hundred Forty One"]
[642,"Six Hundred Forty Two"]
[643,"Six Hundred Forty Three"]
[644,"Six Hundred Forty Four"]
[645,"Six Hundred Forty Five"]
[646,"Six Hundred Forty Six"]
[647,"Six Hundred Forty Seven"]
[648,"Six Hundred Forty Eight"]
[649,"Six Hundred Forty Nine"]
[650,"Six Hundred Fifty"]
[651,"Six Hundred Fifty One"]
[652,"Six Hundred Fifty Two"]
[653,"Six Hundred Fifty Three"]
[654,"Six Hundred Fifty Four"]
[655,"Six Hundred Fifty Five"]
[656,"Six Hundred Fifty Six"]
[657,"Six Hundred Fifty Seven"]
[658,"Six Hundred Fifty Eight"]
[659,"Six Hundred Fifty Nine"]
[660,"Six Hundred Sixty"]
[661,"Six Hundred Sixty One"]
[662,"Six Hundred Sixty Two"]
[663,"Six Hundred Sixty Three"]
[664,"Six Hundred Sixty Four"]
[665,"Six Hundred Sixty Five"]
[666,"Six Hundred Sixty Six"]
[667,"Six Hundred Sixty Seven"]
[668,"Six Hundred Sixty Eight"]
[669,"Six Hundred Sixty Nine"]
[670,"Six Hundred Seventy"]
[671,"Six Hundred Seventy One"]
[672,"Six Hundred Seventy Two"]
[673,"Six Hundred Seventy Three"]
[674,"Six Hundred Seventy Four"]
[675,"Six Hundred Seventy Five"]
[676,"Six Hundred Seventy Six"]
[677,"Six Hundred Seventy Seven"]
[678,"Six Hundred Seventy Eight"]
[679,"Six Hundred Seventy Nine"]
[680,"Six Hundred Eighty"]
[681,"Six Hundred Eighty One"]
[682,"Six Hundred Eighty Two"]
[683,"Six Hundred Eighty Three"]
[684,"Six Hundred Eighty Four"]
[685,"Six Hundred Eighty Five"]
[686,"Six Hundred Eighty Six"]
[687,"Six Hundred Eighty Seven"]
[688,"Six Hundred Eighty Eight"]
[689,"Six Hundred Eighty Nine"]
[690,"Six Hundred Ninety"]
[691,"Six Hundred Ninety One"]
[692,"Six Hundred Ninety Two"]
[693,"Six Hundred Ninety Three"]
[694,"Six Hundred Ninety Four"]
[695,"Six Hundred Ninety Five"]
[696,"Six Hundred Ninety Six"]
[697,"Six Hundred Ninety Seven"]
[698,"Six Hundred Ninety Eight"]
[699,"Six Hundred Ninety Nine"]
[700,"Seven Hundred"]
[701,"Seven Hundred One"]
[702,"Seven Hundred Two"]
[703,"Seven Hundred Three"]
[704,"Seven Hundred Four"]
[705,"Seven Hundred Five"]
[706,"Seven Hundred Six"]
[707,"Seven Hundred Seven"]
[708,"Seven Hundred Eight"]
[709,"Seven Hundred Nine"]
[710,"Seven Hundred Ten"]
[711,"Seven Hundred Eleven"]
[712,"Seven Hundred Twelve"]
[713,"Seven Hundred Thirteen"]
[714,"Seven Hundred Fourteen"]
[715,"Seven Hundred Fifteen"]
[716,"Seven Hundred Sixteen"]
[717,"Seven Hundred Seventeen"]
[718,"Seven Hundred Eighteen"]
[719,"Seven Hundred Nineteen"]
[720,"Seven Hundred Twenty"]
[721,"Seven Hundred Twenty One"]
[722,"Seven Hundred Twenty Two"]
[723,"Seven Hundred Twenty Three"]
[724,"Seven Hundred Twenty Four"]
[725,"Seven Hundred Twenty Five"]
[726,"Seven Hundred Twenty Six"]
[727,"Seven Hundred Twenty Seven"]
[728,"Seven Hundred Twenty Eight"]
[729,"Seven Hundred Twenty Nine"]
[730,"Seven Hundred Thirty"]
[731,"Seven Hundred Thirty One"]
[732,"Seven Hundred Thirty Two"]
[733,"Seven Hundred Thirty Three"]
[734,"Seven Hundred Thirty Four"]
[735,"Seven Hundred Thirty Five"]
[736,"Seven Hundred Thirty Six"]
[737,"Seven Hundred Thirty Seven"]
[738,"Seven Hundred Thirty Eight"]
[739,"Seven Hundred Thirty Nine"]
[740,"Seven Hundred Forty"]
[741,"Seven Hundred Forty One"]
[742,"Seven Hundred Forty Two"]
[743,"Seven Hundred Forty Three"]
[744,"Seven Hundred Forty Four"]
[745,"Seven Hundred Forty Five"]
[746,"Seven Hundred Forty Six"]
[747,"Seven Hundred Forty Seven"]
[748,"Seven Hundred Forty Eight"]
[749,"Seven Hundred Forty Nine"]
[750,"Seven Hundred Fifty"]
[751,"Seven Hundred Fifty One"]
[752,"Seven Hundred Fifty Two"]
[753,"Seven Hundred Fifty Three"]
[754,"Seven Hundred Fifty Four"]
[755,"Seven Hundred Fifty Five"]
[756,"Seven Hundred Fifty Six"]
[757,"Seven Hundred Fifty Seven"]
[758,"Seven Hundred Fifty Eight"]
[759,"Seven Hundred Fifty Nine"]
[760,"Seven Hundred Sixty"]
[761,"Seven Hundred Sixty One"]
[762,"Seven Hundred Sixty Two"]
[763,"Seven Hundred Sixty Three"]
[764,"Seven Hundred Sixty Four"]
[765,"Seven Hundred Sixty Five"]
[766,"Seven Hundred Sixty Six"]
[767,"Seven Hundred Sixty Seven"]
[768,"Seven Hundred Sixty Eight"]
[769,"Seven Hundred Sixty Nine"]
[770,"Seven Hundred Seventy"]
[771,"Seven Hundred Seventy One"]
[772,"Seven Hundred Seventy Two"]
[773,"Seven Hundred Seventy Three"]
[774,"Seven Hundred Seventy Four"]
[775,"Seven Hundred Seventy Five"]
[776,"Seven Hundred Seventy Six"]
[777,"Seven Hundred Seventy Seven"]
[778,"Seven Hundred Seventy Eight"]
[779,"Seven Hundred Seventy Nine"]
[780,"Seven Hundred Eighty"]
[781,"Seven Hundred Eighty One"]
[782,"Seven Hundred Eighty Two"]
[783,"Seven Hundred Eighty Three"]
[784,"Seven Hundred Eighty Four"]
[785,"Seven Hundred Eighty Five"]
[786,"Seven Hundred Eighty Six"]
[787,"Seven Hundred Eighty Seven"]
[788,"Seven Hundred Eighty Eight"]
[789,"Seven Hundred Eighty Nine"]
[790,"Seven Hundred Ninety"]
[791,"Seven Hundred Ninety One"]
[792,"Seven Hundred Ninety Two"]
[793,"Seven Hundred Ninety Three"]
[794,"Seven Hundred Ninety Four"]
[795,"Seven Hundred Ninety Five"]
[796,"Seven Hundred Ninety Six"]
[797,"Seven Hundred Ninety Seven"]
[798,"Seven Hundred Ninety Eight"]
[799,"Seven Hundred Ninety Nine"]
[800,"Eight Hundred"]
[801,"Eight Hundred One"]
[802,"Eight Hundred Two"]
[803,"Eight Hundred Three"]
[804,"Eight Hundred Four"]
[805,"Eight Hundred Five"]
[806,"Eight Hundred Six"]
[807,"Eight Hundred Seven"]
[808,"Eight Hundred Eight"]
[809,"Eight Hundred Nine"]
[810,"Eight Hundred Ten"]
[811,"Eight Hundred Eleven"]
[812,"Eight Hundred Twelve"]
[813,"Eight Hundred Thirteen"]
[814,"Eight Hundred Fourteen"]
[815,"Eight Hundred Fifteen"]
[816,"Eight Hundred Sixteen"]
[817,"Eight Hundred Seventeen"]
[818,"Eight Hundred Eighteen"]
[819,"Eight Hundred Nineteen"]
[820,"Eight Hundred Twenty"]
[821,"Eight Hundred Twenty One"]
[822,"Eight Hundred Twenty Two"]
[823,"Eight Hundred Twenty Three"]
[824,"Eight Hundred Twenty Four"]
[825,"Eight Hundred Twenty Five"]
[826,"Eight Hundred Twenty Six"]
[827,"Eight Hundred Twenty Seven"]
[828,"Eight Hundred Twenty Eight"]
[829,"Eight Hundred Twenty Nine"]
[830,"Eight Hundred Thirty"]
[831,"Eight Hundred Thirty One"]
[832,"Eight Hundred Thirty Two"]
[833,"Eight Hundred Thirty Three"]
[834,"Eight Hundred Thirty Four"]
[835,"Eight Hundred Thirty Five"]
[836,"Eight Hundred Thirty Six"]
[837,"Eight Hundred Thirty Seven"]
[838,"Eight Hundred Thirty Eight"]
[839,"Eight Hundred Thirty Nine"]
[840,"Eight Hundred Forty"]
[841,"Eight Hundred Forty One"]
[842,"Eight Hundred Forty Two"]
[843,"Eight Hundred Forty Three"]
[844,"Eight Hundred Forty Four"]
[845,"Eight Hundred Forty Five"]
[846,"Eight Hundred Forty Six"]
[847,"Eight Hundred Forty Seven"]
[848,"Eight Hundred Forty Eight"]
[849,"Eight Hundred Forty Nine"]
[850,"Eight Hundred Fifty"]
[851,"Eight Hundred Fifty One"]
[852,"Eight Hundred Fifty Two"]
[853,"Eight Hundred Fifty Three"]
[854,"Eight Hundred Fifty Four"]
[855,"Eight Hundred Fifty Five"]
[856,"Eight Hundred Fifty Six"]
[857,"Eight Hundred Fifty Seven"]
[858,"Eight Hundred Fifty Eight"]
[859,"Eight Hundred Fifty Nine"]
[860,"Eight Hundred Sixty"]
[861,"Eight Hundred Sixty One"]
[862,"Eight Hundred Sixty Two"]
[863,"Eight Hundred Sixty Three"]
[864,"Eight Hundred Sixty Four"]
[865,"Eight Hundred Sixty Five"]
[866,"Eight Hundred Sixty Six"]
[867,"Eight Hundred Sixty Seven"]
[868,"Eight Hundred Sixty Eight"]
[869,"Eight Hundred Sixty Nine"]
[870,"Eight Hundred Seventy"]
[871,"Eight Hundred Seventy One"]
[872,"Eight Hundred Seventy Two"]
[873,"Eight Hundred Seventy Three"]
[874,"Eight Hundred Seventy Four"]
[875,"Eight Hundred Seventy Five"]
[876,"Eight Hundred Seventy Six"]
[877,"Eight Hundred Seventy Seven"]
[878,"Eight Hundred Seventy Eight"]
[879,"Eight Hundred Seventy Nine"]
[880,"Eight Hundred Eighty"]
[881,"Eight Hundred Eighty One"]
[882,"Eight Hundred Eighty Two"]
[883,"Eight Hundred Eighty Three"]
[884,"Eight Hundred Eighty Four"]
[885,"Eight Hundred Eighty Five"]
[886,"Eight Hundred Eighty Six"]
[887,"Eight Hundred Eighty Seven"]
[888,"Eight Hundred Eighty Eight"]
[889,"Eight Hundred Eighty Nine"]
[890,"Eight Hundred Ninety"]
[891,"Eight Hundred Ninety One"]
[892,"Eight Hundred Ninety Two"]
[893,"Eight Hundred Ninety Three"]
[894,"Eight Hundred Ninety Four"]
[895,"Eight Hundred Ninety Five"]
[896,"Eight Hundred Ninety Six"]
[897,"Eight Hundred Ninety Seven"]
[898,"Eight Hundred Ninety Eight"]
[899,"Eight Hundred Ninety Nine"]
[900,"Nine Hundred"]
[901,"Nine Hundred One"]
[902,"Nine Hundred Two"]
[903,"Nine Hundred Three"]
[904,"Nine Hundred Four"]
[905,"Nine Hundred Five"]
[906,"Nine Hundred Six"]
[907,"Nine Hundred Seven"]
[908,"Nine Hundred Eight"]
[909,"Nine Hundred Nine"]
[910,"Nine Hundred Ten"]
[911,"Nine Hundred Eleven"]
[912,"Nine Hundred Twelve"]
[913,"Nine Hundred Thirteen"]
[914,"Nine Hundred Fourteen"]
[915,"Nine Hundred Fifteen"]
[916,"Nine Hundred Sixteen"]
[917,"Nine Hundred Seventeen"]
[918,"Nine Hundred Eighteen"]
[919,"Nine Hundred Nineteen"]
[920,"Nine Hundred Twenty"]
[921,"Nine Hundred Twenty One"]
[922,"Nine Hundred Twenty Two"]
[923,"Nine Hundred Twenty Three"]
[924,"Nine Hundred Twenty Four"]
[925,"Nine Hundred Twenty Five"]
[926,"Nine Hundred Twenty Six"]
[927,"Nine Hundred Twenty Seven"]
[928,"Nine Hundred Twenty Eight"]
[929,"Nine Hundred Twenty Nine"]
[930,"Nine Hundred Thirty"]
[931,"Nine Hundred Thirty One"]
[932,"Nine Hundred Thirty Two"]
[933,"Nine Hundred Thirty Three"]
[934,"Nine Hundred Thirty Four"]
[935,"Nine Hundred Thirty Five"]
[936,"Nine Hundred Thirty Six"]
[937,"Nine Hundred Thirty Seven"]
[938,"Nine Hundred Thirty Eight"]
[939,"Nine Hundred Thirty Nine"]
[940,"Nine Hundred Forty"]
[941,"Nine Hundred Forty One"]
[942,"Nine Hundred Forty Two"]
[943,"Nine Hundred Forty Three"]
[944,"Nine Hundred Forty Four"]
[945,"Nine Hundred Forty Five"]
[946,"Nine Hundred Forty Six"]
[947,"Nine Hundred Forty Seven"]
[948,"Nine Hundred Forty Eight"]
[949,"Nine Hundred Forty Nine"]
[950,"Nine Hundred Fifty"]
[951,"Nine Hundred Fifty One"]
[952,"Nine Hundred Fifty Two"]
[953,"Nine Hundred Fifty Three"]
[954,"Nine Hundred Fifty Four"]
[955,"Nine Hundred Fifty Five"]
[956,"Nine Hundred Fifty Six"]
[957,"Nine Hundred Fifty Seven"]
[958,"Nine Hundred Fifty Eight"]
[959,"Nine Hundred Fifty Nine"]
[960,"Nine Hundred Sixty"]
[961,"Nine Hundred Sixty One"]
[962,"Nine Hundred Sixty Two"]
[963,"Nine Hundred Sixty Three"]
[964,"Nine Hundred Sixty Four"]
[965,"Nine Hundred Sixty Five"]
[966,"Nine Hundred Sixty Six"]
[967,"Nine Hundred Sixty Seven"]
[968,"Nine Hundred Sixty Eight"]
[969,"Nine Hundred Sixty Nine"]
[970,"Nine Hundred Seventy"]
[971,"Nine Hundred Seventy One"]
[972,"Nine Hundred Seventy Two"]
[973,"Nine Hundred Seventy Three"]
[974,"Nine Hundred Seventy Four"]
[975,"Nine Hundred Seventy Five"]
[976,"Nine Hundred Seventy Six"]
[977,"Nine Hundred Seventy Seven"]
[978,"Nine Hundred Seventy Eight"]
[979,"Nine Hundred Seventy Nine"]
[980,"Nine Hundred Eighty"]
[981,"Nine Hundred Eighty One"]
[982,"Nine Hundred Eighty Two"]
[983,"Nine Hundred Eighty Three"]
[984,"Nine Hundred Eighty Four"]
[985,"Nine Hundred Eighty Five"]
[986,"Nine Hundred Eighty Six"]
[987,"Nine Hundred Eighty Seven"]
[988,"Nine Hundred Eighty Eight"]
[989,"Nine Hundred Eighty Nine"]
[990,"Nine Hundred Ninety"]
[991,"Nine Hundred Ninety One"]
[992,"Nine Hundred Ninety Two"]
[993,"Nine Hundred Ninety Three"]
[994,"Nine Hundred Ninety Four"]
[995,"Nine Hundred Ninety Five"]
[996,"Nine Hundred Ninety Six"]
[997,"Nine Hundred Ninety Seven"]
[998,"Nine Hundred Ninety Eight"]
[999,"Nine Hundred Ninety Nine"]

{"sheet":"FundingSource","index":8,"n_rows":327,"n_cols":6,"rows_kept":327,"cut":false,"hidden":true,"merged":[]}
["Column1","Funding Code","Description","Financing Source","Authorization Code","Fund Category"]
[{"$f":"+CONCATENATE(Table4[[#This Row],[Funding Code]],\" - \",Table4[[#This Row],[Description]])","v":"100000 - General Fund - General Fund  - General Fund "},"100000",{"$f":"+CONCATENATE(D2,\" - \",E2,\" - \",F2)","v":"General Fund - General Fund  - General Fund "},"General Fund","General Fund ","General Fund "]
[{"$f":"+CONCATENATE(Table4[[#This Row],[Funding Code]],\" - \",Table4[[#This Row],[Description]])","v":"101000 - General Fund - New General Appropriation - New General Appropriation"},"101000",{"$f":"+CONCATENATE(D3,\" - \",E3,\" - \",F3)","v":"General Fund - New General Appropriation - New General Appropriation"},"General Fund","New General Appropriation","New General Appropriation"]
[{"$f":"+CONCATENATE(Table4[[#This Row],[Funding Code]],\" - \",Table4[[#This Row],[Description]])","v":"101101 - General Fund - New General Appropriation - Specific Budgets of National Government Agencies "},"101101","General Fund - New General Appropriation - Specific Budgets of National Government Agencies ","General Fund","New General Appropriation","Specific Budgets of National Government Agencies "]
[{"$f":"+CONCATENATE(Table4[[#This Row],[Funding Code]],\" - \",Table4[[#This Row],[Description]])","v":"101151 - General Fund - New General Appropriation - GoP Counterpart Funds"},"101151","General Fund - New General Appropriation - GoP Counterpart Funds","General Fund","New General Appropriation","GoP Counterpart Funds"]
[{"$f":"+CONCATENATE(Table4[[#This Row],[Funding Code]],\" - \",Table4[[#This Row],[Description]])","v":"101152 - General Fund - New General Appropriation - Asian Development Bank"},"101152","General Fund - New General Appropriation - Asian Development Bank","General Fund","New General Appropriation","Asian Development Bank"]
[{"$f":"+CONCATENATE(Table4[[#This Row],[Funding Code]],\" - \",Table4[[#This Row],[Description]])","v":"101153 - General Fund - New General Appropriation - Australia"},"101153","General Fund - New General Appropriation - Australia","General Fund","New General Appropriation","Australia"]
[{"$f":"+CONCATENATE(Table4[[#This Row],[Funding Code]],\" - \",Table4[[#This Row],[Description]])","v":"101154 - General Fund - New General Appropriation - Austria"},"101154","General Fund - New General Appropriation - Austria","General Fund","New General Appropriation","Austria"]
[{"$f":"+CONCATENATE(Table4[[#This Row],[Funding Code]],\" - \",Table4[[#This Row],[Description]])","v":"101155 - General Fund - New General Appropriation - Belgium"},"101155","General Fund - New General Appropriation - Belgium","General Fund","New General Appropriation","Belgium"]
[{"$f":"+CONCATENATE(Table4[[#This Row],[Funding Code]],\" - \",Table4[[#This Row],[Description]])","v":"101156 - General Fund - New General Appropriation - Canada"},"101156","General Fund - New General Appropriation - Canada","General Fund","New General Appropriation","Canada"]
[{"$f":"+CONCATENATE(Table4[[#This Row],[Funding Code]],\" - \",Table4[[#This Row],[Description]])","v":"101157 - General Fund - New General Appropriation - China"},"101157","General Fund - New General Appropriation - China","General Fund","New General Appropriation","China"]
[{"$f":"+CONCATENATE(Table4[[#This Row],[Funding Code]],\" - \",Table4[[#This Row],[Description]])","v":"101158 - General Fund - New General Appropriation - Denmark"},"101158","General Fund - New General Appropriation - Denmark","General Fund","New General Appropriation","Denmark"]
[{"$f":"+CONCATENATE(Table4[[#This Row],[Funding Code]],\" - \",Table4[[#This Row],[Description]])","v":"101159 - General Fund - New General Appropriation - European Commission"},"101159","General Fund - New General Appropriation - European Commission","General Fund","New General Appropriation","European Commission"]
[{"$f":"+CONCATENATE(Table4[[#This Row],[Funding Code]],\" - \",Table4[[#This Row],[Description]])","v":"101160 - General Fund - New General Appropriation - France"},"101160","General Fund - New General Appropriation - France","General Fund","New General Appropriation","France"]
[{"$f":"+CONCATENATE(Table4[[#This Row],[Funding Code]],\" - \",Table4[[#This Row],[Description]])","v":"101161 - General Fund - New General Appropriation - Germany"},"101161","General Fund - New General Appropriation - Germany","General Fund","New General Appropriation","Germany"]
[{"$f":"+CONCATENATE(Table4[[#This Row],[Funding Code]],\" - \",Table4[[#This Row],[Description]])","v":"101162 - General Fund - New General Appropriation - Global Environment Facility"},"101162","General Fund - New General Appropriation - Global Environment Facility","General Fund","New General Appropriation","Global Environment Facility"]
[{"$f":"+CONCATENATE(Table4[[#This Row],[Funding Code]],\" - \",Table4[[#This Row],[Description]])","v":"101163 - General Fund - New General Appropriation - International Bank for Reconstruction and Development (IBRD)"},"101163","General Fund - New General Appropriation - International Bank for Reconstruction and Development (IBRD)","General Fund","New General Appropriation","International Bank for Reconstruction and Development (IBRD)"]
[{"$f":"+CONCATENATE(Table4[[#This Row],[Funding Code]],\" - \",Table4[[#This Row],[Description]])","v":"101164 - General Fund - New General Appropriation - International Development Fund (IDF)"},"101164","General Fund - New General Appropriation - International Development Fund (IDF)","General Fund","New General Appropriation","International Development Fund (IDF)"]
[{"$f":"+CONCATENATE(Table4[[#This Row],[Funding Code]],\" - \",Table4[[#This Row],[Description]])","v":"101165 - General Fund - New General Appropriation - International Fund for Agricultural Development (IFAD)"},"101165","General Fund - New General Appropriation - International Fund for Agricultural Development (IFAD)","General Fund","New General Appropriation","International Fund for Agricultural Development (IFAD)"]
[{"$f":"+CONCATENATE(Table4[[#This Row],[Funding Code]],\" - \",Table4[[#This Row],[Description]])","v":"101166 - General Fund - New General Appropriation - Italy"},"101166","General Fund - New General Appropriation - Italy","General Fund","New General Appropriation","Italy"]
[{"$f":"+CONCATENATE(Table4[[#This Row],[Funding Code]],\" - \",Table4[[#This Row],[Description]])","v":"101167 - General Fund - New General Appropriation - Japan"},"101167","General Fund - New General Appropriation - Japan","General Fund","New General Appropriation","Japan"]
[{"$f":"+CONCATENATE(Table4[[#This Row],[Funding Code]],\" - \",Table4[[#This Row],[Description]])","v":"101168 - General Fund - New General Appropriation - Korea"},"101168","General Fund - New General Appropriation - Korea","General Fund","New General Appropriation","Korea"]
[{"$f":"+CONCATENATE(Table4[[#This Row],[Funding Code]],\" - \",Table4[[#This Row],[Description]])","v":"101169 - General Fund - New General Appropriation - Millennium Challenge Corporation"},"101169","General Fund - New General Appropriation - Millennium Challenge Corporation","General Fund","New General Appropriation","Millennium Challenge Corporation"]
[{"$f":"+CONCATENATE(Table4[[#This Row],[Funding Code]],\" - \",Table4[[#This Row],[Description]])","v":"101170 - General Fund - New General Appropriation - Netherlands"},"101170","General Fund - New General Appropriation - Netherlands","General Fund","New General Appropriation","Netherlands"]
[{"$f":"+CONCATENATE(Table4[[#This Row],[Funding Code]],\" - \",Table4[[#This Row],[Description]])","v":"101171 - General Fund - New General Appropriation - New Zealand"},"101171","General Fund - New General Appropriation - New Zealand","General Fund","New General Appropriation","New Zealand"]
[{"$f":"+CONCATENATE(Table4[[#This Row],[Funding Code]],\" - \",Table4[[#This Row],[Description]])","v":"101172 - General Fund - New General Appropriation - Norway"},"101172","General Fund - New General Appropriation - Norway","General Fund","New General Appropriation","Norway"]
[{"$f":"+CONCATENATE(Table4[[#This Row],[Funding Code]],\" - \",Table4[[#This Row],[Description]])","v":"101173 - General Fund - New General Appropriation - Saudi Arabia"},"101173","General Fund - New General Appropriation - Saudi Arabia","General Fund","New General Appropriation","Saudi Arabia"]
[{"$f":"+CONCATENATE(Table4[[#This Row],[Funding Code]],\" - \",Table4[[#This Row],[Description]])","v":"101174 - General Fund - New General Appropriation - Spain"},"101174","General Fund - New General Appropriation - Spain","General Fund","New General Appropriation","Spain"]
[{"$f":"+CONCATENATE(Table4[[#This Row],[Funding Code]],\" - \",Table4[[#This Row],[Description]])","v":"101175 - General Fund - New General Appropriation - Switzerland"},"101175","General Fund - New General Appropriation - Switzerland","General Fund","New General Appropriation","Switzerland"]
[{"$f":"+CONCATENATE(Table4[[#This Row],[Funding Code]],\" - \",Table4[[#This Row],[Description]])","v":"101176 - General Fund - New General Appropriation - United Kingdom"},"101176","General Fund - New General Appropriation - United Kingdom","General Fund","New General Appropriation","United Kingdom"]
[{"$f":"+CONCATENATE(Table4[[#This Row],[Funding Code]],\" - \",Table4[[#This Row],[Description]])","v":"101177 - General Fund - New General Appropriation - United States"},"101177","General Fund - New General Appropriation - United States","General Fund","New General Appropriation","United States"]
[{"$f":"+CONCATENATE(Table4[[#This Row],[Funding Code]],\" - \",Table4[[#This Row],[Description]])","v":"101178 - General Fund - New General Appropriation - United Nations Development Fund for Women (UNIFEM)"},"101178","General Fund - New General Appropriation - United Nations Development Fund for Women (UNIFEM)","General Fund","New General Appropriation","United Nations Development Fund for Women (UNIFEM)"]
[{"$f":"+CONCATENATE(Table4[[#This Row],[Funding Code]],\" - \",Table4[[#This Row],[Description]])","v":"101179 - General Fund - New General Appropriation - United Nations Population Fund (UNFPA)"},"101179","General Fund - New General Appropriation - United Nations Population Fund (UNFPA)","General Fund","New General Appropriation","United Nations Population Fund (UNFPA)"]
[{"$f":"+CONCATENATE(Table4[[#This Row],[Funding Code]],\" - \",Table4[[#This Row],[Description]])","v":"101250 - General Fund - New General Appropriation - Others  (Specify)"},"101250","General Fund - New General Appropriation - Others  (Specify)","General Fund","New General Appropriation","Others  (Specify)"]
[{"$f":"+CONCATENATE(Table4[[#This Row],[Funding Code]],\" - \",Table4[[#This Row],[Description]])","v":"101252 - General Fund - New General Appropriation - Special Shares of LGUs in the Proceeds of National Taxes"},"101252","General Fund - New General Appropriation - Special Shares of LGUs in the Proceeds of National Taxes","General Fund","New General Appropriation","Special Shares of LGUs in the Proceeds of National Taxes"]
[{"$f":"+CONCATENATE(Table4[[#This Row],[Funding Code]],\" - \",Table4[[#This Row],[Description]])","v":"101253 - General Fund - New General Appropriation - Barangay Officials Death Benefits Fund"},"101253","General Fund - New General Appropriation - Barangay Officials Death Benefits Fund","General Fund","New General Appropriation","Barangay Officials Death Benefits Fund"]
[{"$f":"+CONCATENATE(Table4[[#This Row],[Funding Code]],\" - \",Table4[[#This Row],[Description]])","v":"101254 - General Fund - New General Appropriation - Local Government Support Fund"},"101254","General Fund - New General Appropriation - Local Government Support Fund","General Fund","New General Appropriation","Local Government Support Fund"]
[{"$f":"+CONCATENATE(Table4[[#This Row],[Funding Code]],\" - \",Table4[[#This Row],[Description]])","v":"101255 - General Fund - New General Appropriation - Others  (Specify)"},"101255","General Fund - New General Appropriation - Others  (Specify)","General Fund","New General Appropriation","Others  (Specify)"]
[{"$f":"+CONCATENATE(Table4[[#This Row],[Funding Code]],\" - \",Table4[[#This Row],[Description]])","v":"101276 - General Fund - New General Appropriation - Equity Contribution"},"101276","General Fund - New General Appropriation - Equity Contribution","General Fund","New General Appropriation","Equity Contribution"]
[{"$f":"+CONCATENATE(Table4[[#This Row],[Funding Code]],\" - \",Table4[[#This Row],[Description]])","v":"101277 - General Fund - New General Appropriation - Subsidies"},"101277","General Fund - New General Appropriation - Subsidies","General Fund","New General Appropriation","Subsidies"]
[{"$f":"+CONCATENATE(Table4[[#This Row],[Funding Code]],\" - \",Table4[[#This Row],[Description]])","v":"101278 - General Fund - New General Appropriation - Loans"},"101278","General Fund - New General Appropriation - Loans","General Fund","New General Appropriation","Loans"]
[{"$f":"+CONCATENATE(Table4[[#This Row],[Funding Code]],\" - \",Table4[[#This Row],[Description]])","v":"101279 - General Fund - New General Appropriation - Advances"},"101279","General Fund - New General Appropriation - Advances","General Fund","New General Appropriation","Advances"]
[{"$f":"+CONCATENATE(Table4[[#This Row],[Funding Code]],\" - \",Table4[[#This Row],[Description]])","v":"101281 - General Fund - New General Appropriation - Others (Specify)"},"101281","General Fund - New General Appropriation - Others (Specify)","General Fund","New General Appropriation","Others (Specify)"]
[{"$f":"+CONCATENATE(Table4[[#This Row],[Funding Code]],\" - \",Table4[[#This Row],[Description]])","v":"101301 - General Fund - New General Appropriation - Financial Assistance to MMDA - Subsidies"},"101301","General Fund - New General Appropriation - Financial Assistance to MMDA - Subsidies","General Fund","New General Appropriation","Financial Assistance to MMDA - Subsidies"]
[{"$f":"+CONCATENATE(Table4[[#This Row],[Funding Code]],\" - \",Table4[[#This Row],[Description]])","v":"101302 - General Fund - New General Appropriation - Others (Specify)"},"101302","General Fund - New General Appropriation - Others (Specify)","General Fund","New General Appropriation","Others (Specify)"]
[{"$f":"+CONCATENATE(Table4[[#This Row],[Funding Code]],\" - \",Table4[[#This Row],[Description]])","v":"101401 - General Fund - Special Purpose Funds - Calamity Fund"},"101401","General Fund - Special Purpose Funds - Calamity Fund","General Fund","Special Purpose Funds","Calamity Fund"]
[{"$f":"+CONCATENATE(Table4[[#This Row],[Funding Code]],\" - \",Table4[[#This Row],[Description]])","v":"101402 - General Fund - Special Purpose Funds - Contingent Fund"},"101402","General Fund - Special Purpose Funds - Contingent Fund","General Fund","Special Purpose Funds","Contingent Fund"]
[{"$f":"+CONCATENATE(Table4[[#This Row],[Funding Code]],\" - \",Table4[[#This Row],[Description]])","v":"101403 - General Fund - Special Purpose Funds - DepEd – School Building Program/Educational Facilities Fund"},"101403","General Fund - Special Purpose Funds - DepEd – School Building Program/Educational Facilities Fund","General Fund","Special Purpose Funds","DepEd – School Building Program/Educational Facilities Fund"]
[{"$f":"+CONCATENATE(Table4[[#This Row],[Funding Code]],\" - \",Table4[[#This Row],[Description]])","v":"101404 - General Fund - Special Purpose Funds - E-Government Fund"},"101404","General Fund - Special Purpose Funds - E-Government Fund","General Fund","Special Purpose Funds","E-Government Fund"]
[{"$f":"+CONCATENATE(Table4[[#This Row],[Funding Code]],\" - \",Table4[[#This Row],[Description]])","v":"101405 - General Fund - Special Purpose Funds - International Commitments Fund"},"101405","General Fund - Special Purpose Funds - International Commitments Fund","General Fund","Special Purpose Funds","International Commitments Fund"]
[{"$f":"+CONCATENATE(Table4[[#This Row],[Funding Code]],\" - \",Table4[[#This Row],[Description]])","v":"101406 - General Fund - Special Purpose Funds - Miscellaneous Personnel Benefits Fund"},"101406","General Fund - Special Purpose Funds - Miscellaneous Personnel Benefits Fund","General Fund","Special Purpose Funds","Miscellaneous Personnel Benefits Fund"]
[{"$f":"+CONCATENATE(Table4[[#This Row],[Funding Code]],\" - \",Table4[[#This Row],[Description]])","v":"101407 - General Fund - Special Purpose Funds - Pension and Gratuity Fund"},"101407","General Fund - Special Purpose Funds - Pension and Gratuity Fund","General Fund","Special Purpose Funds","Pension and Gratuity Fund"]
[{"$f":"+CONCATENATE(Table4[[#This Row],[Funding Code]],\" - \",Table4[[#This Row],[Description]])","v":"101408 - General Fund - Special Purpose Funds - Priority Development Assistance Fund"},"101408","General Fund - Special Purpose Funds - Priority Development Assistance Fund","General Fund","Special Purpose Funds","Priority Development Assistance Fund"]
[{"$f":"+CONCATENATE(Table4[[#This Row],[Funding Code]],\" - \",Table4[[#This Row],[Description]])","v":"101409 - General Fund - Special Purpose Funds - Allocation for Capital Outlays and Scholarship Programs of State Universities and Colleges (SUCs)"},"101409","General Fund - Special Purpose Funds - Allocation for Capital Outlays and Scholarship Programs of State Universities and Colleges (SUCs)","General Fund","Special Purpose Funds","Allocation for Capital Outlays and Scholarship Programs of State Universities and Colleges (SUCs)"]
[{"$f":"+CONCATENATE(Table4[[#This Row],[Funding Code]],\" - \",Table4[[#This Row],[Description]])","v":"101410 - General Fund - Special Purpose Funds - Feasibility Studies Fund"},"101410","General Fund - Special Purpose Funds - Feasibility Studies Fund","General Fund","Special Purpose Funds","Feasibility Studies Fund"]
[{"$f":"+CONCATENATE(Table4[[#This Row],[Funding Code]],\" - \",Table4[[#This Row],[Description]])","v":"101411 - General Fund - Special Purpose Funds -  Others"},"101411","General Fund - Special Purpose Funds -  Others","General Fund","Special Purpose Funds"," Others"]
[{"$f":"+CONCATENATE(Table4[[#This Row],[Funding Code]],\" - \",Table4[[#This Row],[Description]])","v":"102000 - General Fund - Continuing Appropriations - Continuing Appropriations"},"102000","General Fund - Continuing Appropriations - Continuing Appropriations","General Fund","Continuing Appropriations","Continuing Appropriations"]
[{"$f":"+CONCATENATE(Table4[[#This Row],[Funding Code]],\" - \",Table4[[#This Row],[Description]])","v":"102101 - General Fund - Continuing Appropriations - Specific Budgets of National Government Agencies "},"102101","General Fund - Continuing Appropriations - Specific Budgets of National Government Agencies ","General Fund","Continuing Appropriations","Specific Budgets of National Government Agencies "]
[{"$f":"+CONCATENATE(Table4[[#This Row],[Funding Code]],\" - \",Table4[[#This Row],[Description]])","v":"102151 - General Fund - Continuing Appropriations - GoP Counterpart Funds"},"102151","General Fund - Continuing Appropriations - GoP Counterpart Funds","General Fund","Continuing Appropriations","GoP Counterpart Funds"]
[{"$f":"+CONCATENATE(Table4[[#This Row],[Funding Code]],\" - \",Table4[[#This Row],[Description]])","v":"102152 - General Fund - Continuing Appropriations - Asian Development Bank"},"102152","General Fund - Continuing Appropriations - Asian Development Bank","General Fund","Continuing Appropriations","Asian Development Bank"]
[{"$f":"+CONCATENATE(Table4[[#This Row],[Funding Code]],\" - \",Table4[[#This Row],[Description]])","v":"102153 - General Fund - Continuing Appropriations - Australia"},"102153","General Fund - Continuing Appropriations - Australia","General Fund","Continuing Appropriations","Australia"]
[{"$f":"+CONCATENATE(Table4[[#This Row],[Funding Code]],\" - \",Table4[[#This Row],[Description]])","v":"102154 - General Fund - Continuing Appropriations - Austria"},"102154","General Fund - Continuing Appropriations - Austria","General Fund","Continuing Appropriations","Austria"]
[{"$f":"+CONCATENATE(Table4[[#This Row],[Funding Code]],\" - \",Table4[[#This Row],[Description]])","v":"102155 - General Fund - Continuing Appropriations - Belgium"},"102155","General Fund - Continuing Appropriations - Belgium","General Fund","Continuing Appropriations","Belgium"]
[{"$f":"+CONCATENATE(Table4[[#This Row],[Funding Code]],\" - \",Table4[[#This Row],[Description]])","v":"102156 - General Fund - Continuing Appropriations - Canada"},"102156","General Fund - Continuing Appropriations - Canada","General Fund","Continuing Appropriations","Canada"]
[{"$f":"+CONCATENATE(Table4[[#This Row],[Funding Code]],\" - \",Table4[[#This Row],[Description]])","v":"102157 - General Fund - Continuing Appropriations - China"},"102157","General Fund - Continuing Appropriations - China","General Fund","Continuing Appropriations","China"]
[{"$f":"+CONCATENATE(Table4[[#This Row],[Funding Code]],\" - \",Table4[[#This Row],[Description]])","v":"102158 - General Fund - Continuing Appropriations - Denmark"},"102158",{"$f":"+CONCATENATE(D66,\" - \",E66,\" - \",F66)","v":"General Fund - Continuing Appropriations - Denmark"},"General Fund","Continuing Appropriations","Denmark"]
[{"$f":"+CONCATENATE(Table4[[#This Row],[Funding Code]],\" - \",Table4[[#This Row],[Description]])","v":"102159 - General Fund - Continuing Appropriations - European Commission"},"102159","General Fund - Continuing Appropriations - European Commission","General Fund","Continuing Appropriations","European Commission"]
[{"$f":"+CONCATENATE(Table4[[#This Row],[Funding Code]],\" - \",Table4[[#This Row],[Description]])","v":"102160 - General Fund - Continuing Appropriations - France"},"102160","General Fund - Continuing Appropriations - France","General Fund","Continuing Appropriations","France"]
[{"$f":"+CONCATENATE(Table4[[#This Row],[Funding Code]],\" - \",Table4[[#This Row],[Description]])","v":"102161 - General Fund - Continuing Appropriations - Germany"},"102161","General Fund - Continuing Appropriations - Germany","General Fund","Continuing Appropriations","Germany"]
[{"$f":"+CONCATENATE(Table4[[#This Row],[Funding Code]],\" - \",Table4[[#This Row],[Description]])","v":"102162 - General Fund - Continuing Appropriations - Global Environment Facility"},"102162","General Fund - Continuing Appropriations - Global Environment Facility","General Fund","Continuing Appropriations","Global Environment Facility"]
[{"$f":"+CONCATENATE(Table4[[#This Row],[Funding Code]],\" - \",Table4[[#This Row],[Description]])","v":"102163 - General Fund - Continuing Appropriations - International Bank for Reconstruction and Development (IBRD)"},"102163","General Fund - Continuing Appropriations - International Bank for Reconstruction and Development (IBRD)","General Fund","Continuing Appropriations","International Bank for Reconstruction and Development (IBRD)"]
[{"$f":"+CONCATENATE(Table4[[#This Row],[Funding Code]],\" - \",Table4[[#This Row],[Description]])","v":"102164 - General Fund - Continuing Appropriations - International Development Fund (IDF)"},"102164","General Fund - Continuing Appropriations - International Development Fund (IDF)","General Fund","Continuing Appropriations","International Development Fund (IDF)"]
[{"$f":"+CONCATENATE(Table4[[#This Row],[Funding Code]],\" - \",Table4[[#This Row],[Description]])","v":"102165 - General Fund - Continuing Appropriations - International Fund for Agricultural Development (IFAD)"},"102165","General Fund - Continuing Appropriations - International Fund for Agricultural Development (IFAD)","General Fund","Continuing Appropriations","International Fund for Agricultural Development (IFAD)"]
[{"$f":"+CONCATENATE(Table4[[#This Row],[Funding Code]],\" - \",Table4[[#This Row],[Description]])","v":"102166 - General Fund - Continuing Appropriations - Italy"},"102166","General Fund - Continuing Appropriations - Italy","General Fund","Continuing Appropriations","Italy"]
[{"$f":"+CONCATENATE(Table4[[#This Row],[Funding Code]],\" - \",Table4[[#This Row],[Description]])","v":"102167 - General Fund - Continuing Appropriations - Japan"},"102167","General Fund - Continuing Appropriations - Japan","General Fund","Continuing Appropriations","Japan"]
[{"$f":"+CONCATENATE(Table4[[#This Row],[Funding Code]],\" - \",Table4[[#This Row],[Description]])","v":"102168 - General Fund - Continuing Appropriations - Korea"},"102168","General Fund - Continuing Appropriations - Korea","General Fund","Continuing Appropriations","Korea"]
[{"$f":"+CONCATENATE(Table4[[#This Row],[Funding Code]],\" - \",Table4[[#This Row],[Description]])","v":"102169 - General Fund - Continuing Appropriations - Millennium Challenge Corporation"},"102169","General Fund - Continuing Appropriations - Millennium Challenge Corporation","General Fund","Continuing Appropriations","Millennium Challenge Corporation"]
[{"$f":"+CONCATENATE(Table4[[#This Row],[Funding Code]],\" - \",Table4[[#This Row],[Description]])","v":"102170 - General Fund - Continuing Appropriations - Netherlands"},"102170","General Fund - Continuing Appropriations - Netherlands","General Fund","Continuing Appropriations","Netherlands"]
[{"$f":"+CONCATENATE(Table4[[#This Row],[Funding Code]],\" - \",Table4[[#This Row],[Description]])","v":"102171 - General Fund - Continuing Appropriations - New Zealand"},"102171","General Fund - Continuing Appropriations - New Zealand","General Fund","Continuing Appropriations","New Zealand"]
[{"$f":"+CONCATENATE(Table4[[#This Row],[Funding Code]],\" - \",Table4[[#This Row],[Description]])","v":"102172 - General Fund - Continuing Appropriations - Norway"},"102172","General Fund - Continuing Appropriations - Norway","General Fund","Continuing Appropriations","Norway"]
[{"$f":"+CONCATENATE(Table4[[#This Row],[Funding Code]],\" - \",Table4[[#This Row],[Description]])","v":"102173 - General Fund - Continuing Appropriations - Saudi Arabia"},"102173","General Fund - Continuing Appropriations - Saudi Arabia","General Fund","Continuing Appropriations","Saudi Arabia"]
[{"$f":"+CONCATENATE(Table4[[#This Row],[Funding Code]],\" - \",Table4[[#This Row],[Description]])","v":"102174 - General Fund - Continuing Appropriations - Spain"},"102174","General Fund - Continuing Appropriations - Spain","General Fund","Continuing Appropriations","Spain"]
[{"$f":"+CONCATENATE(Table4[[#This Row],[Funding Code]],\" - \",Table4[[#This Row],[Description]])","v":"102175 - General Fund - Continuing Appropriations - Switzerland"},"102175","General Fund - Continuing Appropriations - Switzerland","General Fund","Continuing Appropriations","Switzerland"]
[{"$f":"+CONCATENATE(Table4[[#This Row],[Funding Code]],\" - \",Table4[[#This Row],[Description]])","v":"102176 - General Fund - Continuing Appropriations - United Kingdom"},"102176","General Fund - Continuing Appropriations - United Kingdom","General Fund","Continuing Appropriations","United Kingdom"]
[{"$f":"+CONCATENATE(Table4[[#This Row],[Funding Code]],\" - \",Table4[[#This Row],[Description]])","v":"102177 - General Fund - Continuing Appropriations - United States"},"102177","General Fund - Continuing Appropriations - United States","General Fund","Continuing Appropriations","United States"]
[{"$f":"+CONCATENATE(Table4[[#This Row],[Funding Code]],\" - \",Table4[[#This Row],[Description]])","v":"102178 - General Fund - Continuing Appropriations - United Nations Development Fund for Women (UNIFEM)"},"102178","General Fund - Continuing Appropriations - United Nations Development Fund for Women (UNIFEM)","General Fund","Continuing Appropriations","United Nations Development Fund for Women (UNIFEM)"]
[{"$f":"+CONCATENATE(Table4[[#This Row],[Funding Code]],\" - \",Table4[[#This Row],[Description]])","v":"102179 - General Fund - Continuing Appropriations - United Nations Population Fund (UNFPA)"},"102179","General Fund - Continuing Appropriations - United Nations Population Fund (UNFPA)","General Fund","Continuing Appropriations","United Nations Population Fund (UNFPA)"]
[{"$f":"+CONCATENATE(Table4[[#This Row],[Funding Code]],\" - \",Table4[[#This Row],[Description]])","v":"102180 - General Fund - Continuing Appropriations - Others  (Specify)"},"102180","General Fund - Continuing Appropriations - Others  (Specify)","General Fund","Continuing Appropriations","Others  (Specify)"]
[{"$f":"+CONCATENATE(Table4[[#This Row],[Funding Code]],\" - \",Table4[[#This Row],[Description]])","v":"102252 - General Fund - Continuing Appropriations - Special Shares of LGUs in the Proceeds of National Taxes"},"102252","General Fund - Continuing Appropriations - Special Shares of LGUs in the Proceeds of National Taxes","General Fund","Continuing Appropriations","Special Shares of LGUs in the Proceeds of National Taxes"]
[{"$f":"+CONCATENATE(Table4[[#This Row],[Funding Code]],\" - \",Table4[[#This Row],[Description]])","v":"102253 - General Fund - Continuing Appropriations - Barangay Officials Death Benefits Fund"},"102253","General Fund - Continuing Appropriations - Barangay Officials Death Benefits Fund","General Fund","Continuing Appropriations","Barangay Officials Death Benefits Fund"]
[{"$f":"+CONCATENATE(Table4[[#This Row],[Funding Code]],\" - \",Table4[[#This Row],[Description]])","v":"102254 - General Fund - Continuing Appropriations - Local Government Support Fund"},"102254","General Fund - Continuing Appropriations - Local Government Support Fund","General Fund","Continuing Appropriations","Local Government Support Fund"]
[{"$f":"+CONCATENATE(Table4[[#This Row],[Funding Code]],\" - \",Table4[[#This Row],[Description]])","v":"102255 - General Fund - Continuing Appropriations - Others  (Specify)"},"102255","General Fund - Continuing Appropriations - Others  (Specify)","General Fund","Continuing Appropriations","Others  (Specify)"]
[{"$f":"+CONCATENATE(Table4[[#This Row],[Funding Code]],\" - \",Table4[[#This Row],[Description]])","v":"102276 - General Fund - Continuing Appropriations - Budgetary Support to Government Corporations - Equity Contribution"},"102276","General Fund - Continuing Appropriations - Budgetary Support to Government Corporations - Equity Contribution","General Fund","Continuing Appropriations","Budgetary Support to Government Corporations - Equity Contribution"]
[{"$f":"+CONCATENATE(Table4[[#This Row],[Funding Code]],\" - \",Table4[[#This Row],[Description]])","v":"102277 - General Fund - Continuing Appropriations - Budgetary Support to Government Corporations - Subsidies"},"102277","General Fund - Continuing Appropriations - Budgetary Support to Government Corporations - Subsidies","General Fund","Continuing Appropriations","Budgetary Support to Government Corporations - Subsidies"]
[{"$f":"+CONCATENATE(Table4[[#This Row],[Funding Code]],\" - \",Table4[[#This Row],[Description]])","v":"102278 - General Fund - Continuing Appropriations - Budgetary Support to Government Corporations - Loans"},"102278","General Fund - Continuing Appropriations - Budgetary Support to Government Corporations - Loans","General Fund","Continuing Appropriations","Budgetary Support to Government Corporations - Loans"]
[{"$f":"+CONCATENATE(Table4[[#This Row],[Funding Code]],\" - \",Table4[[#This Row],[Description]])","v":"102279 - General Fund - Continuing Appropriations - Budgetary Support to Government Corporations - Advances"},"102279","General Fund - Continuing Appropriations - Budgetary Support to Government Corporations - Advances","General Fund","Continuing Appropriations","Budgetary Support to Government Corporations - Advances"]
[{"$f":"+CONCATENATE(Table4[[#This Row],[Funding Code]],\" - \",Table4[[#This Row],[Description]])","v":"102281 - General Fund - Continuing Appropriations - Budgetary Support to Government Corporations - Others (Specify)"},"102281","General Fund - Continuing Appropriations - Budgetary Support to Government Corporations - Others (Specify)","General Fund","Continuing Appropriations","Budgetary Support to Government Corporations - Others (Specify)"]
[{"$f":"+CONCATENATE(Table4[[#This Row],[Funding Code]],\" - \",Table4[[#This Row],[Description]])","v":"102401 - General Fund - Continuing Appropriations - Calamity Fund"},"102401","General Fund - Continuing Appropriations - Calamity Fund","General Fund","Continuing Appropriations","Calamity Fund"]
[{"$f":"+CONCATENATE(Table4[[#This Row],[Funding Code]],\" - \",Table4[[#This Row],[Description]])","v":"102402 - General Fund - Continuing Appropriations - Contingent Fund"},"102402","General Fund - Continuing Appropriations - Contingent Fund","General Fund","Continuing Appropriations","Contingent Fund"]
[{"$f":"+CONCATENATE(Table4[[#This Row],[Funding Code]],\" - \",Table4[[#This Row],[Description]])","v":"102403 - General Fund - Continuing Appropriations - DepEd – School Building Program/Educational Facilities Fund"},"102403","General Fund - Continuing Appropriations - DepEd – School Building Program/Educational Facilities Fund","General Fund","Continuing Appropriations","DepEd – School Building Program/Educational Facilities Fund"]
[{"$f":"+CONCATENATE(Table4[[#This Row],[Funding Code]],\" - \",Table4[[#This Row],[Description]])","v":"102404 - General Fund - Continuing Appropriations - E-Government Fund"},"102404","General Fund - Continuing Appropriations - E-Government Fund","General Fund","Continuing Appropriations","E-Government Fund"]
[{"$f":"+CONCATENATE(Table4[[#This Row],[Funding Code]],\" - \",Table4[[#This Row],[Description]])","v":"102405 - General Fund - Continuing Appropriations - International Commitments Fund"},"102405","General Fund - Continuing Appropriations - International Commitments Fund","General Fund","Continuing Appropriations","International Commitments Fund"]
[{"$f":"+CONCATENATE(Table4[[#This Row],[Funding Code]],\" - \",Table4[[#This Row],[Description]])","v":"102406 - General Fund - Continuing Appropriations - Miscellaneous Personnel Benefits Fund"},"102406","General Fund - Continuing Appropriations - Miscellaneous Personnel Benefits Fund","General Fund","Continuing Appropriations","Miscellaneous Personnel Benefits Fund"]
[{"$f":"+CONCATENATE(Table4[[#This Row],[Funding Code]],\" - \",Table4[[#This Row],[Description]])","v":"102407 - General Fund - Continuing Appropriations - Pension and Gratuity Fund"},"102407","General Fund - Continuing Appropriations - Pension and Gratuity Fund","General Fund","Continuing Appropriations","Pension and Gratuity Fund"]
[{"$f":"+CONCATENATE(Table4[[#This Row],[Funding Code]],\" - \",Table4[[#This Row],[Description]])","v":"102408 - General Fund - Continuing Appropriations - Priority Development Assistance Fund"},"102408","General Fund - Continuing Appropriations - Priority Development Assistance Fund","General Fund","Continuing Appropriations","Priority Development Assistance Fund"]
[{"$f":"+CONCATENATE(Table4[[#This Row],[Funding Code]],\" - \",Table4[[#This Row],[Description]])","v":"102409 - General Fund - Continuing Appropriations - Allocation for Capital Outlays and Scholarship Programs of State Universities and Colleges (SUCs)"},"102409","General Fund - Continuing Appropriations - Allocation for Capital Outlays and Scholarship Programs of State Universities and Colleges (SUCs)","General Fund","Continuing Appropriations","Allocation for Capital Outlays and Scholarship Programs of State Universities and Colleges (SUCs)"]
[{"$f":"+CONCATENATE(Table4[[#This Row],[Funding Code]],\" - \",Table4[[#This Row],[Description]])","v":"102410 - General Fund - Continuing Appropriations - Feasibility Studies Fund"},"102410","General Fund - Continuing Appropriations - Feasibility Studies Fund","General Fund","Continuing Appropriations","Feasibility Studies Fund"]
[{"$f":"+CONCATENATE(Table4[[#This Row],[Funding Code]],\" - \",Table4[[#This Row],[Description]])","v":"102411 - General Fund - Continuing Appropriations -  Others"},"102411","General Fund - Continuing Appropriations -  Others","General Fund","Continuing Appropriations"," Others"]
[{"$f":"+CONCATENATE(Table4[[#This Row],[Funding Code]],\" - \",Table4[[#This Row],[Description]])","v":"103000 - General Fund - Supplemental Appropriations - Supplemental Appropriations"},"103000","General Fund - Supplemental Appropriations - Supplemental Appropriations","General Fund","Supplemental Appropriations","Supplemental Appropriations"]
[{"$f":"+CONCATENATE(Table4[[#This Row],[Funding Code]],\" - \",Table4[[#This Row],[Description]])","v":"103101 - General Fund - Supplemental Appropriations - Specific Budgets of National Government Agencies "},"103101","General Fund - Supplemental Appropriations - Specific Budgets of National Government Agencies ","General Fund","Supplemental Appropriations","Specific Budgets of National Government Agencies "]
[{"$f":"+CONCATENATE(Table4[[#This Row],[Funding Code]],\" - \",Table4[[#This Row],[Description]])","v":"104000 - General Fund - Automatic Appropriations - Automatic Appropriations"},"104000","General Fund - Automatic Appropriations - Automatic Appropriations","General Fund","Automatic Appropriations","Automatic Appropriations"]
[{"$f":"+CONCATENATE(Table4[[#This Row],[Funding Code]],\" - \",Table4[[#This Row],[Description]])","v":"104102 - General Fund - Automatic Appropriations - Specific Budgets of National Government Agencies "},"104102","General Fund - Automatic Appropriations - Specific Budgets of National Government Agencies ","General Fund","Automatic Appropriations","Specific Budgets of National Government Agencies "]
[{"$f":"+CONCATENATE(Table4[[#This Row],[Funding Code]],\" - \",Table4[[#This Row],[Description]])","v":"104152 - General Fund - Automatic Appropriations - Asian Development Bank"},"104152","General Fund - Automatic Appropriations - Asian Development Bank","General Fund","Automatic Appropriations","Asian Development Bank"]
[{"$f":"+CONCATENATE(Table4[[#This Row],[Funding Code]],\" - \",Table4[[#This Row],[Description]])","v":"104153 - General Fund - Automatic Appropriations - Australia"},"104153","General Fund - Automatic Appropriations - Australia","General Fund","Automatic Appropriations","Australia"]
[{"$f":"+CONCATENATE(Table4[[#This Row],[Funding Code]],\" - \",Table4[[#This Row],[Description]])","v":"104154 - General Fund - Automatic Appropriations - Austria"},"104154","General Fund - Automatic Appropriations - Austria","General Fund","Automatic Appropriations","Austria"]
[{"$f":"+CONCATENATE(Table4[[#This Row],[Funding Code]],\" - \",Table4[[#This Row],[Description]])","v":"104155 - General Fund - Automatic Appropriations - Belgium"},"104155","General Fund - Automatic Appropriations - Belgium","General Fund","Automatic Appropriations","Belgium"]
[{"$f":"+CONCATENATE(Table4[[#This Row],[Funding Code]],\" - \",Table4[[#This Row],[Description]])","v":"104156 - General Fund - Automatic Appropriations - Canada"},"104156","General Fund - Automatic Appropriations - Canada","General Fund","Automatic Appropriations","Canada"]
[{"$f":"+CONCATENATE(Table4[[#This Row],[Funding Code]],\" - \",Table4[[#This Row],[Description]])","v":"104157 - General Fund - Automatic Appropriations - China"},"104157","General Fund - Automatic Appropriations - China","General Fund","Automatic Appropriations","China"]
[{"$f":"+CONCATENATE(Table4[[#This Row],[Funding Code]],\" - \",Table4[[#This Row],[Description]])","v":"104158 - General Fund - Automatic Appropriations - Denmark"},"104158","General Fund - Automatic Appropriations - Denmark","General Fund","Automatic Appropriations","Denmark"]
[{"$f":"+CONCATENATE(Table4[[#This Row],[Funding Code]],\" - \",Table4[[#This Row],[Description]])","v":"104159 - General Fund - Automatic Appropriations - European Commission"},"104159","General Fund - Automatic Appropriations - European Commission","General Fund","Automatic Appropriations","European Commission"]
[{"$f":"+CONCATENATE(Table4[[#This Row],[Funding Code]],\" - \",Table4[[#This Row],[Description]])","v":"104160 - General Fund - Automatic Appropriations - France"},"104160","General Fund - Automatic Appropriations - France","General Fund","Automatic Appropriations","France"]
[{"$f":"+CONCATENATE(Table4[[#This Row],[Funding Code]],\" - \",Table4[[#This Row],[Description]])","v":"104161 - General Fund - Automatic Appropriations - Germany"},"104161","General Fund - Automatic Appropriations - Germany","General Fund","Automatic Appropriations","Germany"]
[{"$f":"+CONCATENATE(Table4[[#This Row],[Funding Code]],\" - \",Table4[[#This Row],[Description]])","v":"104162 - General Fund - Automatic Appropriations - Global Environment Facility"},"104162","General Fund - Automatic Appropriations - Global Environment Facility","General Fund","Automatic Appropriations","Global Environment Facility"]
[{"$f":"+CONCATENATE(Table4[[#This Row],[Funding Code]],\" - \",Table4[[#This Row],[Description]])","v":"104163 - General Fund - Automatic Appropriations - International Bank for Reconstruction and Development (IBRD)"},"104163","General Fund - Automatic Appropriations - International Bank for Reconstruction and Development (IBRD)","General Fund","Automatic Appropriations","International Bank for Reconstruction and Development (IBRD)"]
[{"$f":"+CONCATENATE(Table4[[#This Row],[Funding Code]],\" - \",Table4[[#This Row],[Description]])","v":"104164 - General Fund - Automatic Appropriations - International Development Fund (IDF)"},"104164","General Fund - Automatic Appropriations - International Development Fund (IDF)","General Fund","Automatic Appropriations","International Development Fund (IDF)"]
[{"$f":"+CONCATENATE(Table4[[#This Row],[Funding Code]],\" - \",Table4[[#This Row],[Description]])","v":"104165 - General Fund - Automatic Appropriations - International Fund for Agricultural Development (IFAD)"},"104165","General Fund - Automatic Appropriations - International Fund for Agricultural Development (IFAD)","General Fund","Automatic Appropriations","International Fund for Agricultural Development (IFAD)"]
[{"$f":"+CONCATENATE(Table4[[#This Row],[Funding Code]],\" - \",Table4[[#This Row],[Description]])","v":"104166 - General Fund - Automatic Appropriations - Italy"},"104166","General Fund - Automatic Appropriations - Italy","General Fund","Automatic Appropriations","Italy"]
[{"$f":"+CONCATENATE(Table4[[#This Row],[Funding Code]],\" - \",Table4[[#This Row],[Description]])","v":"104167 - General Fund - Automatic Appropriations - Japan"},"104167","General Fund - Automatic Appropriations - Japan","General Fund","Automatic Appropriations","Japan"]
[{"$f":"+CONCATENATE(Table4[[#This Row],[Funding Code]],\" - \",Table4[[#This Row],[Description]])","v":"104168 - General Fund - Automatic Appropriations - Korea"},"104168","General Fund - Automatic Appropriations - Korea","General Fund","Automatic Appropriations","Korea"]
[{"$f":"+CONCATENATE(Table4[[#This Row],[Funding Code]],\" - \",Table4[[#This Row],[Description]])","v":"104169 - General Fund - Automatic Appropriations - Millennium Challenge Corporation"},"104169",{"$f":"+CONCATENATE(D130,\" - \",E130,\" - \",F130)","v":"General Fund - Automatic Appropriations - Millennium Challenge Corporation"},"General Fund","Automatic Appropriations","Millennium Challenge Corporation"]
[{"$f":"+CONCATENATE(Table4[[#This Row],[Funding Code]],\" - \",Table4[[#This Row],[Description]])","v":"104170 - General Fund - Automatic Appropriations - Netherlands"},"104170","General Fund - Automatic Appropriations - Netherlands","General Fund","Automatic Appropriations","Netherlands"]
[{"$f":"+CONCATENATE(Table4[[#This Row],[Funding Code]],\" - \",Table4[[#This Row],[Description]])","v":"104171 - General Fund - Automatic Appropriations - New Zealand"},"104171","General Fund - Automatic Appropriations - New Zealand","General Fund","Automatic Appropriations","New Zealand"]
[{"$f":"+CONCATENATE(Table4[[#This Row],[Funding Code]],\" - \",Table4[[#This Row],[Description]])","v":"104172 - General Fund - Automatic Appropriations - Norway"},"104172","General Fund - Automatic Appropriations - Norway","General Fund","Automatic Appropriations","Norway"]
[{"$f":"+CONCATENATE(Table4[[#This Row],[Funding Code]],\" - \",Table4[[#This Row],[Description]])","v":"104173 - General Fund - Automatic Appropriations - Saudi Arabia"},"104173","General Fund - Automatic Appropriations - Saudi Arabia","General Fund","Automatic Appropriations","Saudi Arabia"]
[{"$f":"+CONCATENATE(Table4[[#This Row],[Funding Code]],\" - \",Table4[[#This Row],[Description]])","v":"104174 - General Fund - Automatic Appropriations - Spain"},"104174","General Fund - Automatic Appropriations - Spain","General Fund","Automatic Appropriations","Spain"]
[{"$f":"+CONCATENATE(Table4[[#This Row],[Funding Code]],\" - \",Table4[[#This Row],[Description]])","v":"104175 - General Fund - Automatic Appropriations - Switzerland"},"104175","General Fund - Automatic Appropriations - Switzerland","General Fund","Automatic Appropriations","Switzerland"]
[{"$f":"+CONCATENATE(Table4[[#This Row],[Funding Code]],\" - \",Table4[[#This Row],[Description]])","v":"104176 - General Fund - Automatic Appropriations - United Kingdom"},"104176","General Fund - Automatic Appropriations - United Kingdom","General Fund","Automatic Appropriations","United Kingdom"]
[{"$f":"+CONCATENATE(Table4[[#This Row],[Funding Code]],\" - \",Table4[[#This Row],[Description]])","v":"104177 - General Fund - Automatic Appropriations - United States"},"104177","General Fund - Automatic Appropriations - United States","General Fund","Automatic Appropriations","United States"]
[{"$f":"+CONCATENATE(Table4[[#This Row],[Funding Code]],\" - \",Table4[[#This Row],[Description]])","v":"104178 - General Fund - Automatic Appropriations - United Nations Development Fund for Women (UNIFEM)"},"104178","General Fund - Automatic Appropriations - United Nations Development Fund for Women (UNIFEM)","General Fund","Automatic Appropriations","United Nations Development Fund for Women (UNIFEM)"]
[{"$f":"+CONCATENATE(Table4[[#This Row],[Funding Code]],\" - \",Table4[[#This Row],[Description]])","v":"104179 - General Fund - Automatic Appropriations - United Nations Population Fund (UNFPA)"},"104179","General Fund - Automatic Appropriations - United Nations Population Fund (UNFPA)","General Fund","Automatic Appropriations","United Nations Population Fund (UNFPA)"]
[{"$f":"+CONCATENATE(Table4[[#This Row],[Funding Code]],\" - \",Table4[[#This Row],[Description]])","v":"104250 - General Fund - Automatic Appropriations - Others  (Specify)"},"104250","General Fund - Automatic Appropriations - Others  (Specify)","General Fund","Automatic Appropriations","Others  (Specify)"]
[{"$f":"+CONCATENATE(Table4[[#This Row],[Funding Code]],\" - \",Table4[[#This Row],[Description]])","v":"104251 - General Fund - Automatic Appropriations - Internal Revenue Allotment"},"104251","General Fund - Automatic Appropriations - Internal Revenue Allotment","General Fund","Automatic Appropriations","Internal Revenue Allotment"]
[{"$f":"+CONCATENATE(Table4[[#This Row],[Funding Code]],\" - \",Table4[[#This Row],[Description]])","v":"104280 - General Fund - Automatic Appropriations - Budgetary Support to Government Corporations - Net Lending"},"104280","General Fund - Automatic Appropriations - Budgetary Support to Government Corporations - Net Lending","General Fund","Automatic Appropriations","Budgetary Support to Government Corporations - Net Lending"]
[{"$f":"+CONCATENATE(Table4[[#This Row],[Funding Code]],\" - \",Table4[[#This Row],[Description]])","v":"104301 - General Fund - Automatic Appropriations - Financial Assistance to MMDA - Subsidies"},"104301","General Fund - Automatic Appropriations - Financial Assistance to MMDA - Subsidies","General Fund","Automatic Appropriations","Financial Assistance to MMDA - Subsidies"]
[{"$f":"+CONCATENATE(Table4[[#This Row],[Funding Code]],\" - \",Table4[[#This Row],[Description]])","v":"104302 - General Fund - Automatic Appropriations - Others (Specify)"},"104302","General Fund - Automatic Appropriations - Others (Specify)","General Fund","Automatic Appropriations","Others (Specify)"]
[{"$f":"+CONCATENATE(Table4[[#This Row],[Funding Code]],\" - \",Table4[[#This Row],[Description]])","v":"104321 - General Fund - Automatic Appropriations - Fiduciary Fund for Agrarian Reform Education "},"104321","General Fund - Automatic Appropriations - Fiduciary Fund for Agrarian Reform Education ","General Fund","Automatic Appropriations","Fiduciary Fund for Agrarian Reform Education "]
[{"$f":"+CONCATENATE(Table4[[#This Row],[Funding Code]],\" - \",Table4[[#This Row],[Description]])","v":"104322 - General Fund - Automatic Appropriations - Agrarian Reform Fund"},"104322","General Fund - Automatic Appropriations - Agrarian Reform Fund","General Fund","Automatic Appropriations","Agrarian Reform Fund"]
[{"$f":"+CONCATENATE(Table4[[#This Row],[Funding Code]],\" - \",Table4[[#This Row],[Description]])","v":"104323 - General Fund - Automatic Appropriations - Agricultural Competitiveness Enhancement Fund"},"104323","General Fund - Automatic Appropriations - Agricultural Competitiveness Enhancement Fund","General Fund","Automatic Appropriations","Agricultural Competitiveness Enhancement Fund"]
[{"$f":"+CONCATENATE(Table4[[#This Row],[Funding Code]],\" - \",Table4[[#This Row],[Description]])","v":"104324 - General Fund - Automatic Appropriations - Agro-Industry Modernization Credit and Financing Program (AMCFP)"},"104324","General Fund - Automatic Appropriations - Agro-Industry Modernization Credit and Financing Program (AMCFP)","General Fund","Automatic Appropriations","Agro-Industry Modernization Credit and Financing Program (AMCFP)"]
[{"$f":"+CONCATENATE(Table4[[#This Row],[Funding Code]],\" - \",Table4[[#This Row],[Description]])","v":"104325 - General Fund - Automatic Appropriations - Wildlife Management Fund "},"104325","General Fund - Automatic Appropriations - Wildlife Management Fund ","General Fund","Automatic Appropriations","Wildlife Management Fund "]
[{"$f":"+CONCATENATE(Table4[[#This Row],[Funding Code]],\" - \",Table4[[#This Row],[Description]])","v":"104326 - General Fund - Automatic Appropriations - Support to Fertilizer and Pesticide Program"},"104326","General Fund - Automatic Appropriations - Support to Fertilizer and Pesticide Program","General Fund","Automatic Appropriations","Support to Fertilizer and Pesticide Program"]
[{"$f":"+CONCATENATE(Table4[[#This Row],[Funding Code]],\" - \",Table4[[#This Row],[Description]])","v":"104327 - General Fund - Automatic Appropriations - Livestock Development Fund"},"104327","General Fund - Automatic Appropriations - Livestock Development Fund","General Fund","Automatic Appropriations","Livestock Development Fund"]
[{"$f":"+CONCATENATE(Table4[[#This Row],[Funding Code]],\" - \",Table4[[#This Row],[Description]])","v":"104328 - General Fund - Automatic Appropriations - Meat Inspection Service Development Trust Fund"},"104328","General Fund - Automatic Appropriations - Meat Inspection Service Development Trust Fund","General Fund","Automatic Appropriations","Meat Inspection Service Development Trust Fund"]
[{"$f":"+CONCATENATE(Table4[[#This Row],[Funding Code]],\" - \",Table4[[#This Row],[Description]])","v":"104329 - General Fund - Automatic Appropriations - Early Childhood Care and Development Council -SAGF"},"104329","General Fund - Automatic Appropriations - Early Childhood Care and Development Council -SAGF","General Fund","Automatic Appropriations","Early Childhood Care and Development Council -SAGF"]
[{"$f":"+CONCATENATE(Table4[[#This Row],[Funding Code]],\" - \",Table4[[#This Row],[Description]])","v":"104330 - General Fund - Automatic Appropriations - Instructional Materials Development Center Fund"},"104330","General Fund - Automatic Appropriations - Instructional Materials Development Center Fund","General Fund","Automatic Appropriations","Instructional Materials Development Center Fund"]
[{"$f":"+CONCATENATE(Table4[[#This Row],[Funding Code]],\" - \",Table4[[#This Row],[Description]])","v":"104331 - General Fund - Automatic Appropriations - Malampaya Gas Fund"},"104331","General Fund - Automatic Appropriations - Malampaya Gas Fund","General Fund","Automatic Appropriations","Malampaya Gas Fund"]
[{"$f":"+CONCATENATE(Table4[[#This Row],[Funding Code]],\" - \",Table4[[#This Row],[Description]])","v":"104332 - General Fund - Automatic Appropriations - Collections from other production shares and miscellaneous Income"},"104332","General Fund - Automatic Appropriations - Collections from other production shares and miscellaneous Income","General Fund","Automatic Appropriations","Collections from other production shares and miscellaneous Income"]
[{"$f":"+CONCATENATE(Table4[[#This Row],[Funding Code]],\" - \",Table4[[#This Row],[Description]])","v":"104333 - General Fund - Automatic Appropriations - Technology Transfer for Energy Management Fund"},"104333","General Fund - Automatic Appropriations - Technology Transfer for Energy Management Fund","General Fund","Automatic Appropriations","Technology Transfer for Energy Management Fund"]
[{"$f":"+CONCATENATE(Table4[[#This Row],[Funding Code]],\" - \",Table4[[#This Row],[Description]])","v":"104334 - General Fund - Automatic Appropriations - Integrated Protected Areas Fund "},"104334","General Fund - Automatic Appropriations - Integrated Protected Areas Fund ","General Fund","Automatic Appropriations","Integrated Protected Areas Fund "]
[{"$f":"+CONCATENATE(Table4[[#This Row],[Funding Code]],\" - \",Table4[[#This Row],[Description]])","v":"104335 - General Fund - Automatic Appropriations - Protected Areas and Wildlife Management Fund"},"104335","General Fund - Automatic Appropriations - Protected Areas and Wildlife Management Fund","General Fund","Automatic Appropriations","Protected Areas and Wildlife Management Fund"]
[{"$f":"+CONCATENATE(Table4[[#This Row],[Funding Code]],\" - \",Table4[[#This Row],[Description]])","v":"104336 - General Fund - Automatic Appropriations - Sale of Confiscated Logs"},"104336","General Fund - Automatic Appropriations - Sale of Confiscated Logs","General Fund","Automatic Appropriations","Sale of Confiscated Logs"]
[{"$f":"+CONCATENATE(Table4[[#This Row],[Funding Code]],\" - \",Table4[[#This Row],[Description]])","v":"104337 - General Fund - Automatic Appropriations - Air Quality Management Fund"},"104337","General Fund - Automatic Appropriations - Air Quality Management Fund","General Fund","Automatic Appropriations","Air Quality Management Fund"]
[{"$f":"+CONCATENATE(Table4[[#This Row],[Funding Code]],\" - \",Table4[[#This Row],[Description]])","v":"104338 - General Fund - Automatic Appropriations - Mines and Geosciences Bureau - SAGF"},"104338","General Fund - Automatic Appropriations - Mines and Geosciences Bureau - SAGF","General Fund","Automatic Appropriations","Mines and Geosciences Bureau - SAGF"]
[{"$f":"+CONCATENATE(Table4[[#This Row],[Funding Code]],\" - \",Table4[[#This Row],[Description]])","v":"104339 - General Fund - Automatic Appropriations - Non-Intrusive Container Inspection System Project Fund"},"104339","General Fund - Automatic Appropriations - Non-Intrusive Container Inspection System Project Fund","General Fund","Automatic Appropriations","Non-Intrusive Container Inspection System Project Fund"]
[{"$f":"+CONCATENATE(Table4[[#This Row],[Funding Code]],\" - \",Table4[[#This Row],[Description]])","v":"104340 - General Fund - Automatic Appropriations - Super Green Lane Trust Fund"},"104340","General Fund - Automatic Appropriations - Super Green Lane Trust Fund","General Fund","Automatic Appropriations","Super Green Lane Trust Fund"]
[{"$f":"+CONCATENATE(Table4[[#This Row],[Funding Code]],\" - \",Table4[[#This Row],[Description]])","v":"104341 - General Fund - Automatic Appropriations - Tax Refund (BOC/BIR)"},"104341","General Fund - Automatic Appropriations - Tax Refund (BOC/BIR)","General Fund","Automatic Appropriations","Tax Refund (BOC/BIR)"]
[{"$f":"+CONCATENATE(Table4[[#This Row],[Funding Code]],\" - \",Table4[[#This Row],[Description]])","v":"104342 - General Fund - Automatic Appropriations - Special Education Fund"},"104342","General Fund - Automatic Appropriations - Special Education Fund","General Fund","Automatic Appropriations","Special Education Fund"]
[{"$f":"+CONCATENATE(Table4[[#This Row],[Funding Code]],\" - \",Table4[[#This Row],[Description]])","v":"104343 - General Fund - Automatic Appropriations - Bank Penalties Fund"},"104343","General Fund - Automatic Appropriations - Bank Penalties Fund","General Fund","Automatic Appropriations","Bank Penalties Fund"]
[{"$f":"+CONCATENATE(Table4[[#This Row],[Funding Code]],\" - \",Table4[[#This Row],[Description]])","v":"104344 - General Fund - Automatic Appropriations - Fidelity Bond Fund"},"104344","General Fund - Automatic Appropriations - Fidelity Bond Fund","General Fund","Automatic Appropriations","Fidelity Bond Fund"]
[{"$f":"+CONCATENATE(Table4[[#This Row],[Funding Code]],\" - \",Table4[[#This Row],[Description]])","v":"104345 - General Fund - Automatic Appropriations - Insurance Commission Fund"},"104345","General Fund - Automatic Appropriations - Insurance Commission Fund","General Fund","Automatic Appropriations","Insurance Commission Fund"]
[{"$f":"+CONCATENATE(Table4[[#This Row],[Funding Code]],\" - \",Table4[[#This Row],[Description]])","v":"104346 - General Fund - Automatic Appropriations - Pre-Need Fund "},"104346","General Fund - Automatic Appropriations - Pre-Need Fund ","General Fund","Automatic Appropriations","Pre-Need Fund "]
[{"$f":"+CONCATENATE(Table4[[#This Row],[Funding Code]],\" - \",Table4[[#This Row],[Description]])","v":"104347 - General Fund - Automatic Appropriations - Department of Justice-OSEC SAGF"},"104347","General Fund - Automatic Appropriations - Department of Justice-OSEC SAGF","General Fund","Automatic Appropriations","Department of Justice-OSEC SAGF"]
[{"$f":"+CONCATENATE(Table4[[#This Row],[Funding Code]],\" - \",Table4[[#This Row],[Description]])","v":"104348 - General Fund - Automatic Appropriations - Department of Health OSEC-FDA SAGF"},"104348","General Fund - Automatic Appropriations - Department of Health OSEC-FDA SAGF","General Fund","Automatic Appropriations","Department of Health OSEC-FDA SAGF"]
[{"$f":"+CONCATENATE(Table4[[#This Row],[Funding Code]],\" - \",Table4[[#This Row],[Description]])","v":"104349 - General Fund - Automatic Appropriations - Department of Health OSEC-BQIHS SAGF"},"104349","General Fund - Automatic Appropriations - Department of Health OSEC-BQIHS SAGF","General Fund","Automatic Appropriations","Department of Health OSEC-BQIHS SAGF"]
[{"$f":"+CONCATENATE(Table4[[#This Row],[Funding Code]],\" - \",Table4[[#This Row],[Description]])","v":"104350 - General Fund - Automatic Appropriations - DILG Bureau of Fire Protection - SAGF"},"104350","General Fund - Automatic Appropriations - DILG Bureau of Fire Protection - SAGF","General Fund","Automatic Appropriations","DILG Bureau of Fire Protection - SAGF"]
[{"$f":"+CONCATENATE(Table4[[#This Row],[Funding Code]],\" - \",Table4[[#This Row],[Description]])","v":"104351 - General Fund - Automatic Appropriations - DOJ Office of the Secretary - SAGF"},"104351","General Fund - Automatic Appropriations - DOJ Office of the Secretary - SAGF","General Fund","Automatic Appropriations","DOJ Office of the Secretary - SAGF"]
[{"$f":"+CONCATENATE(Table4[[#This Row],[Funding Code]],\" - \",Table4[[#This Row],[Description]])","v":"104352 - General Fund - Automatic Appropriations - DOJ Land Registration Authority - SAGF"},"104352","General Fund - Automatic Appropriations - DOJ Land Registration Authority - SAGF","General Fund","Automatic Appropriations","DOJ Land Registration Authority - SAGF"]
[{"$f":"+CONCATENATE(Table4[[#This Row],[Funding Code]],\" - \",Table4[[#This Row],[Description]])","v":"104353 - General Fund - Automatic Appropriations - DOJ Office of the Solicitor General - SAGF"},"104353","General Fund - Automatic Appropriations - DOJ Office of the Solicitor General - SAGF","General Fund","Automatic Appropriations","DOJ Office of the Solicitor General - SAGF"]
[{"$f":"+CONCATENATE(Table4[[#This Row],[Funding Code]],\" - \",Table4[[#This Row],[Description]])","v":"104354 - General Fund - Automatic Appropriations - DOLE-Office of the Secretary - SAGF"},"104354","General Fund - Automatic Appropriations - DOLE-Office of the Secretary - SAGF","General Fund","Automatic Appropriations","DOLE-Office of the Secretary - SAGF"]
[{"$f":"+CONCATENATE(Table4[[#This Row],[Funding Code]],\" - \",Table4[[#This Row],[Description]])","v":"104355 - General Fund - Automatic Appropriations - DOLE-NCMB Special Voluntary Arbitration Fund"},"104355","General Fund - Automatic Appropriations - DOLE-NCMB Special Voluntary Arbitration Fund","General Fund","Automatic Appropriations","DOLE-NCMB Special Voluntary Arbitration Fund"]
[{"$f":"+CONCATENATE(Table4[[#This Row],[Funding Code]],\" - \",Table4[[#This Row],[Description]])","v":"104356 - General Fund - Automatic Appropriations - Asia Pacific Disaster Response Fund"},"104356","General Fund - Automatic Appropriations - Asia Pacific Disaster Response Fund","General Fund","Automatic Appropriations","Asia Pacific Disaster Response Fund"]
[{"$f":"+CONCATENATE(Table4[[#This Row],[Funding Code]],\" - \",Table4[[#This Row],[Description]])","v":"104357 - General Fund - Automatic Appropriations - AFP Modernization Trust Fund "},"104357","General Fund - Automatic Appropriations - AFP Modernization Trust Fund ","General Fund","Automatic Appropriations","AFP Modernization Trust Fund "]
[{"$f":"+CONCATENATE(Table4[[#This Row],[Funding Code]],\" - \",Table4[[#This Row],[Description]])","v":"104358 - General Fund - Automatic Appropriations - Special Road Support Fund"},"104358","General Fund - Automatic Appropriations - Special Road Support Fund","General Fund","Automatic Appropriations","Special Road Support Fund"]
[{"$f":"+CONCATENATE(Table4[[#This Row],[Funding Code]],\" - \",Table4[[#This Row],[Description]])","v":"104359 - General Fund - Automatic Appropriations - Special Local Road Fund"},"104359","General Fund - Automatic Appropriations - Special Local Road Fund","General Fund","Automatic Appropriations","Special Local Road Fund"]
[{"$f":"+CONCATENATE(Table4[[#This Row],[Funding Code]],\" - \",Table4[[#This Row],[Description]])","v":"104360 - General Fund - Automatic Appropriations - Special Road Safety Fund"},"104360","General Fund - Automatic Appropriations - Special Road Safety Fund","General Fund","Automatic Appropriations","Special Road Safety Fund"]
[{"$f":"+CONCATENATE(Table4[[#This Row],[Funding Code]],\" - \",Table4[[#This Row],[Description]])","v":"104361 - General Fund - Automatic Appropriations - Tourism Development Fund "},"104361","General Fund - Automatic Appropriations - Tourism Development Fund ","General Fund","Automatic Appropriations","Tourism Development Fund "]
[{"$f":"+CONCATENATE(Table4[[#This Row],[Funding Code]],\" - \",Table4[[#This Row],[Description]])","v":"104362 - General Fund - Automatic Appropriations - Micro, Small and Medium Enterprise Development Council Fund "},"104362","General Fund - Automatic Appropriations - Micro, Small and Medium Enterprise Development Council Fund ","General Fund","Automatic Appropriations","Micro, Small and Medium Enterprise Development Council Fund "]
[{"$f":"+CONCATENATE(Table4[[#This Row],[Funding Code]],\" - \",Table4[[#This Row],[Description]])","v":"104363 - General Fund - Automatic Appropriations - Special Vehicle Pollution Control Fund "},"104363","General Fund - Automatic Appropriations - Special Vehicle Pollution Control Fund ","General Fund","Automatic Appropriations","Special Vehicle Pollution Control Fund "]
[{"$f":"+CONCATENATE(Table4[[#This Row],[Funding Code]],\" - \",Table4[[#This Row],[Description]])","v":"104364 - General Fund - Automatic Appropriations - DOTC LTO Fines imposed on the implementation of Seat Belt Use – R.A. 8750"},"104364","General Fund - Automatic Appropriations - DOTC LTO Fines imposed on the implementation of Seat Belt Use – R.A. 8750","General Fund","Automatic Appropriations","DOTC LTO Fines imposed on the implementation of Seat Belt Use – R.A. 8750"]
[{"$f":"+CONCATENATE(Table4[[#This Row],[Funding Code]],\" - \",Table4[[#This Row],[Description]])","v":"104365 - General Fund - Automatic Appropriations - MARINA Trust Funds - Tonnage Fees – R.A. 9295"},"104365","General Fund - Automatic Appropriations - MARINA Trust Funds - Tonnage Fees – R.A. 9295","General Fund","Automatic Appropriations","MARINA Trust Funds - Tonnage Fees – R.A. 9295"]
[{"$f":"+CONCATENATE(Table4[[#This Row],[Funding Code]],\" - \",Table4[[#This Row],[Description]])","v":"104366 - General Fund - Automatic Appropriations - National Council for Civil Aviation Security Fund"},"104366","General Fund - Automatic Appropriations - National Council for Civil Aviation Security Fund","General Fund","Automatic Appropriations","National Council for Civil Aviation Security Fund"]
[{"$f":"+CONCATENATE(Table4[[#This Row],[Funding Code]],\" - \",Table4[[#This Row],[Description]])","v":"104367 - General Fund - Automatic Appropriations - NEDA SRTC Endowment Fund "},"104367","General Fund - Automatic Appropriations - NEDA SRTC Endowment Fund ","General Fund","Automatic Appropriations","NEDA SRTC Endowment Fund "]
[{"$f":"+CONCATENATE(Table4[[#This Row],[Funding Code]],\" - \",Table4[[#This Row],[Description]])","v":"104368 - General Fund - Automatic Appropriations - Commission on Filipinos Overseas - SAGF"},"104368","General Fund - Automatic Appropriations - Commission on Filipinos Overseas - SAGF","General Fund","Automatic Appropriations","Commission on Filipinos Overseas - SAGF"]
[{"$f":"+CONCATENATE(Table4[[#This Row],[Funding Code]],\" - \",Table4[[#This Row],[Description]])","v":"104369 - General Fund - Automatic Appropriations - Higher Education Development Fund "},"104369",{"$f":"+CONCATENATE(D194,\" - \",E194,\" - \",F194)","v":"General Fund - Automatic Appropriations - Higher Education Development Fund "},"General Fund","Automatic Appropriations","Higher Education Development Fund "]
[{"$f":"+CONCATENATE(Table4[[#This Row],[Funding Code]],\" - \",Table4[[#This Row],[Description]])","v":"104370 - General Fund - Automatic Appropriations - Dangerous Drugs Board - SAGF"},"104370","General Fund - Automatic Appropriations - Dangerous Drugs Board - SAGF","General Fund","Automatic Appropriations","Dangerous Drugs Board - SAGF"]
[{"$f":"+CONCATENATE(Table4[[#This Row],[Funding Code]],\" - \",Table4[[#This Row],[Description]])","v":"104371 - General Fund - Automatic Appropriations - Film Development Council of the Philippines - SAGF"},"104371","General Fund - Automatic Appropriations - Film Development Council of the Philippines - SAGF","General Fund","Automatic Appropriations","Film Development Council of the Philippines - SAGF"]
[{"$f":"+CONCATENATE(Table4[[#This Row],[Funding Code]],\" - \",Table4[[#This Row],[Description]])","v":"104372 - General Fund - Automatic Appropriations - Games and Amusement Board - SAGF"},"104372","General Fund - Automatic Appropriations - Games and Amusement Board - SAGF","General Fund","Automatic Appropriations","Games and Amusement Board - SAGF"]
[{"$f":"+CONCATENATE(Table4[[#This Row],[Funding Code]],\" - \",Table4[[#This Row],[Description]])","v":"104373 - General Fund - Automatic Appropriations - Housing and Land Use Regulatory Board - SAGF"},"104373","General Fund - Automatic Appropriations - Housing and Land Use Regulatory Board - SAGF","General Fund","Automatic Appropriations","Housing and Land Use Regulatory Board - SAGF"]
[{"$f":"+CONCATENATE(Table4[[#This Row],[Funding Code]],\" - \",Table4[[#This Row],[Description]])","v":"104374 - General Fund - Automatic Appropriations - MTRCB Sinking Fund"},"104374","General Fund - Automatic Appropriations - MTRCB Sinking Fund","General Fund","Automatic Appropriations","MTRCB Sinking Fund"]
[{"$f":"+CONCATENATE(Table4[[#This Row],[Funding Code]],\" - \",Table4[[#This Row],[Description]])","v":"104375 - General Fund - Automatic Appropriations - National Endowment Fund for Culture and Arts "},"104375","General Fund - Automatic Appropriations - National Endowment Fund for Culture and Arts ","General Fund","Automatic Appropriations","National Endowment Fund for Culture and Arts "]
[{"$f":"+CONCATENATE(Table4[[#This Row],[Funding Code]],\" - \",Table4[[#This Row],[Description]])","v":"104376 - General Fund - Automatic Appropriations - OPAPP - The Asian Foundation"},"104376","General Fund - Automatic Appropriations - OPAPP - The Asian Foundation","General Fund","Automatic Appropriations","OPAPP - The Asian Foundation"]
[{"$f":"+CONCATENATE(Table4[[#This Row],[Funding Code]],\" - \",Table4[[#This Row],[Description]])","v":"104377 - General Fund - Automatic Appropriations - National Sports Development Fund "},"104377","General Fund - Automatic Appropriations - National Sports Development Fund ","General Fund","Automatic Appropriations","National Sports Development Fund "]
[{"$f":"+CONCATENATE(Table4[[#This Row],[Funding Code]],\" - \",Table4[[#This Row],[Description]])","v":"104378 - General Fund - Automatic Appropriations - Presidential Commission for the Urban Poor - SAGF"},"104378","General Fund - Automatic Appropriations - Presidential Commission for the Urban Poor - SAGF","General Fund","Automatic Appropriations","Presidential Commission for the Urban Poor - SAGF"]
[{"$f":"+CONCATENATE(Table4[[#This Row],[Funding Code]],\" - \",Table4[[#This Row],[Description]])","v":"104379 - General Fund - Automatic Appropriations - Cultural Center of the Philippines - SAGF"},"104379","General Fund - Automatic Appropriations - Cultural Center of the Philippines - SAGF","General Fund","Automatic Appropriations","Cultural Center of the Philippines - SAGF"]
[{"$f":"+CONCATENATE(Table4[[#This Row],[Funding Code]],\" - \",Table4[[#This Row],[Description]])","v":"104380 - General Fund - Automatic Appropriations - National Tobacco Administration - Tobacco Fund "},"104380","General Fund - Automatic Appropriations - National Tobacco Administration - Tobacco Fund ","General Fund","Automatic Appropriations","National Tobacco Administration - Tobacco Fund "]
[{"$f":"+CONCATENATE(Table4[[#This Row],[Funding Code]],\" - \",Table4[[#This Row],[Description]])","v":"104381 - General Fund - Automatic Appropriations - Philippine Coconut Authority - SAGF"},"104381","General Fund - Automatic Appropriations - Philippine Coconut Authority - SAGF","General Fund","Automatic Appropriations","Philippine Coconut Authority - SAGF"]
[{"$f":"+CONCATENATE(Table4[[#This Row],[Funding Code]],\" - \",Table4[[#This Row],[Description]])","v":"104382 - General Fund - Automatic Appropriations - Tourism Promotions Board Fund"},"104382","General Fund - Automatic Appropriations - Tourism Promotions Board Fund","General Fund","Automatic Appropriations","Tourism Promotions Board Fund"]
[{"$f":"+CONCATENATE(Table4[[#This Row],[Funding Code]],\" - \",Table4[[#This Row],[Description]])","v":"104383 - General Fund - Automatic Appropriations - Other SAGF"},"104383","General Fund - Automatic Appropriations - Other SAGF","General Fund","Automatic Appropriations","Other SAGF"]
[{"$f":"+CONCATENATE(Table4[[#This Row],[Funding Code]],\" - \",Table4[[#This Row],[Description]])","v":"105000 - General Fund - Unprogrammed Funds - Unprogrammed Funds"},"105000","General Fund - Unprogrammed Funds - Unprogrammed Funds","General Fund","Unprogrammed Funds","Unprogrammed Funds"]
[{"$f":"+CONCATENATE(Table4[[#This Row],[Funding Code]],\" - \",Table4[[#This Row],[Description]])","v":"105101 - General Fund - Unprogrammed Funds - Specific Budgets of National Government Agencies "},"105101","General Fund - Unprogrammed Funds - Specific Budgets of National Government Agencies ","General Fund","Unprogrammed Funds","Specific Budgets of National Government Agencies "]
[{"$f":"+CONCATENATE(Table4[[#This Row],[Funding Code]],\" - \",Table4[[#This Row],[Description]])","v":"105152 - General Fund - Unprogrammed Funds - Asian Development Bank"},"105152","General Fund - Unprogrammed Funds - Asian Development Bank","General Fund","Unprogrammed Funds","Asian Development Bank"]
[{"$f":"+CONCATENATE(Table4[[#This Row],[Funding Code]],\" - \",Table4[[#This Row],[Description]])","v":"105153 - General Fund - Unprogrammed Funds - Australia"},"105153","General Fund - Unprogrammed Funds - Australia","General Fund","Unprogrammed Funds","Australia"]
[{"$f":"+CONCATENATE(Table4[[#This Row],[Funding Code]],\" - \",Table4[[#This Row],[Description]])","v":"105154 - General Fund - Unprogrammed Funds - Austria"},"105154","General Fund - Unprogrammed Funds - Austria","General Fund","Unprogrammed Funds","Austria"]
[{"$f":"+CONCATENATE(Table4[[#This Row],[Funding Code]],\" - \",Table4[[#This Row],[Description]])","v":"105155 - General Fund - Unprogrammed Funds - Belgium"},"105155","General Fund - Unprogrammed Funds - Belgium","General Fund","Unprogrammed Funds","Belgium"]
[{"$f":"+CONCATENATE(Table4[[#This Row],[Funding Code]],\" - \",Table4[[#This Row],[Description]])","v":"105156 - General Fund - Unprogrammed Funds - Canada"},"105156","General Fund - Unprogrammed Funds - Canada","General Fund","Unprogrammed Funds","Canada"]
[{"$f":"+CONCATENATE(Table4[[#This Row],[Funding Code]],\" - \",Table4[[#This Row],[Description]])","v":"105157 - General Fund - Unprogrammed Funds - China"},"105157","General Fund - Unprogrammed Funds - China","General Fund","Unprogrammed Funds","China"]
[{"$f":"+CONCATENATE(Table4[[#This Row],[Funding Code]],\" - \",Table4[[#This Row],[Description]])","v":"105158 - General Fund - Unprogrammed Funds - Denmark"},"105158","General Fund - Unprogrammed Funds - Denmark","General Fund","Unprogrammed Funds","Denmark"]
[{"$f":"+CONCATENATE(Table4[[#This Row],[Funding Code]],\" - \",Table4[[#This Row],[Description]])","v":"105159 - General Fund - Unprogrammed Funds - European Commission"},"105159","General Fund - Unprogrammed Funds - European Commission","General Fund","Unprogrammed Funds","European Commission"]
[{"$f":"+CONCATENATE(Table4[[#This Row],[Funding Code]],\" - \",Table4[[#This Row],[Description]])","v":"105160 - General Fund - Unprogrammed Funds - France"},"105160","General Fund - Unprogrammed Funds - France","General Fund","Unprogrammed Funds","France"]
[{"$f":"+CONCATENATE(Table4[[#This Row],[Funding Code]],\" - \",Table4[[#This Row],[Description]])","v":"105161 - General Fund - Unprogrammed Funds - Germany"},"105161","General Fund - Unprogrammed Funds - Germany","General Fund","Unprogrammed Funds","Germany"]
[{"$f":"+CONCATENATE(Table4[[#This Row],[Funding Code]],\" - \",Table4[[#This Row],[Description]])","v":"105162 - General Fund - Unprogrammed Funds - Global Environment Facility"},"105162","General Fund - Unprogrammed Funds - Global Environment Facility","General Fund","Unprogrammed Funds","Global Environment Facility"]
[{"$f":"+CONCATENATE(Table4[[#This Row],[Funding Code]],\" - \",Table4[[#This Row],[Description]])","v":"105163 - General Fund - Unprogrammed Funds - International Bank for Reconstruction and Development (IBRD)"},"105163","General Fund - Unprogrammed Funds - International Bank for Reconstruction and Development (IBRD)","General Fund","Unprogrammed Funds","International Bank for Reconstruction and Development (IBRD)"]
[{"$f":"+CONCATENATE(Table4[[#This Row],[Funding Code]],\" - \",Table4[[#This Row],[Description]])","v":"105164 - General Fund - Unprogrammed Funds - International Development Fund (IDF)"},"105164","General Fund - Unprogrammed Funds - International Development Fund (IDF)","General Fund","Unprogrammed Funds","International Development Fund (IDF)"]
[{"$f":"+CONCATENATE(Table4[[#This Row],[Funding Code]],\" - \",Table4[[#This Row],[Description]])","v":"105165 - General Fund - Unprogrammed Funds - International Fund for Agricultural Development (IFAD)"},"105165","General Fund - Unprogrammed Funds - International Fund for Agricultural Development (IFAD)","General Fund","Unprogrammed Funds","International Fund for Agricultural Development (IFAD)"]
[{"$f":"+CONCATENATE(Table4[[#This Row],[Funding Code]],\" - \",Table4[[#This Row],[Description]])","v":"105166 - General Fund - Unprogrammed Funds - Italy"},"105166","General Fund - Unprogrammed Funds - Italy","General Fund","Unprogrammed Funds","Italy"]
[{"$f":"+CONCATENATE(Table4[[#This Row],[Funding Code]],\" - \",Table4[[#This Row],[Description]])","v":"105167 - General Fund - Unprogrammed Funds - Japan"},"105167","General Fund - Unprogrammed Funds - Japan","General Fund","Unprogrammed Funds","Japan"]
[{"$f":"+CONCATENATE(Table4[[#This Row],[Funding Code]],\" - \",Table4[[#This Row],[Description]])","v":"105168 - General Fund - Unprogrammed Funds - Korea"},"105168","General Fund - Unprogrammed Funds - Korea","General Fund","Unprogrammed Funds","Korea"]
[{"$f":"+CONCATENATE(Table4[[#This Row],[Funding Code]],\" - \",Table4[[#This Row],[Description]])","v":"105169 - General Fund - Unprogrammed Funds - Millennium Challenge Corporation"},"105169","General Fund - Unprogrammed Funds - Millennium Challenge Corporation","General Fund","Unprogrammed Funds","Millennium Challenge Corporation"]
[{"$f":"+CONCATENATE(Table4[[#This Row],[Funding Code]],\" - \",Table4[[#This Row],[Description]])","v":"105170 - General Fund - Unprogrammed Funds - Netherlands"},"105170","General Fund - Unprogrammed Funds - Netherlands","General Fund","Unprogrammed Funds","Netherlands"]
[{"$f":"+CONCATENATE(Table4[[#This Row],[Funding Code]],\" - \",Table4[[#This Row],[Description]])","v":"105171 - General Fund - Unprogrammed Funds - New Zealand"},"105171","General Fund - Unprogrammed Funds - New Zealand","General Fund","Unprogrammed Funds","New Zealand"]
[{"$f":"+CONCATENATE(Table4[[#This Row],[Funding Code]],\" - \",Table4[[#This Row],[Description]])","v":"105172 - General Fund - Unprogrammed Funds - Norway"},"105172","General Fund - Unprogrammed Funds - Norway","General Fund","Unprogrammed Funds","Norway"]
[{"$f":"+CONCATENATE(Table4[[#This Row],[Funding Code]],\" - \",Table4[[#This Row],[Description]])","v":"105173 - General Fund - Unprogrammed Funds - Saudi Arabia"},"105173","General Fund - Unprogrammed Funds - Saudi Arabia","General Fund","Unprogrammed Funds","Saudi Arabia"]
[{"$f":"+CONCATENATE(Table4[[#This Row],[Funding Code]],\" - \",Table4[[#This Row],[Description]])","v":"105174 - General Fund - Unprogrammed Funds - Spain"},"105174","General Fund - Unprogrammed Funds - Spain","General Fund","Unprogrammed Funds","Spain"]
[{"$f":"+CONCATENATE(Table4[[#This Row],[Funding Code]],\" - \",Table4[[#This Row],[Description]])","v":"105175 - General Fund - Unprogrammed Funds - Switzerland"},"105175","General Fund - Unprogrammed Funds - Switzerland","General Fund","Unprogrammed Funds","Switzerland"]
[{"$f":"+CONCATENATE(Table4[[#This Row],[Funding Code]],\" - \",Table4[[#This Row],[Description]])","v":"105176 - General Fund - Unprogrammed Funds - United Kingdom"},"105176","General Fund - Unprogrammed Funds - United Kingdom","General Fund","Unprogrammed Funds","United Kingdom"]
[{"$f":"+CONCATENATE(Table4[[#This Row],[Funding Code]],\" - \",Table4[[#This Row],[Description]])","v":"105177 - General Fund - Unprogrammed Funds - United States"},"105177","General Fund - Unprogrammed Funds - United States","General Fund","Unprogrammed Funds","United States"]
[{"$f":"+CONCATENATE(Table4[[#This Row],[Funding Code]],\" - \",Table4[[#This Row],[Description]])","v":"105178 - General Fund - Unprogrammed Funds - United Nations Development Fund for Women (UNIFEM)"},"105178","General Fund - Unprogrammed Funds - United Nations Development Fund for Women (UNIFEM)","General Fund","Unprogrammed Funds","United Nations Development Fund for Women (UNIFEM)"]
[{"$f":"+CONCATENATE(Table4[[#This Row],[Funding Code]],\" - \",Table4[[#This Row],[Description]])","v":"105179 - General Fund - Unprogrammed Funds - United Nations Population Fund (UNFPA)"},"105179","General Fund - Unprogrammed Funds - United Nations Population Fund (UNFPA)","General Fund","Unprogrammed Funds","United Nations Population Fund (UNFPA)"]
[{"$f":"+CONCATENATE(Table4[[#This Row],[Funding Code]],\" - \",Table4[[#This Row],[Description]])","v":"105250 - General Fund - Unprogrammed Funds - Others  (Specify)"},"105250","General Fund - Unprogrammed Funds - Others  (Specify)","General Fund","Unprogrammed Funds","Others  (Specify)"]
[{"$f":"+CONCATENATE(Table4[[#This Row],[Funding Code]],\" - \",Table4[[#This Row],[Description]])","v":"105276 - General Fund - Unprogrammed Funds - Equity Contribution"},"105276","General Fund - Unprogrammed Funds - Equity Contribution","General Fund","Unprogrammed Funds","Equity Contribution"]
[{"$f":"+CONCATENATE(Table4[[#This Row],[Funding Code]],\" - \",Table4[[#This Row],[Description]])","v":"105277 - General Fund - Unprogrammed Funds - Subsidies"},"105277","General Fund - Unprogrammed Funds - Subsidies","General Fund","Unprogrammed Funds","Subsidies"]
[{"$f":"+CONCATENATE(Table4[[#This Row],[Funding Code]],\" - \",Table4[[#This Row],[Description]])","v":"105278 - General Fund - Unprogrammed Funds - Loans"},"105278","General Fund - Unprogrammed Funds - Loans","General Fund","Unprogrammed Funds","Loans"]
[{"$f":"+CONCATENATE(Table4[[#This Row],[Funding Code]],\" - \",Table4[[#This Row],[Description]])","v":"105279 - General Fund - Unprogrammed Funds - Advances"},"105279","General Fund - Unprogrammed Funds - Advances","General Fund","Unprogrammed Funds","Advances"]
[{"$f":"+CONCATENATE(Table4[[#This Row],[Funding Code]],\" - \",Table4[[#This Row],[Description]])","v":"105281 - General Fund - Unprogrammed Funds - Budgetary Support to Government Corporations - Others (Specify)"},"105281","General Fund - Unprogrammed Funds - Budgetary Support to Government Corporations - Others (Specify)","General Fund","Unprogrammed Funds","Budgetary Support to Government Corporations - Others (Specify)"]
[{"$f":"+CONCATENATE(Table4[[#This Row],[Funding Code]],\" - \",Table4[[#This Row],[Description]])","v":"105421 - General Fund - Unprogrammed Funds - General Fund Adjustments"},"105421","General Fund - Unprogrammed Funds - General Fund Adjustments","General Fund","Unprogrammed Funds","General Fund Adjustments"]
[{"$f":"+CONCATENATE(Table4[[#This Row],[Funding Code]],\" - \",Table4[[#This Row],[Description]])","v":"105422 - General Fund - Unprogrammed Funds - Support for Infrastructure Projects and Social Programs"},"105422","General Fund - Unprogrammed Funds - Support for Infrastructure Projects and Social Programs","General Fund","Unprogrammed Funds","Support for Infrastructure Projects and Social Programs"]
[{"$f":"+CONCATENATE(Table4[[#This Row],[Funding Code]],\" - \",Table4[[#This Row],[Description]])","v":"105423 - General Fund - Unprogrammed Funds - AFP Modernization Program"},"105423","General Fund - Unprogrammed Funds - AFP Modernization Program","General Fund","Unprogrammed Funds","AFP Modernization Program"]
[{"$f":"+CONCATENATE(Table4[[#This Row],[Funding Code]],\" - \",Table4[[#This Row],[Description]])","v":"105424 - General Fund - Unprogrammed Funds - Debt Management Program"},"105424","General Fund - Unprogrammed Funds - Debt Management Program","General Fund","Unprogrammed Funds","Debt Management Program"]
[{"$f":"+CONCATENATE(Table4[[#This Row],[Funding Code]],\" - \",Table4[[#This Row],[Description]])","v":"105425 - General Fund - Unprogrammed Funds - Total Administrative Disability Pension"},"105425","General Fund - Unprogrammed Funds - Total Administrative Disability Pension","General Fund","Unprogrammed Funds","Total Administrative Disability Pension"]
[{"$f":"+CONCATENATE(Table4[[#This Row],[Funding Code]],\" - \",Table4[[#This Row],[Description]])","v":"105426 - General Fund - Unprogrammed Funds - People’s Survival Fund"},"105426","General Fund - Unprogrammed Funds - People’s Survival Fund","General Fund","Unprogrammed Funds","People’s Survival Fund"]
[{"$f":"+CONCATENATE(Table4[[#This Row],[Funding Code]],\" - \",Table4[[#This Row],[Description]])","v":"105427 - General Fund - Unprogrammed Funds - Risk Management Program"},"105427","General Fund - Unprogrammed Funds - Risk Management Program","General Fund","Unprogrammed Funds","Risk Management Program"]
[{"$f":"+CONCATENATE(Table4[[#This Row],[Funding Code]],\" - \",Table4[[#This Row],[Description]])","v":"105428 - General Fund - Unprogrammed Funds - Others"},"105428","General Fund - Unprogrammed Funds - Others","General Fund","Unprogrammed Funds","Others"]
[{"$f":"+CONCATENATE(Table4[[#This Row],[Funding Code]],\" - \",Table4[[#This Row],[Description]])","v":"200000 - Off-Budgetary Funds - Off-Budgetary Funds - Off-Budgetary Funds"},"200000","Off-Budgetary Funds - Off-Budgetary Funds - Off-Budgetary Funds","Off-Budgetary Funds","Off-Budgetary Funds","Off-Budgetary Funds"]
[{"$f":"+CONCATENATE(Table4[[#This Row],[Funding Code]],\" - \",Table4[[#This Row],[Description]])","v":"206000 - Off-Budgetary Funds - Retained Income/Funds  - Retained Income/Funds "},"206000","Off-Budgetary Funds - Retained Income/Funds  - Retained Income/Funds ","Off-Budgetary Funds","Retained Income/Funds ","Retained Income/Funds "]
[{"$f":"+CONCATENATE(Table4[[#This Row],[Funding Code]],\" - \",Table4[[#This Row],[Description]])","v":"206441 - Off-Budgetary Funds - Retained Income/Funds  - SUCs Internally generated Income"},"206441","Off-Budgetary Funds - Retained Income/Funds  - SUCs Internally generated Income","Off-Budgetary Funds","Retained Income/Funds ","SUCs Internally generated Income"]
[{"$f":"+CONCATENATE(Table4[[#This Row],[Funding Code]],\" - \",Table4[[#This Row],[Description]])","v":"206442 - Off-Budgetary Funds - Retained Income/Funds  - SEC Retained Income"},"206442","Off-Budgetary Funds - Retained Income/Funds  - SEC Retained Income","Off-Budgetary Funds","Retained Income/Funds ","SEC Retained Income"]
[{"$f":"+CONCATENATE(Table4[[#This Row],[Funding Code]],\" - \",Table4[[#This Row],[Description]])","v":"206443 - Off-Budgetary Funds - Retained Income/Funds  - Hospital Retained Income applicable to all DOH-retained hospitals"},"206443","Off-Budgetary Funds - Retained Income/Funds  - Hospital Retained Income applicable to all DOH-retained hospitals","Off-Budgetary Funds","Retained Income/Funds ","Hospital Retained Income applicable to all DOH-retained hospitals"]
[{"$f":"+CONCATENATE(Table4[[#This Row],[Funding Code]],\" - \",Table4[[#This Row],[Description]])","v":"206444 - Off-Budgetary Funds - Retained Income/Funds  - Intellectual Property Office Retained Income"},"206444",{"$f":"+CONCATENATE(D258,\" - \",E258,\" - \",F258)","v":"Off-Budgetary Funds - Retained Income/Funds  - Intellectual Property Office Retained Income"},"Off-Budgetary Funds","Retained Income/Funds ","Intellectual Property Office Retained Income"]
[{"$f":"+CONCATENATE(Table4[[#This Row],[Funding Code]],\" - \",Table4[[#This Row],[Description]])","v":"206445 - Off-Budgetary Funds - Retained Income/Funds  - Overseas Workers Welfare Administration (OWWA) Fund"},"206445","Off-Budgetary Funds - Retained Income/Funds  - Overseas Workers Welfare Administration (OWWA) Fund","Off-Budgetary Funds","Retained Income/Funds ","Overseas Workers Welfare Administration (OWWA) Fund"]
[{"$f":"+CONCATENATE(Table4[[#This Row],[Funding Code]],\" - \",Table4[[#This Row],[Description]])","v":"206446 - Off-Budgetary Funds - Retained Income/Funds  - Government Arsenal Retained Income"},"206446","Off-Budgetary Funds - Retained Income/Funds  - Government Arsenal Retained Income","Off-Budgetary Funds","Retained Income/Funds ","Government Arsenal Retained Income"]
[{"$f":"+CONCATENATE(Table4[[#This Row],[Funding Code]],\" - \",Table4[[#This Row],[Description]])","v":"206447 - Off-Budgetary Funds - Retained Income/Funds  - Veterans Memorial Medical Center Retained Income"},"206447","Off-Budgetary Funds - Retained Income/Funds  - Veterans Memorial Medical Center Retained Income","Off-Budgetary Funds","Retained Income/Funds ","Veterans Memorial Medical Center Retained Income"]
[{"$f":"+CONCATENATE(Table4[[#This Row],[Funding Code]],\" - \",Table4[[#This Row],[Description]])","v":"206448 - Off-Budgetary Funds - Retained Income/Funds  - AFP-General Headquarters (GHQ) Proper Retained Income"},"206448","Off-Budgetary Funds - Retained Income/Funds  - AFP-General Headquarters (GHQ) Proper Retained Income","Off-Budgetary Funds","Retained Income/Funds ","AFP-General Headquarters (GHQ) Proper Retained Income"]
[{"$f":"+CONCATENATE(Table4[[#This Row],[Funding Code]],\" - \",Table4[[#This Row],[Description]])","v":"206449 - Off-Budgetary Funds - Retained Income/Funds  - AFP Medical Center Retained Income"},"206449","Off-Budgetary Funds - Retained Income/Funds  - AFP Medical Center Retained Income","Off-Budgetary Funds","Retained Income/Funds ","AFP Medical Center Retained Income"]
[{"$f":"+CONCATENATE(Table4[[#This Row],[Funding Code]],\" - \",Table4[[#This Row],[Description]])","v":"206450 - Off-Budgetary Funds - Retained Income/Funds  - AFP-Philippine Army Retained Income"},"206450","Off-Budgetary Funds - Retained Income/Funds  - AFP-Philippine Army Retained Income","Off-Budgetary Funds","Retained Income/Funds ","AFP-Philippine Army Retained Income"]
[{"$f":"+CONCATENATE(Table4[[#This Row],[Funding Code]],\" - \",Table4[[#This Row],[Description]])","v":"206451 - Off-Budgetary Funds - Retained Income/Funds  - AFP-Philippine Air Force Retained Income"},"206451","Off-Budgetary Funds - Retained Income/Funds  - AFP-Philippine Air Force Retained Income","Off-Budgetary Funds","Retained Income/Funds ","AFP-Philippine Air Force Retained Income"]
[{"$f":"+CONCATENATE(Table4[[#This Row],[Funding Code]],\" - \",Table4[[#This Row],[Description]])","v":"206452 - Off-Budgetary Funds - Retained Income/Funds  - AFP-Philippine Navy Retained Income"},"206452","Off-Budgetary Funds - Retained Income/Funds  - AFP-Philippine Navy Retained Income","Off-Budgetary Funds","Retained Income/Funds ","AFP-Philippine Navy Retained Income"]
[{"$f":"+CONCATENATE(Table4[[#This Row],[Funding Code]],\" - \",Table4[[#This Row],[Description]])","v":"206453 - Off-Budgetary Funds - Retained Income/Funds  - National Sports Development Fund "},"206453","Off-Budgetary Funds - Retained Income/Funds  - National Sports Development Fund ","Off-Budgetary Funds","Retained Income/Funds ","National Sports Development Fund "]
[{"$f":"+CONCATENATE(Table4[[#This Row],[Funding Code]],\" - \",Table4[[#This Row],[Description]])","v":"206454 - Off-Budgetary Funds - Retained Income/Funds  - Judicial Development Fund "},"206454","Off-Budgetary Funds - Retained Income/Funds  - Judicial Development Fund ","Off-Budgetary Funds","Retained Income/Funds ","Judicial Development Fund "]
[{"$f":"+CONCATENATE(Table4[[#This Row],[Funding Code]],\" - \",Table4[[#This Row],[Description]])","v":"206455 - Off-Budgetary Funds - Retained Income/Funds  - Judicial Training Center, Philippine Judicial Academy and Mandatory Continuing Legal Education "},"206455","Off-Budgetary Funds - Retained Income/Funds  - Judicial Training Center, Philippine Judicial Academy and Mandatory Continuing Legal Education ","Off-Budgetary Funds","Retained Income/Funds ","Judicial Training Center, Philippine Judicial Academy and Mandatory Continuing Legal Education "]
[{"$f":"+CONCATENATE(Table4[[#This Row],[Funding Code]],\" - \",Table4[[#This Row],[Description]])","v":"206456 - Off-Budgetary Funds - Retained Income/Funds  - Special Allowance for the Judiciary"},"206456","Off-Budgetary Funds - Retained Income/Funds  - Special Allowance for the Judiciary","Off-Budgetary Funds","Retained Income/Funds ","Special Allowance for the Judiciary"]
[{"$f":"+CONCATENATE(Table4[[#This Row],[Funding Code]],\" - \",Table4[[#This Row],[Description]])","v":"206457 - Off-Budgetary Funds - Retained Income/Funds  - Other Retained Income/Funds"},"206457","Off-Budgetary Funds - Retained Income/Funds  - Other Retained Income/Funds","Off-Budgetary Funds","Retained Income/Funds ","Other Retained Income/Funds"]
[{"$f":"+CONCATENATE(Table4[[#This Row],[Funding Code]],\" - \",Table4[[#This Row],[Description]])","v":"207000 - Off-Budgetary Funds - Revolving Funds - Revolving Funds"},"207000","Off-Budgetary Funds - Revolving Funds - Revolving Funds","Off-Budgetary Funds","Revolving Funds","Revolving Funds"]
[{"$f":"+CONCATENATE(Table4[[#This Row],[Funding Code]],\" - \",Table4[[#This Row],[Description]])","v":"207501 - Off-Budgetary Funds - Revolving Funds - Agricultural Training Institute Revolving Fund"},"207501","Off-Budgetary Funds - Revolving Funds - Agricultural Training Institute Revolving Fund","Off-Budgetary Funds","Revolving Funds","Agricultural Training Institute Revolving Fund"]
[{"$f":"+CONCATENATE(Table4[[#This Row],[Funding Code]],\" - \",Table4[[#This Row],[Description]])","v":"207502 - Off-Budgetary Funds - Revolving Funds - Bureau of Animal Industry - Revolving Fund, Proceeds from Sale of Animals (RA 1578)"},"207502","Off-Budgetary Funds - Revolving Funds - Bureau of Animal Industry - Revolving Fund, Proceeds from Sale of Animals (RA 1578)","Off-Budgetary Funds","Revolving Funds","Bureau of Animal Industry - Revolving Fund, Proceeds from Sale of Animals (RA 1578)"]
[{"$f":"+CONCATENATE(Table4[[#This Row],[Funding Code]],\" - \",Table4[[#This Row],[Description]])","v":"207503 - Off-Budgetary Funds - Revolving Funds - Bureau of Animal Industry - Revolving Fund, Dormitory Operations"},"207503","Off-Budgetary Funds - Revolving Funds - Bureau of Animal Industry - Revolving Fund, Dormitory Operations","Off-Budgetary Funds","Revolving Funds","Bureau of Animal Industry - Revolving Fund, Dormitory Operations"]
[{"$f":"+CONCATENATE(Table4[[#This Row],[Funding Code]],\" - \",Table4[[#This Row],[Description]])","v":"207504 - Off-Budgetary Funds - Revolving Funds - Plant Quarantine Revolving Fund"},"207504","Off-Budgetary Funds - Revolving Funds - Plant Quarantine Revolving Fund","Off-Budgetary Funds","Revolving Funds","Plant Quarantine Revolving Fund"]
[{"$f":"+CONCATENATE(Table4[[#This Row],[Funding Code]],\" - \",Table4[[#This Row],[Description]])","v":"207505 - Off-Budgetary Funds - Revolving Funds - National Seed Industry Council Fund"},"207505","Off-Budgetary Funds - Revolving Funds - National Seed Industry Council Fund","Off-Budgetary Funds","Revolving Funds","National Seed Industry Council Fund"]
[{"$f":"+CONCATENATE(Table4[[#This Row],[Funding Code]],\" - \",Table4[[#This Row],[Description]])","v":"207506 - Off-Budgetary Funds - Revolving Funds - Plant Variety Protection Fund"},"207506","Off-Budgetary Funds - Revolving Funds - Plant Variety Protection Fund","Off-Budgetary Funds","Revolving Funds","Plant Variety Protection Fund"]
[{"$f":"+CONCATENATE(Table4[[#This Row],[Funding Code]],\" - \",Table4[[#This Row],[Description]])","v":"207507 - Off-Budgetary Funds - Revolving Funds - Bureau of Soils and Water Management Revolving Fund"},"207507","Off-Budgetary Funds - Revolving Funds - Bureau of Soils and Water Management Revolving Fund","Off-Budgetary Funds","Revolving Funds","Bureau of Soils and Water Management Revolving Fund"]
[{"$f":"+CONCATENATE(Table4[[#This Row],[Funding Code]],\" - \",Table4[[#This Row],[Description]])","v":"207508 - Off-Budgetary Funds - Revolving Funds - Fertilizer and Pesticide Authority Fund"},"207508","Off-Budgetary Funds - Revolving Funds - Fertilizer and Pesticide Authority Fund","Off-Budgetary Funds","Revolving Funds","Fertilizer and Pesticide Authority Fund"]
[{"$f":"+CONCATENATE(Table4[[#This Row],[Funding Code]],\" - \",Table4[[#This Row],[Description]])","v":"207509 - Off-Budgetary Funds - Revolving Funds - Philippine Carabao Center Revolving Fund"},"207509","Off-Budgetary Funds - Revolving Funds - Philippine Carabao Center Revolving Fund","Off-Budgetary Funds","Revolving Funds","Philippine Carabao Center Revolving Fund"]
[{"$f":"+CONCATENATE(Table4[[#This Row],[Funding Code]],\" - \",Table4[[#This Row],[Description]])","v":"207510 - Off-Budgetary Funds - Revolving Funds - Philippine Center for Post Harvest Development and Mechanization Revolving Fund"},"207510","Off-Budgetary Funds - Revolving Funds - Philippine Center for Post Harvest Development and Mechanization Revolving Fund","Off-Budgetary Funds","Revolving Funds","Philippine Center for Post Harvest Development and Mechanization Revolving Fund"]
[{"$f":"+CONCATENATE(Table4[[#This Row],[Funding Code]],\" - \",Table4[[#This Row],[Description]])","v":"207511 - Off-Budgetary Funds - Revolving Funds - DBM - Procurement Service Revolving Fund"},"207511","Off-Budgetary Funds - Revolving Funds - DBM - Procurement Service Revolving Fund","Off-Budgetary Funds","Revolving Funds","DBM - Procurement Service Revolving Fund"]
[{"$f":"+CONCATENATE(Table4[[#This Row],[Funding Code]],\" - \",Table4[[#This Row],[Description]])","v":"207512 - Off-Budgetary Funds - Revolving Funds - School Revolving Fund"},"207512","Off-Budgetary Funds - Revolving Funds - School Revolving Fund","Off-Budgetary Funds","Revolving Funds","School Revolving Fund"]
[{"$f":"+CONCATENATE(Table4[[#This Row],[Funding Code]],\" - \",Table4[[#This Row],[Description]])","v":"207513 - Off-Budgetary Funds - Revolving Funds - Regional Education Learning Centers Revolving Fund"},"207513","Off-Budgetary Funds - Revolving Funds - Regional Education Learning Centers Revolving Fund","Off-Budgetary Funds","Revolving Funds","Regional Education Learning Centers Revolving Fund"]
[{"$f":"+CONCATENATE(Table4[[#This Row],[Funding Code]],\" - \",Table4[[#This Row],[Description]])","v":"207514 - Off-Budgetary Funds - Revolving Funds - Eco-Tech Center Revolving Fund"},"207514","Off-Budgetary Funds - Revolving Funds - Eco-Tech Center Revolving Fund","Off-Budgetary Funds","Revolving Funds","Eco-Tech Center Revolving Fund"]
[{"$f":"+CONCATENATE(Table4[[#This Row],[Funding Code]],\" - \",Table4[[#This Row],[Description]])","v":"207515 - Off-Budgetary Funds - Revolving Funds - Applied Nutrition Center Revolving Fund"},"207515","Off-Budgetary Funds - Revolving Funds - Applied Nutrition Center Revolving Fund","Off-Budgetary Funds","Revolving Funds","Applied Nutrition Center Revolving Fund"]
[{"$f":"+CONCATENATE(Table4[[#This Row],[Funding Code]],\" - \",Table4[[#This Row],[Description]])","v":"207516 - Off-Budgetary Funds - Revolving Funds - Boracay National High School Hostel Revolving Fund"},"207516","Off-Budgetary Funds - Revolving Funds - Boracay National High School Hostel Revolving Fund","Off-Budgetary Funds","Revolving Funds","Boracay National High School Hostel Revolving Fund"]
[{"$f":"+CONCATENATE(Table4[[#This Row],[Funding Code]],\" - \",Table4[[#This Row],[Description]])","v":"207517 - Off-Budgetary Funds - Revolving Funds - Baguio Teachers Camp Revolving Fund"},"207517","Off-Budgetary Funds - Revolving Funds - Baguio Teachers Camp Revolving Fund","Off-Budgetary Funds","Revolving Funds","Baguio Teachers Camp Revolving Fund"]
[{"$f":"+CONCATENATE(Table4[[#This Row],[Funding Code]],\" - \",Table4[[#This Row],[Description]])","v":"207518 - Off-Budgetary Funds - Revolving Funds - National Educators Academy of the Philippines Revolving Fund"},"207518","Off-Budgetary Funds - Revolving Funds - National Educators Academy of the Philippines Revolving Fund","Off-Budgetary Funds","Revolving Funds","National Educators Academy of the Philippines Revolving Fund"]
[{"$f":"+CONCATENATE(Table4[[#This Row],[Funding Code]],\" - \",Table4[[#This Row],[Description]])","v":"207519 - Off-Budgetary Funds - Revolving Funds - National Science Teaching Instrumentation Center Revolving Fund"},"207519","Off-Budgetary Funds - Revolving Funds - National Science Teaching Instrumentation Center Revolving Fund","Off-Budgetary Funds","Revolving Funds","National Science Teaching Instrumentation Center Revolving Fund"]
[{"$f":"+CONCATENATE(Table4[[#This Row],[Funding Code]],\" - \",Table4[[#This Row],[Description]])","v":"207520 - Off-Budgetary Funds - Revolving Funds - National Museum Revolving Fund"},"207520","Off-Budgetary Funds - Revolving Funds - National Museum Revolving Fund","Off-Budgetary Funds","Revolving Funds","National Museum Revolving Fund"]
[{"$f":"+CONCATENATE(Table4[[#This Row],[Funding Code]],\" - \",Table4[[#This Row],[Description]])","v":"207521 - Off-Budgetary Funds - Revolving Funds - Environmental Management Bureau Revolving Fund"},"207521","Off-Budgetary Funds - Revolving Funds - Environmental Management Bureau Revolving Fund","Off-Budgetary Funds","Revolving Funds","Environmental Management Bureau Revolving Fund"]
[{"$f":"+CONCATENATE(Table4[[#This Row],[Funding Code]],\" - \",Table4[[#This Row],[Description]])","v":"207522 - Off-Budgetary Funds - Revolving Funds - Municipal Development Fund Office Revolving Fund "},"207522","Off-Budgetary Funds - Revolving Funds - Municipal Development Fund Office Revolving Fund ","Off-Budgetary Funds","Revolving Funds","Municipal Development Fund Office Revolving Fund "]
[{"$f":"+CONCATENATE(Table4[[#This Row],[Funding Code]],\" - \",Table4[[#This Row],[Description]])","v":"207523 - Off-Budgetary Funds - Revolving Funds - Local Loans Fund "},"207523","Off-Budgetary Funds - Revolving Funds - Local Loans Fund ","Off-Budgetary Funds","Revolving Funds","Local Loans Fund "]
[{"$f":"+CONCATENATE(Table4[[#This Row],[Funding Code]],\" - \",Table4[[#This Row],[Description]])","v":"207524 - Off-Budgetary Funds - Revolving Funds - Program Support Fund "},"207524","Off-Budgetary Funds - Revolving Funds - Program Support Fund ","Off-Budgetary Funds","Revolving Funds","Program Support Fund "]
[{"$f":"+CONCATENATE(Table4[[#This Row],[Funding Code]],\" - \",Table4[[#This Row],[Description]])","v":"207525 - Off-Budgetary Funds - Revolving Funds - Assessment Loan Revolving Fund"},"207525","Off-Budgetary Funds - Revolving Funds - Assessment Loan Revolving Fund","Off-Budgetary Funds","Revolving Funds","Assessment Loan Revolving Fund"]
[{"$f":"+CONCATENATE(Table4[[#This Row],[Funding Code]],\" - \",Table4[[#This Row],[Description]])","v":"207526 - Off-Budgetary Funds - Revolving Funds - Cooperative Development Loan Fund "},"207526","Off-Budgetary Funds - Revolving Funds - Cooperative Development Loan Fund ","Off-Budgetary Funds","Revolving Funds","Cooperative Development Loan Fund "]
[{"$f":"+CONCATENATE(Table4[[#This Row],[Funding Code]],\" - \",Table4[[#This Row],[Description]])","v":"207527 - Off-Budgetary Funds - Revolving Funds - Cooperative Marketing Project Fund  "},"207527","Off-Budgetary Funds - Revolving Funds - Cooperative Marketing Project Fund  ","Off-Budgetary Funds","Revolving Funds","Cooperative Marketing Project Fund  "]
[{"$f":"+CONCATENATE(Table4[[#This Row],[Funding Code]],\" - \",Table4[[#This Row],[Description]])","v":"207528 - Off-Budgetary Funds - Revolving Funds - Cooperative Support Fund  "},"207528","Off-Budgetary Funds - Revolving Funds - Cooperative Support Fund  ","Off-Budgetary Funds","Revolving Funds","Cooperative Support Fund  "]
[{"$f":"+CONCATENATE(Table4[[#This Row],[Funding Code]],\" - \",Table4[[#This Row],[Description]])","v":"207529 - Off-Budgetary Funds - Revolving Funds - Cooperative Rehabilitation Development Fund"},"207529","Off-Budgetary Funds - Revolving Funds - Cooperative Rehabilitation Development Fund","Off-Budgetary Funds","Revolving Funds","Cooperative Rehabilitation Development Fund"]
[{"$f":"+CONCATENATE(Table4[[#This Row],[Funding Code]],\" - \",Table4[[#This Row],[Description]])","v":"207530 - Off-Budgetary Funds - Revolving Funds - Privatization and Management Office Revolving Fund"},"207530","Off-Budgetary Funds - Revolving Funds - Privatization and Management Office Revolving Fund","Off-Budgetary Funds","Revolving Funds","Privatization and Management Office Revolving Fund"]
[{"$f":"+CONCATENATE(Table4[[#This Row],[Funding Code]],\" - \",Table4[[#This Row],[Description]])","v":"207531 - Off-Budgetary Funds - Revolving Funds - Insurance Commission Revolving Fund"},"207531","Off-Budgetary Funds - Revolving Funds - Insurance Commission Revolving Fund","Off-Budgetary Funds","Revolving Funds","Insurance Commission Revolving Fund"]
[{"$f":"+CONCATENATE(Table4[[#This Row],[Funding Code]],\" - \",Table4[[#This Row],[Description]])","v":"207532 - Off-Budgetary Funds - Revolving Funds - Passport Revolving Fund"},"207532","Off-Budgetary Funds - Revolving Funds - Passport Revolving Fund","Off-Budgetary Funds","Revolving Funds","Passport Revolving Fund"]
[{"$f":"+CONCATENATE(Table4[[#This Row],[Funding Code]],\" - \",Table4[[#This Row],[Description]])","v":"207533 - Off-Budgetary Funds - Revolving Funds - Drugs and Medicines Revolving Funds"},"207533","Off-Budgetary Funds - Revolving Funds - Drugs and Medicines Revolving Funds","Off-Budgetary Funds","Revolving Funds","Drugs and Medicines Revolving Funds"]
[{"$f":"+CONCATENATE(Table4[[#This Row],[Funding Code]],\" - \",Table4[[#This Row],[Description]])","v":"207534 - Off-Budgetary Funds - Revolving Funds - Bureau of Corrections Revolving Fund"},"207534","Off-Budgetary Funds - Revolving Funds - Bureau of Corrections Revolving Fund","Off-Budgetary Funds","Revolving Funds","Bureau of Corrections Revolving Fund"]
[{"$f":"+CONCATENATE(Table4[[#This Row],[Funding Code]],\" - \",Table4[[#This Row],[Description]])","v":"207535 - Off-Budgetary Funds - Revolving Funds - Technical Education and Skills Development Authority Revolving Fund"},"207535","Off-Budgetary Funds - Revolving Funds - Technical Education and Skills Development Authority Revolving Fund","Off-Budgetary Funds","Revolving Funds","Technical Education and Skills Development Authority Revolving Fund"]
[{"$f":"+CONCATENATE(Table4[[#This Row],[Funding Code]],\" - \",Table4[[#This Row],[Description]])","v":"207536 - Off-Budgetary Funds - Revolving Funds - Philippine Veterans Affairs Office (Proper)-Proper Revolving Fund"},"207536","Off-Budgetary Funds - Revolving Funds - Philippine Veterans Affairs Office (Proper)-Proper Revolving Fund","Off-Budgetary Funds","Revolving Funds","Philippine Veterans Affairs Office (Proper)-Proper Revolving Fund"]
[{"$f":"+CONCATENATE(Table4[[#This Row],[Funding Code]],\" - \",Table4[[#This Row],[Description]])","v":"207537 - Off-Budgetary Funds - Revolving Funds - DPWH-OSEC Revolving Fund"},"207537","Off-Budgetary Funds - Revolving Funds - DPWH-OSEC Revolving Fund","Off-Budgetary Funds","Revolving Funds","DPWH-OSEC Revolving Fund"]
[{"$f":"+CONCATENATE(Table4[[#This Row],[Funding Code]],\" - \",Table4[[#This Row],[Description]])","v":"207538 - Off-Budgetary Funds - Revolving Funds - DOST Information and Communications Technology Office Revolving Fund"},"207538","Off-Budgetary Funds - Revolving Funds - DOST Information and Communications Technology Office Revolving Fund","Off-Budgetary Funds","Revolving Funds","DOST Information and Communications Technology Office Revolving Fund"]
[{"$f":"+CONCATENATE(Table4[[#This Row],[Funding Code]],\" - \",Table4[[#This Row],[Description]])","v":"207539 - Off-Budgetary Funds - Revolving Funds - Self Employment Assistance Revolving and Settlement Fund "},"207539","Off-Budgetary Funds - Revolving Funds - Self Employment Assistance Revolving and Settlement Fund ","Off-Budgetary Funds","Revolving Funds","Self Employment Assistance Revolving and Settlement Fund "]
[{"$f":"+CONCATENATE(Table4[[#This Row],[Funding Code]],\" - \",Table4[[#This Row],[Description]])","v":"207540 - Off-Budgetary Funds - Revolving Funds - Intramuros Administration Revolving Fund"},"207540","Off-Budgetary Funds - Revolving Funds - Intramuros Administration Revolving Fund","Off-Budgetary Funds","Revolving Funds","Intramuros Administration Revolving Fund"]
[{"$f":"+CONCATENATE(Table4[[#This Row],[Funding Code]],\" - \",Table4[[#This Row],[Description]])","v":"207541 - Off-Budgetary Funds - Revolving Funds - Public-Private Partnership Center of the Philippines Revolving Fund"},"207541","Off-Budgetary Funds - Revolving Funds - Public-Private Partnership Center of the Philippines Revolving Fund","Off-Budgetary Funds","Revolving Funds","Public-Private Partnership Center of the Philippines Revolving Fund"]
[{"$f":"+CONCATENATE(Table4[[#This Row],[Funding Code]],\" - \",Table4[[#This Row],[Description]])","v":"207542 - Off-Budgetary Funds - Revolving Funds - National Printing Office Revolving Fund"},"207542","Off-Budgetary Funds - Revolving Funds - National Printing Office Revolving Fund","Off-Budgetary Funds","Revolving Funds","National Printing Office Revolving Fund"]
[{"$f":"+CONCATENATE(Table4[[#This Row],[Funding Code]],\" - \",Table4[[#This Row],[Description]])","v":"207543 - Off-Budgetary Funds - Revolving Funds - Student Micro-Project Loan Fund"},"207543","Off-Budgetary Funds - Revolving Funds - Student Micro-Project Loan Fund","Off-Budgetary Funds","Revolving Funds","Student Micro-Project Loan Fund"]
[{"$f":"+CONCATENATE(Table4[[#This Row],[Funding Code]],\" - \",Table4[[#This Row],[Description]])","v":"207544 - Off-Budgetary Funds - Revolving Funds - Film Development Council of the Philippines - Revolving Fund"},"207544","Off-Budgetary Funds - Revolving Funds - Film Development Council of the Philippines - Revolving Fund","Off-Budgetary Funds","Revolving Funds","Film Development Council of the Philippines - Revolving Fund"]
[{"$f":"+CONCATENATE(Table4[[#This Row],[Funding Code]],\" - \",Table4[[#This Row],[Description]])","v":"207545 - Off-Budgetary Funds - Revolving Funds - National Commission for Culture and Arts  Revolving Fund"},"207545","Off-Budgetary Funds - Revolving Funds - National Commission for Culture and Arts  Revolving Fund","Off-Budgetary Funds","Revolving Funds","National Commission for Culture and Arts  Revolving Fund"]
[{"$f":"+CONCATENATE(Table4[[#This Row],[Funding Code]],\" - \",Table4[[#This Row],[Description]])","v":"207546 - Off-Budgetary Funds - Revolving Funds - National Historical Commission of the Philippines Revolving Fund"},"207546","Off-Budgetary Funds - Revolving Funds - National Historical Commission of the Philippines Revolving Fund","Off-Budgetary Funds","Revolving Funds","National Historical Commission of the Philippines Revolving Fund"]
[{"$f":"+CONCATENATE(Table4[[#This Row],[Funding Code]],\" - \",Table4[[#This Row],[Description]])","v":"207547 - Off-Budgetary Funds - Revolving Funds - Civil Service Commission Revolving Fund"},"207547","Off-Budgetary Funds - Revolving Funds - Civil Service Commission Revolving Fund","Off-Budgetary Funds","Revolving Funds","Civil Service Commission Revolving Fund"]
[{"$f":"+CONCATENATE(Table4[[#This Row],[Funding Code]],\" - \",Table4[[#This Row],[Description]])","v":"207548 - Off-Budgetary Funds - Revolving Funds - Career Executive Service Board Revolving Fund"},"207548","Off-Budgetary Funds - Revolving Funds - Career Executive Service Board Revolving Fund","Off-Budgetary Funds","Revolving Funds","Career Executive Service Board Revolving Fund"]
[{"$f":"+CONCATENATE(Table4[[#This Row],[Funding Code]],\" - \",Table4[[#This Row],[Description]])","v":"207549 - Off-Budgetary Funds - Revolving Funds - Commission on Audit Revolving Fund"},"207549","Off-Budgetary Funds - Revolving Funds - Commission on Audit Revolving Fund","Off-Budgetary Funds","Revolving Funds","Commission on Audit Revolving Fund"]
[{"$f":"+CONCATENATE(Table4[[#This Row],[Funding Code]],\" - \",Table4[[#This Row],[Description]])","v":"207550 - Off-Budgetary Funds - Revolving Funds - Others"},"207550",{"$f":"+CONCATENATE(D322,\" - \",E322,\" - \",F322)","v":"Off-Budgetary Funds - Revolving Funds - Others"},"Off-Budgetary Funds","Revolving Funds","Others"]
[{"$f":"+CONCATENATE(Table4[[#This Row],[Funding Code]],\" - \",Table4[[#This Row],[Description]])","v":"300000 - Custodial Fund - Custodial Fund - Custodial Fund"},"300000","Custodial Fund - Custodial Fund - Custodial Fund","Custodial Fund","Custodial Fund","Custodial Fund"]
[{"$f":"+CONCATENATE(Table4[[#This Row],[Funding Code]],\" - \",Table4[[#This Row],[Description]])","v":"308000 - Custodial Fund - Trust Receipts  - Trust Receipts "},"308000","Custodial Fund - Trust Receipts  - Trust Receipts ","Custodial Fund","Trust Receipts ","Trust Receipts "]
[{"$f":"+CONCATENATE(Table4[[#This Row],[Funding Code]],\" - \",Table4[[#This Row],[Description]])","v":"308601 - Custodial Fund - Trust Receipts  - Inter-Agency Transferrred Funds (IATF)"},"308601","Custodial Fund - Trust Receipts  - Inter-Agency Transferrred Funds (IATF)","Custodial Fund","Trust Receipts ","Inter-Agency Transferrred Funds (IATF)"]
[{"$f":"+CONCATENATE(Table4[[#This Row],[Funding Code]],\" - \",Table4[[#This Row],[Description]])","v":"308602 - Custodial Fund - Trust Receipts  - Receipts Deposited with the National Treasury other than IATF "},"308602","Custodial Fund - Trust Receipts  - Receipts Deposited with the National Treasury other than IATF ","Custodial Fund","Trust Receipts ","Receipts Deposited with the National Treasury other than IATF "]
[{"$f":"+CONCATENATE(Table4[[#This Row],[Funding Code]],\" - \",Table4[[#This Row],[Description]])","v":"308603 - Custodial Fund - Trust Receipts  - Receipts Deposited with Authorized Government Depository Banks (AGDB)"},"308603","Custodial Fund - Trust Receipts  - Receipts Deposited with Authorized Government Depository Banks (AGDB)","Custodial Fund","Trust Receipts ","Receipts Deposited with Authorized Government Depository Banks (AGDB)"]

{"sheet":"OrganizationFile","index":9,"n_rows":14,"n_cols":3,"rows_kept":14,"cut":false,"hidden":true,"merged":[]}
["code","description","description2"]
["0300010","Regional Office X - Proper",{"$f":"+CONCATENATE(Table5[[#This Row],[code]],\" - \",Table5[[#This Row],[description]])","v":"0300010 - Regional Office X - Proper"}]
["1800147","Bukidnon 1st District Engineering Office",{"$f":"+CONCATENATE(Table5[[#This Row],[code]],\" - \",Table5[[#This Row],[description]])","v":"1800147 - Bukidnon 1st District Engineering Office"}]
["1800148","Bukidnon 2nd District Engineering Office",{"$f":"+CONCATENATE(Table5[[#This Row],[code]],\" - \",Table5[[#This Row],[description]])","v":"1800148 - Bukidnon 2nd District Engineering Office"}]
["1800149","Bukidnon 3rd District Engineering Office",{"$f":"+CONCATENATE(Table5[[#This Row],[code]],\" - \",Table5[[#This Row],[description]])","v":"1800149 - Bukidnon 3rd District Engineering Office"}]
["1800150","Cagayan de Oro City 1st District Engineering Office",{"$f":"+CONCATENATE(Table5[[#This Row],[code]],\" - \",Table5[[#This Row],[description]])","v":"1800150 - Cagayan de Oro City 1st District Engineering Office"}]
["1800151","Cagayan de Oro City 2nd District Engineering Office",{"$f":"+CONCATENATE(Table5[[#This Row],[code]],\" - \",Table5[[#This Row],[description]])","v":"1800151 - Cagayan de Oro City 2nd District Engineering Office"}]
["1800152","Camiguin District Engineering Office",{"$f":"+CONCATENATE(Table5[[#This Row],[code]],\" - \",Table5[[#This Row],[description]])","v":"1800152 - Camiguin District Engineering Office"}]
["1800153","Lanao del Norte 1st District Engineering Office",{"$f":"+CONCATENATE(Table5[[#This Row],[code]],\" - \",Table5[[#This Row],[description]])","v":"1800153 - Lanao del Norte 1st District Engineering Office"}]
["1800154","Lanao del Norte 2nd District Engineering Office",{"$f":"+CONCATENATE(Table5[[#This Row],[code]],\" - \",Table5[[#This Row],[description]])","v":"1800154 - Lanao del Norte 2nd District Engineering Office"}]
["1800155","Misamis Occidental District Engineering Office",{"$f":"+CONCATENATE(Table5[[#This Row],[code]],\" - \",Table5[[#This Row],[description]])","v":"1800155 - Misamis Occidental District Engineering Office"}]
["1800156","Misamis Occidental 2nd District Engineering Office",{"$f":"+CONCATENATE(Table5[[#This Row],[code]],\" - \",Table5[[#This Row],[description]])","v":"1800156 - Misamis Occidental 2nd District Engineering Office"}]
["1800157","Misamis Oriental 1st District Engineering Office",{"$f":"+CONCATENATE(Table5[[#This Row],[code]],\" - \",Table5[[#This Row],[description]])","v":"1800157 - Misamis Oriental 1st District Engineering Office"}]
["1800158","Misamis Oriental 2nd District Engineering Office",{"$f":"+CONCATENATE(Table5[[#This Row],[code]],\" - \",Table5[[#This Row],[description]])","v":"1800158 - Misamis Oriental 2nd District Engineering Office"}]

{"sheet":"Sheet1","index":10,"n_rows":6,"n_cols":3,"rows_kept":6,"cut":false,"hidden":true,"merged":[]}
["Description","Code"]
["Income payments made by the government to its local/resident suppliers of goods","WI640",2]
["Payments made by government offices on their purchases of services from local/resident suppliers ","WI157",1]
["Person exempt from VAT under Sec. 109 (v) (Government withholding agent)","WB 080",5]
["VAT Withholding on Purchase of Goods -  Govt. Withholding Agent","WV 010",5]
["VAT Withholding on Purchase of Services -  Govt. Withholding Agent","WV 020",5]